Workbook

Sheet Summary
A1: Title V STEM HSI Co Op Budget | F1: 2014-2015 | H1: 2014 | K1: 2015
A3: Acct. # | B3: Description | C3: ORGNL BDGT | D3: Prev. Year CRYOVR | E3: TOTAL BUDGET | F3: EXPENSES | G3: REMAINING BALANCE | H3: October | I3: November | J3: December | K3: January | L3: February | M3: March | N3: April | O3: May | P3: June | Q3: July | R3: August | S3: September
A4: 1000 | B4: Certificated Salaries
B5: Full-time | C5: =364141 -> 364141 | D5: 497228.88 | E5: =C5+D5 -> 861369.88 | F5: =SUM(H5:S5) -> 254436.61 | G5: =E5-F5 -> 606933.27 | H5: ='Cert. Sal'!C13 -> 15531.8 | I5: ='Cert. Sal'!D13 -> 16577.65 | J5: ='Cert. Sal'!E13 -> 16577.65 | K5: ='Cert. Sal'!F13 -> 16647.66 | L5: ='Cert. Sal'!G13 -> 15601.81 | M5: ='Cert. Sal'!H13 -> 22741.48 | N5: ='Cert. Sal'!I13 -> 22741.48 | O5: ='Cert. Sal'!J13 -> 22826.78 | P5: ='Cert. Sal'!K13 -> 22898.2 | Q5: ='Cert. Sal'!L13 -> 17630.65 | R5: ='Cert. Sal'!M13 -> 24073.39 | S5: ='Cert. Sal'!N13 -> 40588.06
B6: Part-time | E6: =C6+D6 -> 0 | F6: =SUM(H6:S6) -> 0 | G6: =E6-F6 -> 0 | H6: ='Cert. Sal'!C22 -> 0 | I6: ='Cert. Sal'!D22 -> 0 | J6: ='Cert. Sal'!E22 -> 0 | K6: ='Cert. Sal'!F22 -> 0 | L6: ='Cert. Sal'!G22 -> 0 | M6: ='Cert. Sal'!H22 -> 0 | N6: ='Cert. Sal'!I22 -> 0 | O6: ='Cert. Sal'!J22 -> 0 | P6: ='Cert. Sal'!K16 -> 0 | Q6: ='Cert. Sal'!L22 -> 0 | R6: ='Cert. Sal'!M22 -> 0 | S6: ='Cert. Sal'!N22 -> 0
B7: Hourly | E7: =C7+D7 -> 0 | F7: 0 | G7: =E7-F7 -> 0 | H7: ='Cert. Sal'!C31 -> 0 | I7: ='Cert. Sal'!D31 -> 0 | J7: ='Cert. Sal'!E31 -> 0 | K7: ='Cert. Sal'!F31 -> 0 | L7: ='Cert. Sal'!G31 -> 0 | M7: ='Cert. Sal'!H31 -> 0 | N7: ='Cert. Sal'!I31 -> 0 | O7: ='Cert. Sal'!J31 -> 0 | P7: ='Cert. Sal'!K31 -> 0 | Q7: ='Cert. Sal'!L31 -> 0 | R7: ='Cert. Sal'!M31 -> 0 | S7: ='Cert. Sal'!N31 -> 0
B8: Cert. Salaries Total | C8: =SUM(C5:C7) -> 364141 | D8: =SUM(D5:D7) -> 497228.88 | E8: =SUM(E5:E7) -> 861369.88 | F8: =SUM(F5:F7) -> 254436.61 | G8: =E8-F8 -> 606933.27 | H8: =SUM(H5:H7) -> 15531.8 | I8: 16577.65 | J8: 16577.65 | K8: 16647.66 | L8: 15601.81 | M8: 22741.48 | N8: 22741.48 | O8: 22826.78 | P8: 22898.2 | Q8: =SUM(Q5:Q7) -> 17630.65 | R8: =SUM(R5:R7) -> 24073.39 | S8: =SUM(S5:S7) -> 40588.06
A9: 2000 | B9: Classified Salaries
B10: Acad Computing Support Specialist | C10: 57222 | D10: 42140.68 | E10: =C10+D10 -> 99362.68 | F10: =SUM(H10:S10) -> 28134.87 | G10: =E10-F10 -> 71227.81 | H10: ='Class. Sal'!F10 -> 2353.44 | I10: ='Class. Sal'!G10 -> 2353.44 | J10: ='Class. Sal'!H10 -> 2353.44 | K10: ='Class. Sal'!I10 -> 2353.44 | L10: ='Class. Sal'!J10 -> 2353.44 | M10: ='Class. Sal'!K10 -> 2376.97 | N10: ='Class. Sal'!L10 -> 2376.97 | O10: ='Class. Sal'!M10 -> 2376.97 | P10: ='Class. Sal'!N10 -> 2376.97 | Q10: ='Class. Sal'!C10 -> 2376.97 | R10: ='Class. Sal'!D10 -> 2241.41 | S10: ='Class. Sal'!E10 -> 2241.41
B11: Research Analyst | C11: 27050 | D11: 33417.66 | E11: 60467.66 | F11: =SUM(H11:S11) -> 49113.92 | G11: =E11-F11 -> 11353.74 | H11: =+'Class. Sal'!F18 -> 4066.05 | I11: =+'Class. Sal'!G18 -> 4066.05 | J11: =+'Class. Sal'!H18 -> 4066.05 | K11: =+'Class. Sal'!I18 -> 4066.05 | L11: =+'Class. Sal'!J18 -> 4106.71 | M11: =+'Class. Sal'!K18 -> 4106.71 | N11: =+'Class. Sal'!L18 -> 4312.03 | O11: =+'Class. Sal'!M18 -> 4312.03 | P11: =+'Class. Sal'!N18 -> 4312.03 | Q11: =+'Class. Sal'!C18 -> 3841.25 | R11: =+'Class. Sal'!D18 -> 3841.25 | S11: =+'Class. Sal'!E18 -> 4017.71
B12: STEM Laboratory Developer | C12: 45778 | D12: 70333.4 | E12: 116111.4 | F12: 28579.62 | G12: =E12-F12 -> 87531.78 | H12: =+'Class. Sal'!F26 -> 4356.11 | I12: =+'Class. Sal'!G26 -> 2218.14 | J12: =+'Class. Sal'!H26 -> 2218.14 | K12: =+'Class. Sal'!I26 -> 2218.14 | L12: =+'Class. Sal'!J26 -> 2240.32 | M12: =+'Class. Sal'!K26 -> 1206.42 | N12: =+'Class. Sal'!L26 -> 0 | O12: =+'Class. Sal'!M26 -> 1137.29 | P12: =+'Class. Sal'!N26 -> 2240.32 | Q12: =+'Class. Sal'!C26 -> 2218.14 | R12: =+'Class. Sal'!D26 -> 4254.28 | S12: =+'Class. Sal'!E26 -> 4272.32
B13: Project Assistants | C13: 45778 | D13: 22472.65 | E13: 68250.65 | F13: 39046.37 | G13: =E13-F13 -> 29204.28 | H13: ='Class. Sal'!F34 -> 1659.12 | I13: ='Class. Sal'!G34 -> 2606.75 | J13: ='Class. Sal'!H34 -> 3992.72 | K13: ='Class. Sal'!I34 -> 4819.36 | L13: ='Class. Sal'!J34 -> 4118.69 | M13: ='Class. Sal'!K34 -> 4343.8 | N13: ='Class. Sal'!L34 -> 4343.8 | O13: ='Class. Sal'!M34 -> 4343.8 | P13: ='Class. Sal'!N34 -> 4077.97 | Q13: ='Class. Sal'!C34 -> 1580.12 | R13: ='Class. Sal'!D34 -> 1580.12 | S13: ='Class. Sal'!E34 -> 1580.12
B14: STEM Articulation Developer | C14: 72828 | D14: 140000 | E14: 212828 | F14: 0
B15: Hourly | D15: -19839.92 | E15: -19839.92 | F15: 557.16 | G15: =E15-F15 -> -20397.08 | H15: ='Class. Sal'!F46 -> 0 | I15: ='Class. Sal'!G46 -> 557.16 | J15: ='Class. Sal'!H46 -> 0 | K15: ='Class. Sal'!I46 -> 0 | L15: ='Class. Sal'!J46 -> 0 | M15: ='Class. Sal'!K46 -> 0 | N15: ='Class. Sal'!L46 -> 0 | O15: ='Class. Sal'!M46 -> 0 | P15: ='Class. Sal'!N46 -> 0 | Q15: ='Class. Sal'!C46 -> 0 | R15: ='Class. Sal'!D46 -> 0 | S15: ='Class. Sal'!E46 -> 0
B16: Class. Salaries Total | C16: =SUM(C10:C15) -> 248656 | D16: =SUM(D10:D15) -> 288524.47 | E16: =SUM(E10:E15) -> 537180.47 | F16: =SUM(F10:F15) -> 145431.94 | G16: =SUM(G10:G15) -> 178920.53 | H16: =SUM(H10:H15) -> 12434.72 | I16: 11801.54 | J16: 12630.35 | K16: 13456.99 | L16: 12819.16 | M16: 12033.9 | N16: 11032.8 | O16: 12170.09 | P16: 13007.29 | Q16: =SUM(Q10:Q15) -> 10016.48 | R16: =SUM(R10:R15) -> 11917.06 | S16: =SUM(S10:S15) -> 12111.56
B17: Student Employees
B18: Students Employee Total | C18: 26600 | D18: 53200 | E18: =C18+D18 -> 79800 | F18: =SUM(H18:S18) -> 138492.29 | G18: =E18-F18 -> -58692.29 | H18: ='Student Emp.'!C93 -> 0 | I18: ='Student Emp.'!D93 -> 0 | J18: ='Student Emp.'!E93 -> 0 | K18: ='Student Emp.'!F93 -> 0 | L18: ='Student Emp.'!G93 -> 0 | M18: ='Student Emp.'!H93 -> 0 | N18: ='Student Emp.'!I93 -> 0 | O18: ='Student Emp.'!J93 -> 0 | P18: ='Student Emp.'!K93 -> 0 | Q18: ='Student Emp.'!L93 -> 0 | R18: ='Student Emp.'!M93 -> 0 | S18: ='Student Emp.'!N93 -> 138492.29
A19: 3000 | B19: Total Benefits
B20: Certificated | C20: =C8*0.3 -> 109242.3 | D20: 176849.4 | E20: =C20+D20 -> 286091.7 | F20: =Benefits!DB17 -> 69908.17556 | G20: =E20-F20 -> 216183.5244 | H20: =Benefits!AG38 -> 1970.508603 | I20: =Benefits!AO38 -> 2311.658603 | J20: =Benefits!AW38 -> 3058.67818 | K20: =Benefits!BE38 -> 3058.67818 | L20: =Benefits!BM38 -> 3069.45157 | M20: =Benefits!BU38 -> 3076.921859 | N20: =Benefits!CC38 -> 2257.573354 | O20: =Benefits!CK38 -> 3381.852398 | P20: =Benefits!CS38 -> 5781.956365 | Q20: =Benefits!I38 -> 1961.66634 | R20: =Benefits!Q38 -> 1961.66634 | S20: =Benefits!Y38 -> 1961.66634
B21: Classified | C21: =C16*0.3 -> 74596.8 | D21: 5901.1 | E21: =C21+D21 -> 80497.9 | F21: =Benefits!DA74 -> 70562.02444 | G21: =E21-F21 -> 9935.875562 | H21: =Benefits!AG74 -> 7348.806981 | I21: =Benefits!AO74 -> 7685.948358 | J21: =Benefits!AW74 -> 7862.377143 | K21: =Benefits!BE74 -> 8038.343999 | L21: =Benefits!BM74 -> 7897.847671 | M21: =Benefits!BU74 -> 7950.775668 | N21: =Benefits!CC74 -> 7994.482136 | O21: =Benefits!CK74 -> 7994.482136 | P21: =Benefits!CS74 -> 7937.894904 | Q21: =Benefits!I74 -> 984.8635835 | R21: =Benefits!Q74 -> 1461.99253 | S21: =Benefits!Y74 -> 7145.48557
B22: Students | D22: 0 | E22: =C22+D22 -> 0 | F22: =SUM(H22:S22) -> 3060.679609 | G22: =E22-F22 -> -3060.679609 | H22: =Benefits!D84 -> 0 | I22: =Benefits!F84 -> 0 | J22: =Benefits!H84 -> 0 | K22: =Benefits!J84 -> 0 | L22: =Benefits!L84 -> 0 | M22: =Benefits!N84 -> 0 | N22: =Benefits!P84 -> 0 | O22: =Benefits!R84 -> 0 | P22: =Benefits!T84 -> 0 | Q22: =Benefits!V84 -> 0 | R22: =Benefits!X84 -> 0 | S22: =Benefits!Z84 -> 3060.679609
B23: Benefits Total | C23: =SUM(C20:C22) -> 183839.1 | D23: =SUM(D20:D22) -> 182750.5 | E23: =SUM(E20:E22) -> 366589.6 | F23: =Benefits!DC86 -> 129884.38 | G23: =E23-F23 -> 236705.22 | H23: =SUM(H20:H22) -> 9319.315584 | I23: 9997.606961 | J23: 10921.05532 | K23: 11097.02218 | L23: 10967.29924 | M23: 11027.69753 | N23: 10252.05549 | O23: 11376.33453 | P23: 13719.85127 | Q23: =SUM(Q20:Q22) -> 2946.529924 | R23: =SUM(R20:R22) -> 3423.65887 | S23: =SUM(S20:S22) -> 12167.83152
A24: 4000 | B24: Supplies
B25: Instructional Supplies | C25: 121413 | D25: 66438.63 | E25: =C25+D25 -> 187851.63 | F25: =SUM(H25:S25) -> 231310.81 | G25: =E25-F25 -> -43459.18 | H25: =Supplies!F59 -> 2152.4 | I25: =Supplies!G59 -> 3225.67 | J25: =Supplies!H59 -> 3455.1 | K25: =Supplies!I59 -> 139227.28 | L25: =Supplies!J59 -> 41494.45 | M25: =Supplies!K59 -> 176.93 | N25: =Supplies!L59 -> 2174.49 | O25: =Supplies!M59 -> 1474.44 | P25: =Supplies!N59 -> 8642.37 | Q25: =Supplies!C59 -> 5982.43 | R25: =Supplies!D59 -> 4917.17 | S25: =Supplies!E59 -> 18388.08
B26: Non-Instructional Supplies | D26: -24312.28 | E26: =C26+D26 -> -24312.28 | F26: =SUM(H26:S26) -> 87041.65 | G26: =E26-F26 -> -111353.93 | H26: =Supplies!F90 -> 872.87 | I26: =Supplies!G90 -> 3641.52 | J26: =Supplies!H90 -> 1586.31 | K26: =Supplies!I90 -> 2239.48 | L26: =Supplies!J90 -> 72614.87 | M26: =Supplies!K90 -> 668.39 | N26: =Supplies!L90 -> 1367.7 | O26: =Supplies!M90 -> 0 | P26: =Supplies!N90 -> 2089.26 | Q26: =Supplies!C90 -> 0 | R26: =Supplies!D90 -> 0 | S26: =Supplies!E90 -> 1961.25
B27: Warehouse Supplies | D27: -1546.66 | E27: =C27+D27 -> -1546.66 | F27: =SUM(H27:S27) -> 344.42 | G27: =E27-F27 -> -1891.08 | H27: =Supplies!F98 -> 0 | I27: =Supplies!G98 -> 0 | J27: =Supplies!H98 -> 0 | K27: =Supplies!I98 -> 0 | L27: =Supplies!J98 -> 0 | M27: =Supplies!K98 -> 24 | N27: =Supplies!L98 -> 0 | O27: =Supplies!M98 -> 0 | P27: =Supplies!N98 -> 51.96 | Q27: =Supplies!C98 -> 268.46 | R27: =Supplies!D98 -> 0 | S27: =Supplies!E98 -> 0
B28: Supplies Total | C28: =SUM(C25:C27) -> 121413 | D28: =SUM(D25:D27) -> 40579.69 | E28: =SUM(E25:E27) -> 161992.69 | F28: =SUM(F25:F27) -> 318696.88 | G28: =E28-F28 -> -156704.19 | H28: =SUM(H25:H27) -> 3025.27 | I28: 6867.19 | J28: 5041.41 | K28: 141466.76 | L28: 114109.32 | M28: 869.32 | N28: 3542.19 | O28: 1474.44 | P28: 10783.59 | Q28: =SUM(Q25:Q27) -> 6250.89 | R28: =SUM(R25:R27) -> 4917.17 | S28: =SUM(S25:S27) -> 20349.33
A29: 5000 | B29: Other Expenses
B30: Consultants/Contract Services | C30: 52000 | D30: -289912.56 | E30: =C30+D30 -> -237912.56 | F30: =SUM(H30:S30) -> 347213.85 | G30: =E30-F30 -> -585126.41 | H30: ='Other Exp.'!F13 -> 0 | I30: ='Other Exp.'!G13 -> 0 | J30: ='Other Exp.'!H13 -> 164650.67 | K30: ='Other Exp.'!I13 -> 4548.32 | L30: ='Other Exp.'!J13 -> 14707.1 | M30: ='Other Exp.'!K13 -> 0 | N30: ='Other Exp.'!L13 -> 3391.86 | O30: ='Other Exp.'!M13 -> 64321.78 | P30: ='Other Exp.'!N13 -> 353.94 | Q30: ='Other Exp.'!C13 -> 0 | R30: ='Other Exp.'!D13 -> 91309.44 | S30: ='Other Exp.'!E13 -> 3930.74
B31: Travel & Conferences | C31: 11000 | D31: -36009.85 | E31: =C31+D31 -> -25009.85 | F31: 40050.86 | G31: =E31-F31 -> -65060.71 | H31: ='Other Exp.'!F42 -> 0 | I31: ='Other Exp.'!G42 -> 0 | J31: ='Other Exp.'!H42 -> 2296.99 | K31: ='Other Exp.'!I42 -> 17007.18 | L31: ='Other Exp.'!J42 -> 516.04 | M31: ='Other Exp.'!K42 -> 1313.26 | N31: ='Other Exp.'!L42 -> 0 | O31: ='Other Exp.'!M42 -> 10150.19 | P31: ='Other Exp.'!N42 -> 8767.2 | Q31: ='Other Exp.'!C42 -> 0 | R31: ='Other Exp.'!D42 -> 0 | S31: ='Other Exp.'!E42 -> 0
B32: Dues & Memberships | D32: 0 | E32: 0 | F32: 140 | G32: -140 | H32: ='Other Exp.'!F51 -> 0 | I32: ='Other Exp.'!G51 -> 0 | J32: ='Other Exp.'!H51 -> 0 | K32: ='Other Exp.'!I51 -> 140 | M32: ='Other Exp.'!K51 -> 0 | N32: ='Other Exp.'!L51 -> 0 | O32: ='Other Exp.'!M51 -> 0 | P32: ='Other Exp.'!N51 -> 0 | Q32: ='Other Exp.'!C51 -> 0 | R32: ='Other Exp.'!D51 -> 0 | S32: ='Other Exp.'!E51 -> 0
B33: Licenses & Fees | D33: -91629.94 | E33: -91629.94 | F33: 12452.48 | G33: -104082.42 | H33: ='Other Exp.'!F60 -> 0 | I33: ='Other Exp.'!G60 -> 0 | J33: ='Other Exp.'!H60 -> 0 | K33: ='Other Exp.'!I60 -> 0 | L33: ='Other Exp.'!J60 -> 12452.48 | M33: ='Other Exp.'!K60 -> 0 | N33: ='Other Exp.'!L60 -> 0 | O33: ='Other Exp.'!M60 -> 0 | P33: ='Other Exp.'!N60 -> 0 | Q33: ='Other Exp.'!C60 -> 0 | R33: ='Other Exp.'!D60 -> 0 | S33: ='Other Exp.'!E60 -> 0
B34: Rents & Leases | D34: -2008.58 | E34: -2008.58 | F34: 11189.56 | G34: -13198.14 | H34: ='Other Exp.'!F69 -> 0 | I34: ='Other Exp.'!G69 -> 0 | J34: ='Other Exp.'!H69 -> 0 | K34: ='Other Exp.'!I69 -> 1851.75 | L34: ='Other Exp.'!J69 -> 0 | M34: ='Other Exp.'!K69 -> 0 | N34: ='Other Exp.'!L69 -> 9337.81 | O34: ='Other Exp.'!M69 -> 0 | P34: ='Other Exp.'!N69 -> 0 | Q34: ='Other Exp.'!C69 -> 0 | R34: ='Other Exp.'!D69 -> 0 | S34: ='Other Exp.'!E69 -> 0
B35: Equipment Repair | D35: -5138 | E35: -5138 | F35: 1619.09 | G35: -6757.09 | H35: ='Other Exp.'!F78 -> 0 | I35: ='Other Exp.'!G78 -> 0 | J35: ='Other Exp.'!H78 -> 0 | K35: ='Other Exp.'!I78 -> 0 | L35: ='Other Exp.'!J78 -> 0 | M35: ='Other Exp.'!K78 -> 0 | N35: ='Other Exp.'!L78 -> 0 | O35: ='Other Exp.'!M78 -> 0 | P35: ='Other Exp.'!N78 -> 1309.09 | Q35: ='Other Exp.'!C78 -> 310 | R35: ='Other Exp.'!D78 -> 0 | S35: ='Other Exp.'!E78 -> 0
B36: Outreach | C36: =12000-3624.1 -> 8375.9 | D36: 12227.38 | E36: 20603.28 | F36: 8326.29 | G36: 12276.99 | H36: ='Other Exp.'!F87 -> 0 | I36: ='Other Exp.'!G87 -> 0 | J36: ='Other Exp.'!H87 -> 0 | K36: ='Other Exp.'!I87 -> 0 | L36: ='Other Exp.'!J87 -> 0 | M36: ='Other Exp.'!K87 -> 0 | N36: ='Other Exp.'!L87 -> 1328.04 | O36: ='Other Exp.'!M87 -> 0 | P36: ='Other Exp.'!N87 -> 0 | Q36: ='Other Exp.'!C87 -> 6537.25 | R36: ='Other Exp.'!D87 -> 461 | S36: ='Other Exp.'!E87 -> 0
B37: Other Expenses Total | C37: =SUM(C30:C36) -> 71375.9 | D37: =SUM(D30:D36) -> -412471.55 | E37: =SUM(E30:E36) -> -341095.65 | F37: =SUM(F30:F36) -> 420992.13 | G37: =E37-F37 -> -762087.78 | H37: =SUM(H30:H36) -> 0 | I37: 0 | J37: 166947.66 | K37: 23547.25 | L37: 27675.62 | M37: 1313.26 | N37: 14057.71 | O37: 74471.97 | P37: 10430.23 | Q37: =SUM(Q30:Q36) -> 6847.25 | R37: =SUM(R30:R36) -> 91770.44 | S37: =SUM(S30:S36) -> 3930.74
A38: 6000 | B38: Capital Outlay
B39: Equipment | C39: 60000 | D39: 0 | E39: =C39+D39 -> 60000 | F39: =SUM(H39:S39) -> 163986.72 | G39: =E39-F39 -> -103986.72 | H39: ='Cap. Outlay'!F16 -> 0 | I39: ='Cap. Outlay'!G16 -> 0 | J39: ='Cap. Outlay'!H16 -> 135000 | K39: ='Cap. Outlay'!I16 -> 0 | L39: ='Cap. Outlay'!J16 -> 0 | M39: ='Cap. Outlay'!K16 -> 0 | N39: ='Cap. Outlay'!L16 -> 10128.72 | O39: ='Cap. Outlay'!M16 -> 0 | P39: ='Cap. Outlay'!N16 -> 0 | Q39: ='Cap. Outlay'!C16 -> 0 | R39: ='Cap. Outlay'!D16 -> 18858 | S39: ='Cap. Outlay'!E16 -> 0
B40: Building Modification | C40: 120000 | D40: 240000 | E40: =C40+D40 -> 360000 | F40: =SUM(H40:S40) -> 0 | G40: =E40-F40 -> 360000 | H40: ='Cap. Outlay'!F25 -> 0 | I40: ='Cap. Outlay'!G25 -> 0 | J40: ='Cap. Outlay'!H25 -> 0 | K40: ='Cap. Outlay'!I25 -> 0 | L40: ='Cap. Outlay'!J25 -> 0 | M40: ='Cap. Outlay'!K25 -> 0 | N40: ='Cap. Outlay'!L25 -> 0 | O40: ='Cap. Outlay'!M25 -> 0 | P40: ='Cap. Outlay'!N25 -> 0 | Q40: ='Cap. Outlay'!C25 -> 0 | R40: ='Cap. Outlay'!D25 -> 0 | S40: ='Cap. Outlay'!E25 -> 0
B41: Other | D41: 0 | F41: 6083.73 | G41: =E41-F41 -> -6083.73 | H41: ='Cap. Outlay'!F34 -> 0 | I41: ='Cap. Outlay'!G34 -> 0 | J41: ='Cap. Outlay'!H34 -> 5359.23 | K41: ='Cap. Outlay'!I34 -> 0 | L41: ='Cap. Outlay'!J34 -> 724.5 | M41: ='Cap. Outlay'!K34 -> 0 | N41: ='Cap. Outlay'!L34 -> 0 | O41: ='Cap. Outlay'!M34 -> 0 | P41: ='Cap. Outlay'!N34 -> 0 | Q41: ='Cap. Outlay'!C34 -> 0 | R41: ='Cap. Outlay'!D34 -> 0 | S41: ='Cap. Outlay'!E34 -> 0
B42: Capital Outlay Total | C42: =SUM(C39:C41) -> 180000 | D42: =SUM(D39:D41) -> 240000 | E42: =SUM(E39:E41) -> 420000 | F42: =SUM(F39:F41) -> 170070.45 | G42: =E42-F42 -> 249929.55 | H42: =SUM(H39:H41) -> 0 | I42: 0 | J42: 140359.23 | K42: 0 | L42: 724.5 | M42: 0 | N42: 10128.72 | O42: 0 | P42: 0 | Q42: =SUM(Q39:Q41) -> 0 | R42: =SUM(R39:R41) -> 18858 | S42: =SUM(S39:S41) -> 0
A43: 7000 | B43: Other Outgo
B44: Endowment | D44: 0 | E44: =C44+D44 -> 0 | G44: =E44-F44 -> 0 | H44: =+'Other Outgo'!F4 -> 0 | I44: =+'Other Outgo'!G4 -> 0 | J44: =+'Other Outgo'!H4 -> 0 | K44: =+'Other Outgo'!I4 -> 0 | L44: =+'Other Outgo'!J4 -> 0 | M44: =+'Other Outgo'!K4 -> 0 | N44: =+'Other Outgo'!L4 -> 0 | O44: =+'Other Outgo'!M4 -> 0 | P44: =+'Other Outgo'!N4 -> 0 | Q44: =+'Other Outgo'!C4 -> 0 | R44: =+'Other Outgo'!D4 -> 0 | S44: =+'Other Outgo'!E4 -> 0
B45: INDIRECT COSTS | D45: 0 | E45: =C45+D45 -> 0 | F45: =SUM(H45:P45) -> 0 | G45: =E45-F45 -> 0 | H45: =+'Other Outgo'!F5 -> 0 | I45: =+'Other Outgo'!G5 -> 0 | J45: =+'Other Outgo'!H5 -> 0 | K45: =+'Other Outgo'!I5 -> 0 | L45: =+'Other Outgo'!J5 -> 0 | M45: =+'Other Outgo'!K5 -> 0 | N45: =+'Other Outgo'!L5 -> 0 | O45: =+'Other Outgo'!M5 -> 0 | P45: =+'Other Outgo'!N5 -> 0 | Q45: =+'Other Outgo'!C5 -> 0 | R45: =+'Other Outgo'!D5 -> 0 | S45: =+'Other Outgo'!E5 -> 0
B46: Additional Funding (Feds Adjustment) | C46: -54657 | D46: 0 | E46: -54657 | F46: 0 | G46: =E46-F46 -> -54657 | H46: =+'Other Outgo'!F5 -> 0 | I46: =+'Other Outgo'!G5 -> 0 | J46: =+'Other Outgo'!H5 -> 0 | K46: =+'Other Outgo'!I5 -> 0 | L46: =+'Other Outgo'!J5 -> 0 | M46: =+'Other Outgo'!K5 -> 0 | N46: =+'Other Outgo'!L5 -> 0 | O46: =+'Other Outgo'!M5 -> 0 | P46: 0 | Q46: =+'Other Outgo'!C5 -> 0 | R46: =+'Other Outgo'!D5 -> 0 | S46: =+'Other Outgo'!E5 -> 0
C47: =SUM(C44:C46) -> -54657 | D47: =SUM(D44:D46) -> 0 | E47: =SUM(E44:E46) -> -54657 | F47: =SUM(F44:F46) -> 0 | G47: =E47-F47 -> -54657
B48: Unallowable Charges
A51: BUDGET TOTALS | C51: =+C8+C16+C18+C23+C28+C37+C42+C47 -> 1141368 | D51: =+D8+D16+D18+D23+D28+D37+D42+D47 -> 889811.99 | E51: =+E8+E16+E18+E23+E28+E37+E42+E47 -> 2031179.99 | F51: =+F8+F16+F18+F23+F28+F37+F42+F47 -> 1578004.68 | G51: =E51-F51 -> 453175.31 | H51: =SUM(H8,H16,H18,H23,H28,H37,H42,H46) -> 40311.10558 | I51: 45243.98696 | J51: 352477.3553 | K51: 206215.6822 | L51: 181897.7092 | M51: 47985.65753 | N51: 71754.95549 | O51: 122319.6145 | P51: 70839.16127 | Q51: =SUM(Q8,Q16,Q18,Q23,Q28,Q37,Q42,Q46) -> 43691.79992 | R51: =SUM(R8,R16,R18,R23,R28,R37,R42,R46) -> 154959.7189 | S51: =SUM(S8,S16,S18,S23,S28,S37,S42,S46) -> 227639.8115
C53: 1141368
C54: =C51-C53 -> 0
B56: 1st YEAR AWARD | E56: 1198489 | F56: 548584.1194 | G56: 1ST YEAR TOTAL EXPENSES
B57: 2nd YEAR AWARD | E57: 1193630 | F57: =F51 -> 1578004.68 | G57: 2ND YEAR EXPENSES TO DATE
B58: 3rd YEAR AWARD
B59: 4th YEAR AWARD | I59: =466314+818895+813539+691546+664649 -> 3454943
B60: 5th YEAR AWARD
B61: TOTAL AWARD ALL YEARS | E61: =SUM(E56:E60) -> 2392119 | F61: =SUM(F56:F60) -> 2126588.799 | G61: TOTAL EXPENSES TO DATE | I61: =E61-F61 -> 265530.2006
B63: GAPPS DRAW DOWNS
I64: =E56-754692.47 -> 443796.53
B70: TOTAL DRAW DOWN FROM GAPPS | E70: =SUM(E64:E69) -> 0 | F70: =+F61-E70 -> 2126588.799 | G70: amount to be requested to draw down

Sheet Cert. Sal
A1: 1000 Certificated Salaries | C1: =Summary!F1 -> 2014-2015
C2: October | D2: November | E2: December | F2: January | G2: February | H2: March | I2: April | J2: May | K2: June | L2: July | M2: August | N2: September | O2: Year Total | P2: Saalries | Q2: Other | R2: Total
A3: Full Time
A4: 1 | B4: Christos Valiotis 100% rls time | C4: 8530.77 | D4: 8530.77 | E4: 8530.77 | F4: 8530.77 | G4: 8530.77 | H4: 8530.77 | I4: 8530.77 | J4: 8616.07 | K4: 8616.07 | L4: 8616.07 | M4: 8616.07 | N4: =8616.07+16302.09 -> 24918.16 | O4: =SUM(C4:N4) -> 119097.83 | P4: =O4+'Class. Sal'!O28+Benefits!DC55+Benefits!DC6+Supplies!O72+Supplies!O98+'Other Exp.'!O18 -> 196236.71 | T4: =Summary!F51-'Cert. Sal'!P4-Summary!F44 -> 1381767.97 | U4: =Summary!F44 -> 0
A5: 2 | B5: Jason Bowen | C5: 7001.03 | D5: 7001.03 | E5: 7001.03 | F5: 7071.04 | G5: 7071.04 | H5: 7071.04 | I5: 7071.04 | J5: 7071.04 | K5: 7071.04 | N5: 0 | O5: =SUM(C5:N5) -> 63429.33 | P5: =O5+'Class. Sal'!O10+'Class. Sal'!O18+Benefits!DC7+'Other Exp.'!O87+Benefits!DC46+Benefits!DC47+Benefits!DC49+Benefits!DC50 -> 197946.69 | Q5: =Supplies!O59+Supplies!O90-Supplies!O72+'Other Exp.'!O42-'Other Exp.'!O18 -> 351082.14 | R5: =SUM(P5:Q5) -> 549028.83
A6: 3 | B6: Jonathan Compton | C6: 0 | D6: 0 | E6: 0 | F6: 0 | G6: 0 | H6: 1202.12 | I6: 1202.12 | J6: 1202.12 | K6: 1214.14 | L6: 1214.14 | M6: =5771.04+242.83 -> 6013.87 | N6: =5771.04+242.83 -> 6013.87 | O6: 18062.38
A7: 4 | B7: BROWN,STEVEN R | E7: 0 | L7: 1803.49 | M7: 3606.18 | N7: 3606.18 | O7: 9015.85
A8: 5 | B8: Laxamana, Victor | H8: 3160.87 | I8: 3160.87 | J8: 3160.87 | K8: 3192.48 | L8: 3192.48 | M8: 2560.74 | N8: 2560.74 | O8: 20989.05
A9: 6 | B9: Major, Karl | H9: 925.56 | I9: 925.56 | J9: 925.56 | K9: 934.82 | L9: 934.82 | M9: 934.82 | N9: 934.82 | O9: =SUM(C9:N9) -> 6515.96
A10: 7 | B10: Over, Jonathan | H10: 1851.12 | I10: 1851.12 | J10: 1851.12 | K10: 1869.65 | L10: 1869.65 | M10: 701.12 | N10: 913.7 | O10: 10907.48
A11: 9 | B11: Rad, Koshrow | C11: 0 | D11: 1045.85 | E11: 1045.85 | F11: 1045.85 | O11: 3137.55
A12: 10 | B12: Ginosian, Desdemona | M12: 1640.59 | N12: 1640.59 | O12: 3281.18
A13: Total | C13: =SUM(C4:C12) -> 15531.8 | D13: 16577.65 | E13: 16577.65 | F13: 16647.66 | G13: 15601.81 | H13: 22741.48 | I13: 22741.48 | J13: 22826.78 | K13: 22898.2 | L13: 17630.65 | M13: 24073.39 | N13: 40588.06 | O13: 254436.61 | P13: Outreach Expenses
P14: =O17+'Class. Sal'!O24+'Class. Sal'!O43+Benefits!DC48 -> 18100.98 | Q14: =P14-8527.36 -> 9573.62
A15: Adjunct
A16: 1 | O16: =SUM(C16:N16) -> 0
A17: 2 | O17: 0
A18: 3 | O18: 0
A19: 4 | O19: 0
A20: 5 | O20: 0
O21: 0
A22: Total | C22: =SUM(C16:C21) -> 0 | D22: 0 | E22: 0 | F22: 0 | G22: 0 | H22: 0 | I22: 0 | J22: 0 | K22: 0 | L22: 0 | M22: 0 | N22: 0 | O22: 0
A24: Hourly
A25: 1 | O25: =SUM(C25:N25) -> 0
A26: 2 | O26: 0
A27: 3 | O27: 0
A28: 4 | O28: 0
A29: 5 | O29: 0
O30: 0
A31: Total | C31: =SUM(C25:C30) -> 0 | D31: =SUM(D25:D30) -> 0 | E31: 0 | F31: 0 | G31: 0 | H31: 0 | I31: 0 | J31: 0 | K31: 0 | L31: 0 | M31: 0 | N31: 0 | O31: =SUM(O25:O30) -> 0
G39: =84871.71/11 -> 7715.61 | H39: =G39*0.75 -> 5786.7075
H44: =7506.46*0.75 -> 5629.845

Sheet Class. Sal
A1: 2000 Classified Salaries | D1: =Summary!F1 -> 2014-2015
C2: October | D2: November | E2: December | F2: January | G2: February | H2: March | I2: April | J2: May | K2: June | L2: July | M2: August | N2: September | O2: Year Total
A3: =+Summary!B10 -> Acad Computing Support Specialist | S3: Tutoring expenses
A4: 1 | B4: Elder Aguilar 50% | C4: 2376.97 | D4: 2241.41 | E4: 2241.41 | F4: 2353.44 | G4: 2353.44 | H4: 2353.44 | I4: 2353.44 | J4: 2353.44 | K4: 2376.97 | L4: 2376.97 | M4: 2376.97 | N4: 2376.97 | O4: =SUM(C4:N4) -> 28134.87 | S4: =O46-O43+'Student Emp.'!O94+B69+'Cert. Sal'!O17+Benefits!DC20 -> 557.16
A5: 2 | B5: Geary Cook | D5: 0 | E5: 0 | F5: 0 | G5: 0 | H5: 0 | I5: 0 | J5: 0 | K5: 0 | L5: 0 | M5: 0 | N5: 0 | O5: =SUM(C5:N5) -> 0
A6: 3 | O6: =SUM(C6:N6) -> 0
A7: 4 | O7: =SUM(C7:N7) -> 0
A8: 5 | O8: =SUM(C8:N8) -> 0 | P8: =O8-1382.59 -> -1382.59
A10: Total | C10: =SUM(C4:C9) -> 2376.97 | D10: =SUM(D4:D9) -> 2241.41 | E10: 2241.41 | F10: =SUM(F4:F9) -> 2353.44 | G10: 2353.44 | H10: 2353.44 | I10: 2353.44 | J10: 2353.44 | K10: 2376.97 | L10: 2376.97 | M10: 2376.97 | N10: 2376.97 | O10: =SUM(C10:N10) -> 28134.87
A11: =+Summary!B11 -> Research Analyst | O11: =SUM(C11:N11) -> 0
A12: 1 | B12: JAMIE JONES | C12: 3841.25 | D12: 3841.25 | E12: 4017.71 | F12: 4066.05 | G12: 4066.05 | H12: 4066.05 | I12: 4066.05 | J12: 4106.71 | K12: 4106.71 | L12: 4312.03 | M12: 4312.03 | N12: 4312.03 | O12: =SUM(C12:N12) -> 49113.92
A13: 2 | O13: 0
A14: 3 | O14: 0
A15: 4 | O15: 0
A16: 5 | O16: 0
O17: 0
A18: Total | C18: =SUM(C12:C17) -> 3841.25 | D18: 3841.25 | E18: 4017.71 | F18: =SUM(F12:F17) -> 4066.05 | G18: 4066.05 | H18: =SUM(H12:H17) -> 4066.05 | I18: 4066.05 | J18: 4106.71 | K18: 4106.71 | L18: 4312.03 | M18: 4312.03 | N18: 4312.03 | O18: 49113.92
A19: =+Summary!B12 -> STEM Laboratory Developer
A20: 1 | B20: Towana Catley - Advisor (50%) | D20: 2036.14 | E20: 2054.18 | F20: 2137.97 | M20: 0 | N20: 0 | O20: =SUM(C20:N20) -> 6228.29
A21: 2 | B21: Aiko Martin 50% (Total) | C21: 2218.14 | D21: 2218.14 | E21: 2218.14 | F21: 2218.14 | G21: 2218.14 | H21: 2218.14 | I21: 2218.14 | J21: 2240.32 | K21: 1206.42 | L21: 0 | M21: 1137.29 | N21: 2240.32 | O21: =SUM(C21:N21) -> 22351.33
A22: 3 | O22: =SUM(C22:N22) -> 0
A23: 4 | O23: =SUM(C23:N23) -> 0
A24: 5 | O24: =SUM(C24:N24) -> 0
A26: Total | C26: =SUM(C20:C25) -> 2218.14 | D26: 4254.28 | E26: 4272.32 | F26: 4356.11 | G26: 2218.14 | H26: 2218.14 | I26: 2218.14 | J26: 2240.32 | K26: 1206.42 | L26: 0 | M26: 1137.29 | N26: 2240.32 | O26: =SUM(C26:N26) -> 28579.62
A27: Project Assistant
A28: 1 | B28: Renee Nicovich | C28: 0 | D28: 0 | E28: 0 | H28: 2333.6 | I28: 3160.24 | J28: 3191.85 | K28: 3191.85 | L28: 3191.85 | M28: 3191.85 | N28: 3191.85 | O28: =SUM(C28:N28) -> 21453.09
A29: 2 | B29: Garcia, Crystal | C29: 1580.12 | D29: 1580.12 | E29: 1580.12 | F29: 1659.12 | G29: 2606.75 | H29: 1659.12 | I29: 1659.12 | J29: 926.84 | K29: 1151.95 | L29: 1151.95 | M29: 1151.95 | N29: 886.12 | O29: =SUM(C29:N29) -> 17593.28
A30: 3 | O30: =SUM(C30:N30) -> 0
A31: 4 | O31: =SUM(C31:N31) -> 0
A32: 5 | O32: =SUM(C32:N32) -> 0
A34: Total | C34: =SUM(C28:C33) -> 1580.12 | D34: =SUM(D28:D33) -> 1580.12 | E34: 1580.12 | F34: =SUM(F28:F33) -> 1659.12 | G34: 2606.75 | H34: 3992.72 | I34: 4819.36 | J34: 4118.69 | K34: 4343.8 | L34: 4343.8 | M34: 4343.8 | N34: 4077.97 | O34: =SUM(C34:N34) -> 39046.37
A36: Hourly
A37: 1 | B37: Science Olympiad Facilties workers | J37: 0 | O37: =SUM(C37:N37) -> 0
A38: 2 | B38: Jamie Contreras S.O. | G38: 557.16 | H38: 0 | I38: 0 | O38: 557.16
A39: 3 | B39: Terry Bowles S.O. | I39: 0 | O39: 0
A40: 4 | B40: ORR,ASHLEY A | I40: 0 | O40: 0
A41: 5 | O41: =SUM(C41:N41) -> 0
O42: =SUM(C42:N42) -> 0
O43: =SUM(C43:N43) -> 0
O44: 0
O45: 0
A46: Total | C46: =SUM(C37:C45) -> 0 | D46: 0 | E46: 0 | F46: 0 | G46: 557.16 | H46: 0 | I46: 0 | J46: 0 | K46: 0 | L46: 0 | M46: 0 | N46: 0 | O46: 557.16
O49: =O10+O18+O26+O34+O46 -> 145431.94

Sheet Student Emp.
A1: 2000 Student Employees | D1: =Summary!F1 -> 2014-2015
C2: October | D2: November | E2: December | F2: January | G2: February | H2: March | I2: April | J2: May | K2: June | L2: July | M2: August | N2: September | O2: Year Total
A3: STEM Program Employees
B4: BARKER,JOSEPH JOHN | O4: =SUM(C4:N4) -> 0
B5: MORRIS,WILLIAM JAMES | O5: =SUM(C5:N5) -> 0
B6: TRUAX,KIRK FORREST | O6: 0
B7: VILLARREAL SALAZAR,LEIDY N | O7: 0
B8: ZAMORA,HENRY LOUIS | O8: 0
B9: MUSGROVE,THOMAS JOSEPH | O9: =SUM(C9:N9) -> 0
B10: JENNE,VICTORIA ROSE | O10: 0
B11: MAHER, AMANDA | O11: 0
O12: 0
O13: 0
B14: Subtotal | O14: =SUM(O4:O13) -> 0
A16: Math Center Student Employees
B17: ADKISSON,APRIL RAINBOW | O17: =SUM(C17:N17) -> 0
B18: ALAS,CARLOS DANIEL | O18: =SUM(C18:N18) -> 0
B19: BAILEY,STEPHANIE DANYELL | O19: =SUM(C19:N19) -> 0
B20: CONTRERAS,JULIEANNA APRIL | O20: 0
B21: GONZALEZ,MICHAEL ANTHONY | O21: 0
B22: HAILAR,LORNA AMSY RINONOS | O22: 0
B23: KAROW-THARA,AMY LEE | O23: 0
B24: KRAEMER,AMY LYNN | O24: 0
B25: NORLING,JESSICA LEIGH | O25: 0
B26: ORTIZ,JORGE MANUEL | O26: 0
B27: RAMIREZ,VICTOR G | O27: 0
B28: REEVES,CHRISTIAN LYNNE | O28: 0
B29: SANCHEZ,GABRIELLA | O29: 0
B30: TAUBE,JACOB ORION | O30: 0
B31: BRAZA,MARY ELIZABETH ROUSE | O31: 0
B32: BROOKES,BRIANNE L | O32: 0
B33: BROOKS,SUSIE KATHLEEN | O33: 0
B34: ESCALERA,ANA LAURA | O34: 0
B35: MAIDEN,JASMINE KOWANNA | O35: 0
B36: MCKAMIE,VIKIEA PORSHAY | O36: =SUM(C36:N36) -> 0
B37: MEITLER,REBECCA JOY | O37: 0
B38: PARKINSON,ELINDA SARAH | O38: 0
B39: STAHL,VALERIE A | O39: 0
B40: WALLACE,TAYLOR TIANA-ROSE | O40: 0
B41: ZEPEDA,REINA INES | O41: 0
O46: 0
A47: Subtotal | C47: =SUM(C17:C46) -> 0 | D47: 0 | E47: 0 | F47: 0 | G47: 0 | H47: 0 | I47: 0 | J47: 0 | K47: 0 | L47: 0 | M47: 0 | N47: 0 | O47: =SUM(C47:N47) -> 0
A48: Writing Center Student Employees | O48: 0
O49: 0
O50: 0
O51: 0
O52: 0
B53: Subtotal | C53: =SUM(C48:C52) -> 0 | D53: =SUM(D49:D52) -> 0 | E53: 0 | F53: 0 | G53: 0 | H53: 0 | I53: 0 | J53: 0 | K53: 0 | L53: 0 | M53: 0 | N53: 0 | O53: 0
A55: General Tutoring Student Employees | O55: =SUM(C55:N55) -> 0
O56: 0
A57: Supplemental Instruction | O57: 0
O58: 0
O59: =SUM(C59:N59) -> 0
O61: 0
O62: 0
O63: 0
B64: Subtotal | C64: =SUM(C56:C63) -> 0 | D64: 0 | E64: 0 | F64: 0 | G64: 0 | H64: 0 | I64: 0 | J64: 0 | K64: 0 | L64: 0 | M64: 0 | N64: 0 | O64: =SUM(C64:N64) -> 0
A65: Event workers
B66: Bryan Garnder | O66: =SUM(C66:N66) -> 0
B67: Adrianna Santos | O67: =SUM(C67:N67) -> 0
B68: CAWAGAS,GREGORY FRANCIS | O68: =SUM(C68:N68) -> 0
B69: CHIME,KENECHUKWU T | O69: 0
B70: COLLINS,BRYAN GLENN | O70: 0
B71: COLLINS,RYAN JO | O71: 0
B72: DUNDEE,ALISA | O72: 0
B73: DUNDEE,CHRISTOPHER WILLIAM | O73: 0
O74: 0
O75: 0
O76: =SUM(C76:N76) -> 0
O77: 0
O78: 0
O79: 0
B89: Subtotal | C89: =SUM(C68:C88) -> 0 | D89: =SUM(D66:D88) -> 0 | E89: 0 | F89: 0 | G89: 0 | H89: 0 | I89: 0 | J89: 0 | K89: 0 | L89: 0 | M89: 0 | N89: 0 | O89: =SUM(C89:N89) -> 0
A93: Total | C93: =C14+C53+C47+C64+C89 -> 0 | D93: =D14+D53+D47+D64+D89 -> 0 | E93: 0 | F93: 0 | G93: 0 | H93: 0 | I93: 0 | J93: 0 | K93: 0 | L93: 0 | M93: 0 | N93: 138492.29

Sheet Benefits
A1: Benefits | DD1: Disregard monthly figures shown in this worksheet. The totals in DB34 and DB70 transfer directly to the benefits expenses lines in the Summary sheet.
C2: October | K2: November | S2: December | AA2: January | AI2: February | AJ2: November | AQ2: March | AR2: December | AY2: April | BG2: May | BO2: June | BW2: July | CE2: August | CM2: September | CU2: YEAR TOTAL | DC2: Total
C3: GI | D3: TSA | E3: STRS | F3: OASDI | G3: MEDI | H3: H&W | I3: SUI | J3: W/C | K3: GI | L3: TSA | M3: STRS | N3: OASDI | O3: MEDI | P3: H&W | Q3: SUI | R3: W/C | S3: GI | T3: TSA | U3: STRS | V3: OASDI | W3: MEDI | X3: H&W | Y3: SUI | Z3: W/C | AA3: GI | AB3: TSA | AC3: STRS | AD3: OASDI | AE3: MEDI | AF3: H&W | AG3: SUI | AH3: W/C | AI3: GI | AJ3: TSA | AK3: STRS | AL3: OASDI | AM3: MEDI | AN3: H&W | AO3: SUI | AP3: W/C | AQ3: GI | AR3: TSA | AS3: STRS | AT3: OASDI | AU3: MEDI | AV3: H&W | AW3: SUI | AX3: W/C | AY3: GI | AZ3: TSA | BA3: STRS | BB3: OASDI | BC3: MEDI | BD3: H&W | BE3: SUI | BF3: W/C | BG3: GI | BH3: TSA | BI3: STRS | BJ3: OASDI | BK3: MEDI | BL3: H&W | BM3: SUI | BN3: W/C | BO3: GI | BP3: TSA | BQ3: STRS | BR3: OASDI | BS3: MEDI | BT3: H&W | BU3: SUI | BV3: W/C | BW3: GI | BX3: TSA | BY3: STRS | BZ3: OASDI | CA3: MEDI | CB3: H&W | CC3: SUI | CD3: W/C | CE3: GI | CF3: TSA | CG3: STRS | CH3: OASDI | CI3: MEDI | CJ3: H&W | CK3: SUI | CL3: W/C | CM3: GI | CN3: TSA | CO3: STRS | CP3: OASDI | CQ3: MEDI | CR3: H&W | CS3: SUI | CT3: W/C | CU3: GI | CV3: TSA | CW3: STRS | CX3: OASDI | CY3: MEDI | CZ3: H&W | DA3: SUI | DB3: W/C
A4: Certificated Employees
B5: Full-Time
A6: 1 | B6: =+'Cert. Sal'!B4 -> Christos Valiotis 100% rls time | C6: ='Cert. Sal'!C4 -> 8530.77 | E6: =(C6-D6)*'Benefit %'!$B$3 -> 703.788525 | G6: =(C6-D6)*'Benefit %'!$B$9 -> 123.696165 | I6: =(C6-D6)*'Benefit %'!$B$13 -> 61.421544 | J6: =(C6-D6)*'Benefit %'!$B$15 -> 188.530017 | K6: ='Cert. Sal'!D4 -> 8530.77 | L6: 0 | M6: =(K6-L6)*'Benefit %'!$B$3 -> 703.788525 | O6: =(K6-L6)*'Benefit %'!$B$9 -> 123.696165 | P6: =H6 -> 0 | Q6: =(K6-L6)*'Benefit %'!$B$13 -> 61.421544 | R6: =(K6-L6)*'Benefit %'!$B$15 -> 188.530017 | S6: ='Cert. Sal'!E4 -> 8530.77 | U6: =(S6-T6)*'Benefit %'!$B$3 -> 703.788525 | W6: =(S6-T6)*'Benefit %'!$B$9 -> 123.696165 | Y6: =(S6-T6)*'Benefit %'!$B$13 -> 61.421544 | Z6: =(S6-T6)*'Benefit %'!$B$15 -> 188.530017 | AA6: ='Cert. Sal'!F4 -> 8530.77 | AC6: =(AA6-AB6)*'Benefit %'!$B$3 -> 703.788525 | AE6: =(AA6-AB6)*'Benefit %'!$B$9 -> 123.696165 | AF6: =+X6 -> 0 | AG6: =(AA6-AB6)*'Benefit %'!$B$13 -> 61.421544 | AH6: =(AA6-AB6)*'Benefit %'!$B$15 -> 188.530017 | AI6: ='Cert. Sal'!G4 -> 8530.77 | AK6: =(AI6-AJ6)*'Benefit %'!$B$3 -> 703.788525 | AM6: =(AI6-AJ6)*'Benefit %'!$B$9 -> 123.696165 | AN6: =AF6 -> 0 | AO6: =(AI6-AJ6)*'Benefit %'!$B$13 -> 61.421544 | AP6: =(AI6-AJ6)*'Benefit %'!$B$15 -> 188.530017 | AQ6: ='Cert. Sal'!H4 -> 8530.77 | AS6: =(AQ6-AR6)*'Benefit %'!$B$3 -> 703.788525 | AU6: =(AQ6-AR6)*'Benefit %'!$B$9 -> 123.696165 | AV6: =AN6 -> 0 | AW6: =(AQ6-AR6)*'Benefit %'!$B$13 -> 61.421544 | AX6: =(AQ6-AR6)*'Benefit %'!$B$15 -> 188.530017 | AY6: ='Cert. Sal'!I4 -> 8530.77 | BA6: =(AY6-AZ6)*'Benefit %'!$B$3 -> 703.788525 | BC6: =(AY6-AZ6)*'Benefit %'!$B$9 -> 123.696165 | BD6: =AV6 -> 0 | BE6: =(AY6-AZ6)*'Benefit %'!$B$13 -> 61.421544 | BF6: =(AY6-AZ6)*'Benefit %'!$B$15 -> 188.530017 | BG6: ='Cert. Sal'!J4 -> 8616.07 | BI6: =(BG6-BH6)*'Benefit %'!$B$3 -> 710.825775 | BK6: =(BG6-BH6)*'Benefit %'!$B$9 -> 124.933015 | BL6: =BD6 -> 0 | BM6: =(BG6-BH6)*'Benefit %'!$B$13 -> 62.035704 | BN6: =(BG6-BH6)*'Benefit %'!$B$15 -> 190.415147 | BO6: ='Cert. Sal'!K4 -> 8616.07 | BQ6: =(BO6-BP6)*'Benefit %'!$B$3 -> 710.825775 | BS6: =(BO6-BP6)*'Benefit %'!$B$9 -> 124.933015 | BT6: =BL6 -> 0 | BU6: =(BO6-BP6)*'Benefit %'!$B$13 -> 62.035704 | BV6: =(BO6-BP6)*'Benefit %'!$B$15 -> 190.415147 | BW6: ='Cert. Sal'!L4 -> 8616.07 | BY6: =(BW6-BX6)*'Benefit %'!$B$3 -> 710.825775 | CA6: =(BW6-BX6)*'Benefit %'!$B$9 -> 124.933015 | CC6: =(BW6-BX6)*'Benefit %'!$B$13 -> 62.035704 | CD6: =(BW6-BX6)*'Benefit %'!$B$15 -> 190.415147 | CE6: ='Cert. Sal'!M4 -> 8616.07 | CG6: =(CE6-CF6)*'Benefit %'!$B$3 -> 710.825775 | CI6: =(CE6-CF6)*'Benefit %'!$B$9 -> 124.933015 | CK6: =(CE6-CF6)*'Benefit %'!$B$13 -> 62.035704 | CL6: =(CE6-CF6)*'Benefit %'!$B$15 -> 190.415147 | CM6: ='Cert. Sal'!N4 -> 24918.16 | CO6: =(CM6-CN6)*'Benefit %'!$B$3 -> 2055.7482 | CQ6: =(CM6-CN6)*'Benefit %'!$B$9 -> 361.31332 | CR6: =BT6 -> 0 | CS6: =(CM6-CN6)*'Benefit %'!$B$13 -> 179.410752 | CT6: =(CM6-CN6)*'Benefit %'!$B$15 -> 550.691336 | CU6: =SUM(C6,K6,S6,AA6,AI6,AQ6,AY6,BG6,BO6,BW6,CE6,CM6) -> 119097.83 | CV6: =SUM(D6,L6,T6,AB6,AJ6,AR6,AZ6,BH6,BP6,BX6,CF6,CN6) -> 0 | CW6: 9802.67 | CY6: 1695.1 | CZ6: 13385.1 | DA6: 58.49 | DB6: 1472.4 | DC6: =SUM(CV6:DB6) -> 26413.76
A7: 2 | B7: =+'Cert. Sal'!B5 -> Jason Bowen | C7: ='Cert. Sal'!C5 -> 7001.03 | E7: =(C7-D7)*'Benefit %'!$B$3 -> 577.584975 | G7: =(C7-D7)*'Benefit %'!$B$9 -> 101.514935 | I7: =(C7-D7)*'Benefit %'!$B$13 -> 50.407416 | J7: =(C7-D7)*'Benefit %'!$B$15 -> 154.722763 | K7: ='Cert. Sal'!D5 -> 7001.03 | M7: =(K7-L7)*'Benefit %'!$B$3 -> 577.584975 | O7: =(K7-L7)*'Benefit %'!$B$9 -> 101.514935 | Q7: =(K7-L7)*'Benefit %'!$B$13 -> 50.407416 | R7: =(K7-L7)*'Benefit %'!$B$15 -> 154.722763 | S7: ='Cert. Sal'!E5 -> 7001.03 | U7: =(S7-T7)*'Benefit %'!$B$3 -> 577.584975 | W7: =(S7-T7)*'Benefit %'!$B$9 -> 101.514935 | Y7: =(S7-T7)*'Benefit %'!$B$13 -> 50.407416 | Z7: =(S7-T7)*'Benefit %'!$B$15 -> 154.722763 | AA7: ='Cert. Sal'!F5 -> 7071.04 | AC7: =(AA7-AB7)*'Benefit %'!$B$3 -> 583.3608 | AE7: =(AA7-AB7)*'Benefit %'!$B$9 -> 102.53008 | AG7: =(AA7-AB7)*'Benefit %'!$B$13 -> 50.911488 | AH7: =(AA7-AB7)*'Benefit %'!$B$15 -> 156.269984 | AI7: ='Cert. Sal'!G5 -> 7071.04 | AK7: =(AI7-AJ7)*'Benefit %'!$B$3 -> 583.3608 | AM7: =(AI7-AJ7)*'Benefit %'!$B$9 -> 102.53008 | AN7: 341.15 | AO7: =(AI7-AJ7)*'Benefit %'!$B$13 -> 50.911488 | AP7: =(AI7-AJ7)*'Benefit %'!$B$15 -> 156.269984 | AQ7: ='Cert. Sal'!H5 -> 7071.04 | AS7: =(AQ7-AR7)*'Benefit %'!$B$3 -> 583.3608 | AU7: =(AQ7-AR7)*'Benefit %'!$B$9 -> 102.53008 | AV7: 341.15 | AW7: =(AQ7-AR7)*'Benefit %'!$B$13 -> 50.911488 | AX7: =(AQ7-AR7)*'Benefit %'!$B$15 -> 156.269984 | AY7: ='Cert. Sal'!I5 -> 7071.04 | BA7: =(AY7-AZ7)*'Benefit %'!$B$3 -> 583.3608 | BC7: =(AY7-AZ7)*'Benefit %'!$B$9 -> 102.53008 | BD7: 341.15 | BE7: =(AY7-AZ7)*'Benefit %'!$B$13 -> 50.911488 | BF7: =(AY7-AZ7)*'Benefit %'!$B$15 -> 156.269984 | BG7: ='Cert. Sal'!J5 -> 7071.04 | BI7: =(BG7-BH7)*'Benefit %'!$B$3 -> 583.3608 | BK7: =(BG7-BH7)*'Benefit %'!$B$9 -> 102.53008 | BL7: 341.15 | BM7: =(BG7-BH7)*'Benefit %'!$B$13 -> 50.911488 | BN7: =(BG7-BH7)*'Benefit %'!$B$15 -> 156.269984 | BO7: ='Cert. Sal'!K5 -> 7071.04 | BQ7: =(BO7-BP7)*'Benefit %'!$B$3 -> 583.3608 | BS7: =(BO7-BP7)*'Benefit %'!$B$9 -> 102.53008 | BT7: 341.15 | BU7: =(BO7-BP7)*'Benefit %'!$B$13 -> 50.911488 | BV7: =(BO7-BP7)*'Benefit %'!$B$15 -> 156.269984 | BW7: ='Cert. Sal'!L5 -> 0 | BY7: =(BW7-BX7)*'Benefit %'!$B$3 -> 0 | CA7: =(BW7-BX7)*'Benefit %'!$B$9 -> 0 | CC7: =(BW7-BX7)*'Benefit %'!$B$13 -> 0 | CD7: =(BW7-BX7)*'Benefit %'!$B$15 -> 0 | CE7: ='Cert. Sal'!M5 -> 0 | CG7: =(CE7-CF7)*'Benefit %'!$B$3 -> 0 | CI7: =(CE7-CF7)*'Benefit %'!$B$9 -> 0 | CJ7: =CB7 -> 0 | CK7: =(CE7-CF7)*'Benefit %'!$B$13 -> 0 | CL7: =(CE7-CF7)*'Benefit %'!$B$15 -> 0 | CM7: ='Cert. Sal'!N5 -> 0 | CO7: =(CM7-CN7)*'Benefit %'!$B$3 -> 0 | CQ7: =(CM7-CN7)*'Benefit %'!$B$9 -> 0 | CR7: 341.15 | CS7: =(CM7-CN7)*'Benefit %'!$B$13 -> 0 | CT7: =(CM7-CN7)*'Benefit %'!$B$15 -> 0 | CU7: =SUM(C7,K7,S7,AA7,AI7,AQ7,AY7,BG7,BO7,BW7,CE7,CM7) -> 63429.33 | CV7: =SUM(D7,L7,T7,AB7,AJ7,AR7,AZ7,BH7,BP7,BX7,CF7,CN7) -> 0 | CW7: 6296.49 | CX7: =SUM(F7,N7,V7,AD7,AL7,AT7,BB7,BJ7,BR7,BZ7,CH7,CP7) -> 0 | CY7: 1086.19 | CZ7: 13385.1 | DA7: 37.45 | DB7: 604.2 | DC7: =SUM(CV7:DB7) -> 21409.43
A8: 3 | B8: =+'Cert. Sal'!B6 -> Jonathan Compton | C8: ='Cert. Sal'!C6 -> 0 | E8: =(C8-D8)*'Benefit %'!$B$3 -> 0 | F8: =(C8-D8)*'Benefit %'!$B$7 -> 0 | G8: =(C8-D8)*'Benefit %'!$B$9 -> 0 | I8: =(C8-D8)*'Benefit %'!$B$13 -> 0 | J8: =(C8-D8)*'Benefit %'!$B$15 -> 0 | K8: ='Cert. Sal'!D6 -> 0 | M8: =(K8-L8)*'Benefit %'!$B$3 -> 0 | N8: =(K8-L8)*'Benefit %'!$B$7 -> 0 | O8: =(K8-L8)*'Benefit %'!$B$9 -> 0 | Q8: =(K8-L8)*'Benefit %'!$B$13 -> 0 | R8: =(K8-L8)*'Benefit %'!$B$15 -> 0 | S8: ='Cert. Sal'!E6 -> 0 | U8: =(S8-T8)*'Benefit %'!$B$3 -> 0 | V8: =(S8-T8)*'Benefit %'!$B$7 -> 0 | W8: =(S8-T8)*'Benefit %'!$B$9 -> 0 | Y8: =(S8-T8)*'Benefit %'!$B$13 -> 0 | Z8: =(S8-T8)*'Benefit %'!$B$15 -> 0 | AA8: ='Cert. Sal'!F6 -> 0 | AC8: =(AA8-AB8)*'Benefit %'!$B$3 -> 0 | AD8: =(AA8-AB8)*'Benefit %'!$B$7 -> 0 | AE8: =(AA8-AB8)*'Benefit %'!$B$9 -> 0 | AG8: =(AA8-AB8)*'Benefit %'!$B$13 -> 0 | AH8: =(AA8-AB8)*'Benefit %'!$B$15 -> 0 | AI8: ='Cert. Sal'!G6 -> 0 | AK8: =(AI8-AJ8)*'Benefit %'!$B$3 -> 0 | AM8: =(AI8-AJ8)*'Benefit %'!$B$9 -> 0 | AN8: =AF8 -> 0 | AO8: =(AI8-AJ8)*'Benefit %'!$B$13 -> 0 | AP8: =(AI8-AJ8)*'Benefit %'!$B$15 -> 0 | AQ8: ='Cert. Sal'!H6 -> 1202.12 | AS8: =(AQ8-AR8)*'Benefit %'!$B$3 -> 99.1749 | AU8: =(AQ8-AR8)*'Benefit %'!$B$9 -> 17.43074 | AV8: =AN8 -> 0 | AW8: =(AQ8-AR8)*'Benefit %'!$B$13 -> 8.655264 | AX8: =(AQ8-AR8)*'Benefit %'!$B$15 -> 26.566852 | AY8: ='Cert. Sal'!I6 -> 1202.12 | BA8: =(AY8-AZ8)*'Benefit %'!$B$3 -> 99.1749 | BC8: =(AY8-AZ8)*'Benefit %'!$B$9 -> 17.43074 | BD8: =AV8 -> 0 | BE8: =(AY8-AZ8)*'Benefit %'!$B$13 -> 8.655264 | BF8: =(AY8-AZ8)*'Benefit %'!$B$15 -> 26.566852 | BG8: ='Cert. Sal'!J6 -> 1202.12 | BI8: =(BG8-BH8)*'Benefit %'!$B$3 -> 99.1749 | BK8: =(BG8-BH8)*'Benefit %'!$B$9 -> 17.43074 | BL8: =BD8 -> 0 | BM8: =(BG8-BH8)*'Benefit %'!$B$13 -> 8.655264 | BN8: =(BG8-BH8)*'Benefit %'!$B$15 -> 26.566852 | BO8: ='Cert. Sal'!K6 -> 1214.14 | BQ8: =(BO8-BP8)*'Benefit %'!$B$3 -> 100.16655 | BS8: =(BO8-BP8)*'Benefit %'!$B$9 -> 17.60503 | BT8: =BL8 -> 0 | BU8: =(BO8-BP8)*'Benefit %'!$B$13 -> 8.741808 | BV8: =(BO8-BP8)*'Benefit %'!$B$15 -> 26.832494 | BW8: ='Cert. Sal'!L6 -> 1214.14 | BY8: =(BW8-BX8)*'Benefit %'!$B$3 -> 100.16655 | BZ8: =(BW8-BX8)*'Benefit %'!$B$7 -> 75.27668 | CA8: =(BW8-BX8)*'Benefit %'!$B$9 -> 17.60503 | CC8: =(BW8-BX8)*'Benefit %'!$B$13 -> 8.741808 | CD8: =(BW8-BX8)*'Benefit %'!$B$15 -> 26.832494 | CE8: ='Cert. Sal'!M6 -> 6013.87 | CG8: =(CE8-CF8)*'Benefit %'!$B$3 -> 496.144275 | CH8: =(CE8-CF8)*'Benefit %'!$B$7 -> 372.85994 | CI8: =(CE8-CF8)*'Benefit %'!$B$9 -> 87.201115 | CJ8: =CB8 -> 0 | CK8: =(CE8-CF8)*'Benefit %'!$B$13 -> 43.299864 | CL8: =(CE8-CF8)*'Benefit %'!$B$15 -> 132.906527 | CM8: ='Cert. Sal'!N6 -> 6013.87 | CO8: =(CM8-CN8)*'Benefit %'!$B$3 -> 496.144275 | CP8: =(CM8-CN8)*'Benefit %'!$B$7 -> 372.85994 | CQ8: =(CM8-CN8)*'Benefit %'!$B$9 -> 87.201115 | CR8: =CJ8 -> 0 | CS8: =(CM8-CN8)*'Benefit %'!$B$13 -> 43.299864 | CT8: =(CM8-CN8)*'Benefit %'!$B$15 -> 132.906527 | CU8: 18062.38 | CV8: 0 | CW8: 5853.52 | CY8: 261.90451 | CZ8: 11932.4 | DA8: 35.02 | DB8: 1383.63 | DC8: 19466.47451
A9: 4 | B9: BROWN,STEVEN R | C9: ='Cert. Sal'!C7 -> 0 | E9: =(C9-D9)*'Benefit %'!$B$3 -> 0 | F9: =(C9-D9)*'Benefit %'!$B$7 -> 0 | G9: =(C9-D9)*'Benefit %'!$B$9 -> 0 | I9: =(C9-D9)*'Benefit %'!$B$13 -> 0 | J9: =(C9-D9)*'Benefit %'!$B$15 -> 0 | K9: ='Cert. Sal'!D7 -> 0 | M9: =(K9-L9)*'Benefit %'!$B$3 -> 0 | N9: =(K9-L9)*'Benefit %'!$B$7 -> 0 | O9: =(K9-L9)*'Benefit %'!$B$9 -> 0 | Q9: =(K9-L9)*'Benefit %'!$B$13 -> 0 | R9: =(K9-L9)*'Benefit %'!$B$15 -> 0 | S9: ='Cert. Sal'!E7 -> 0 | U9: =(S9-T9)*'Benefit %'!$B$3 -> 0 | V9: =(S9-T9)*'Benefit %'!$B$7 -> 0 | W9: =(S9-T9)*'Benefit %'!$B$9 -> 0 | Y9: =(S9-T9)*'Benefit %'!$B$13 -> 0 | Z9: =(S9-T9)*'Benefit %'!$B$15 -> 0 | AA9: ='Cert. Sal'!F7 -> 0 | AC9: =(AA9-AB9)*'Benefit %'!$B$3 -> 0 | AD9: =(AA9-AB9)*'Benefit %'!$B$7 -> 0 | AE9: =(AA9-AB9)*'Benefit %'!$B$9 -> 0 | AG9: =(AA9-AB9)*'Benefit %'!$B$13 -> 0 | AH9: =(AA9-AB9)*'Benefit %'!$B$15 -> 0 | AI9: ='Cert. Sal'!G7 -> 0 | AK9: =(AI9-AJ9)*'Benefit %'!$B$3 -> 0 | AL9: =(AI9-AJ9)*'Benefit %'!$B$7 -> 0 | AM9: =(AI9-AJ9)*'Benefit %'!$B$9 -> 0 | AN9: =AF9 -> 0 | AO9: =(AI9-AJ9)*'Benefit %'!$B$13 -> 0 | AP9: =(AI9-AJ9)*'Benefit %'!$B$15 -> 0 | AQ9: ='Cert. Sal'!H7 -> 0 | AS9: =(AQ9-AR9)*'Benefit %'!$B$3 -> 0 | AT9: =(AQ9-AR9)*'Benefit %'!$B$7 -> 0 | AU9: =(AQ9-AR9)*'Benefit %'!$B$9 -> 0 | AV9: =AN9 -> 0 | AW9: =(AQ9-AR9)*'Benefit %'!$B$13 -> 0 | AX9: =(AQ9-AR9)*'Benefit %'!$B$15 -> 0 | AY9: ='Cert. Sal'!I7 -> 0 | BA9: =(AY9-AZ9)*'Benefit %'!$B$3 -> 0 | BB9: =(AY9-AZ9)*'Benefit %'!$B$7 -> 0 | BC9: =(AY9-AZ9)*'Benefit %'!$B$9 -> 0 | BD9: =AV9 -> 0 | BE9: =(AY9-AZ9)*'Benefit %'!$B$13 -> 0 | BF9: =(AY9-AZ9)*'Benefit %'!$B$15 -> 0 | BG9: ='Cert. Sal'!J7 -> 0 | BI9: =(BG9-BH9)*'Benefit %'!$B$3 -> 0 | BJ9: =(BG9-BH9)*'Benefit %'!$B$7 -> 0 | BK9: =(BG9-BH9)*'Benefit %'!$B$9 -> 0 | BL9: =BD9 -> 0 | BM9: =(BG9-BH9)*'Benefit %'!$B$13 -> 0 | BN9: =(BG9-BH9)*'Benefit %'!$B$15 -> 0 | BO9: ='Cert. Sal'!K7 -> 0 | BQ9: =(BO9-BP9)*'Benefit %'!$B$3 -> 0 | BR9: =(BO9-BP9)*'Benefit %'!$B$7 -> 0 | BS9: =(BO9-BP9)*'Benefit %'!$B$9 -> 0 | BT9: =BL9 -> 0 | BU9: =(BO9-BP9)*'Benefit %'!$B$13 -> 0 | BV9: =(BO9-BP9)*'Benefit %'!$B$15 -> 0 | BW9: ='Cert. Sal'!L7 -> 1803.49 | BY9: =(BW9-BX9)*'Benefit %'!$B$3 -> 148.787925 | BZ9: =(BW9-BX9)*'Benefit %'!$B$7 -> 111.81638 | CA9: =(BW9-BX9)*'Benefit %'!$B$9 -> 26.150605 | CB9: =BT9 -> 0 | CC9: =(BW9-BX9)*'Benefit %'!$B$13 -> 12.985128 | CD9: =(BW9-BX9)*'Benefit %'!$B$15 -> 39.857129 | CE9: ='Cert. Sal'!M7 -> 3606.18 | CG9: =(CE9-CF9)*'Benefit %'!$B$3 -> 297.50985 | CH9: =(CE9-CF9)*'Benefit %'!$B$7 -> 223.58316 | CI9: =(CE9-CF9)*'Benefit %'!$B$9 -> 52.28961 | CJ9: =CB9 -> 0 | CK9: =(CE9-CF9)*'Benefit %'!$B$13 -> 25.964496 | CL9: =(CE9-CF9)*'Benefit %'!$B$15 -> 79.696578 | CM9: ='Cert. Sal'!N7 -> 3606.18 | CO9: =(CM9-CN9)*'Benefit %'!$B$3 -> 297.50985 | CP9: =(CM9-CN9)*'Benefit %'!$B$7 -> 223.58316 | CQ9: =(CM9-CN9)*'Benefit %'!$B$9 -> 52.28961 | CR9: =CJ9 -> 0 | CS9: =(CM9-CN9)*'Benefit %'!$B$13 -> 25.964496 | CT9: =(CM9-CN9)*'Benefit %'!$B$15 -> 79.696578 | CU9: 9015.85 | CV9: 306.9 | CW9: 0 | CX9: 0 | CY9: 130.729825 | CZ9: 0 | DA9: 35.2 | DB9: 115.12 | DC9: 587.949825
A10: 5 | B10: ENGELEN,KATHERINE R | C10: ='Cert. Sal'!C8 -> 0 | E10: =(C10-D10)*'Benefit %'!$B$3 -> 0 | F10: =(C10-D10)*'Benefit %'!$B$7 -> 0 | G10: =(C10-D10)*'Benefit %'!$B$9 -> 0 | I10: =(C10-D10)*'Benefit %'!$B$13 -> 0 | J10: =(C10-D10)*'Benefit %'!$B$15 -> 0 | K10: ='Cert. Sal'!D8 -> 0 | M10: =(K10-L10)*'Benefit %'!$B$3 -> 0 | N10: =(K10-L10)*'Benefit %'!$B$7 -> 0 | O10: =(K10-L10)*'Benefit %'!$B$9 -> 0 | Q10: =(K10-L10)*'Benefit %'!$B$13 -> 0 | R10: =(K10-L10)*'Benefit %'!$B$15 -> 0 | S10: ='Cert. Sal'!E8 -> 0 | U10: =(S10-T10)*'Benefit %'!$B$3 -> 0 | V10: =(S10-T10)*'Benefit %'!$B$7 -> 0 | W10: =(S10-T10)*'Benefit %'!$B$9 -> 0 | Y10: =(S10-T10)*'Benefit %'!$B$13 -> 0 | Z10: =(S10-T10)*'Benefit %'!$B$15 -> 0 | AA10: ='Cert. Sal'!F8 -> 0 | AC10: =(AA10-AB10)*'Benefit %'!$B$3 -> 0 | AD10: =(AA10-AB10)*'Benefit %'!$B$7 -> 0 | AE10: =(AA10-AB10)*'Benefit %'!$B$9 -> 0 | AG10: =(AA10-AB10)*'Benefit %'!$B$13 -> 0 | AH10: =(AA10-AB10)*'Benefit %'!$B$15 -> 0 | AI10: ='Cert. Sal'!G8 -> 0 | AK10: =(AI10-AJ10)*'Benefit %'!$B$3 -> 0 | AL10: =(AI10-AJ10)*'Benefit %'!$B$7 -> 0 | AM10: =(AI10-AJ10)*'Benefit %'!$B$9 -> 0 | AN10: =AF10 -> 0 | AO10: =(AI10-AJ10)*'Benefit %'!$B$13 -> 0 | AP10: =(AI10-AJ10)*'Benefit %'!$B$15 -> 0 | AQ10: ='Cert. Sal'!H8 -> 3160.87 | AS10: =(AQ10-AR10)*'Benefit %'!$B$3 -> 260.771775 | AT10: =(AQ10-AR10)*'Benefit %'!$B$7 -> 195.97394 | AU10: =(AQ10-AR10)*'Benefit %'!$B$9 -> 45.832615 | AV10: =AN10 -> 0 | AW10: =(AQ10-AR10)*'Benefit %'!$B$13 -> 22.758264 | AX10: =(AQ10-AR10)*'Benefit %'!$B$15 -> 69.855227 | AY10: ='Cert. Sal'!I8 -> 3160.87 | BA10: =(AY10-AZ10)*'Benefit %'!$B$3 -> 260.771775 | BB10: =(AY10-AZ10)*'Benefit %'!$B$7 -> 195.97394 | BC10: =(AY10-AZ10)*'Benefit %'!$B$9 -> 45.832615 | BD10: =AV10 -> 0 | BE10: =(AY10-AZ10)*'Benefit %'!$B$13 -> 22.758264 | BF10: =(AY10-AZ10)*'Benefit %'!$B$15 -> 69.855227 | BG10: ='Cert. Sal'!J8 -> 3160.87 | BI10: =(BG10-BH10)*'Benefit %'!$B$3 -> 260.771775 | BJ10: =(BG10-BH10)*'Benefit %'!$B$7 -> 195.97394 | BK10: =(BG10-BH10)*'Benefit %'!$B$9 -> 45.832615 | BL10: =BD10 -> 0 | BM10: =(BG10-BH10)*'Benefit %'!$B$13 -> 22.758264 | BN10: =(BG10-BH10)*'Benefit %'!$B$15 -> 69.855227 | BO10: ='Cert. Sal'!K8 -> 3192.48 | BQ10: =(BO10-BP10)*'Benefit %'!$B$3 -> 263.3796 | BR10: =(BO10-BP10)*'Benefit %'!$B$7 -> 197.93376 | BS10: =(BO10-BP10)*'Benefit %'!$B$9 -> 46.29096 | BT10: =BL10 -> 0 | BU10: =(BO10-BP10)*'Benefit %'!$B$13 -> 22.985856 | BV10: =(BO10-BP10)*'Benefit %'!$B$15 -> 70.553808 | BW10: ='Cert. Sal'!L8 -> 3192.48 | BY10: =(BW10-BX10)*'Benefit %'!$B$3 -> 263.3796 | BZ10: =(BW10-BX10)*'Benefit %'!$B$7 -> 197.93376 | CA10: =(BW10-BX10)*'Benefit %'!$B$9 -> 46.29096 | CB10: =BT10 -> 0 | CC10: =(BW10-BX10)*'Benefit %'!$B$13 -> 22.985856 | CD10: =(BW10-BX10)*'Benefit %'!$B$15 -> 70.553808 | CE10: ='Cert. Sal'!M8 -> 2560.74 | CG10: =(CE10-CF10)*'Benefit %'!$B$3 -> 211.26105 | CH10: =(CE10-CF10)*'Benefit %'!$B$7 -> 158.76588 | CI10: =(CE10-CF10)*'Benefit %'!$B$9 -> 37.13073 | CJ10: =CB10 -> 0 | CK10: =(CE10-CF10)*'Benefit %'!$B$13 -> 18.437328 | CL10: =(CE10-CF10)*'Benefit %'!$B$15 -> 56.592354 | CM10: ='Cert. Sal'!N8 -> 2560.74 | CO10: =(CM10-CN10)*'Benefit %'!$B$3 -> 211.26105 | CP10: =(CM10-CN10)*'Benefit %'!$B$7 -> 158.76588 | CQ10: =(CM10-CN10)*'Benefit %'!$B$9 -> 37.13073 | CR10: =CJ10 -> 0 | CS10: =(CM10-CN10)*'Benefit %'!$B$13 -> 18.437328 | CT10: =(CM10-CN10)*'Benefit %'!$B$15 -> 56.592354 | CU10: 20989.05 | CV10: 0 | CW10: 249.4 | CX10: 0 | CY10: 304.341225 | CZ10: 0 | DA10: 1.4 | DB10: 52.54 | DC10: 607.681225
A11: 6 | B11: GORDI,TOORAJ | C11: ='Cert. Sal'!C9 -> 0 | CU11: 3385.2 | CW11: 300.61 | CY11: 49.09 | DA11: 1.69 | DB11: 63.37 | DC11: 414.76
A12: 7 | B12: NISANI,ZIA | CU12: 4073.52 | CW12: 361.73 | CY12: 59.07 | DA12: 2.04 | DB12: 76.26 | DC12: 499.1
A13: 8 | B13: SCHROER,ALEXANDRA G | CU13: 4073.52 | CW13: 361.73 | CY13: 59.07 | DA13: 2.04 | DB13: 76.26 | DC13: 499.1
A14: 9 | B14: ECHEVERRIA,LUIS M | CU14: 84.63 | CW14: 6.98 | CY14: 1.23 | DA14: 0.04 | DB14: 1.67 | DC14: 9.92
DC15: 0
B16: Full-Time Totals | C16: =SUM(C6:C15) -> 15531.8 | D16: 0 | E16: 1281.3735 | F16: 0 | G16: 225.2111 | H16: 0 | I16: 111.82896 | J16: 343.25278 | K16: 15531.8 | L16: 0 | M16: =SUM(M6:M15) -> 1281.3735 | N16: 0 | O16: 225.2111 | P16: 0 | Q16: 111.82896 | R16: 343.25278 | S16: =SUM(S6:S10) -> 15531.8 | T16: =SUM(T6:T10) -> 0 | U16: 1281.3735 | V16: 0 | W16: 225.2111 | X16: 0 | Y16: 111.82896 | Z16: 343.25278 | AA16: =SUM(AA6:AA15) -> 15601.81 | AB16: =SUM(AB6:AB15) -> 0 | AC16: 1287.149325 | AD16: 0 | AE16: 226.226245 | AF16: 0 | AG16: 112.333032 | AH16: 344.800001 | AI16: =SUM(AI6:AI15) -> 15601.81 | AJ16: =SUM(AJ6:AJ15) -> 0 | AK16: 1287.149325 | AL16: 0 | AM16: 226.226245 | AN16: 341.15 | AO16: 112.333032 | AP16: =SUM(AP6:AP15) -> 344.800001 | AQ16: =SUM(AQ6:AQ15) -> 19964.8 | AR16: =SUM(AR6:AR15) -> 0 | AS16: 1647.096 | AT16: 195.97394 | AU16: 289.4896 | AV16: 341.15 | AW16: 143.74656 | AX16: 441.22208 | AY16: =SUM(AY6:AY15) -> 19964.8 | AZ16: =SUM(AZ6:AZ15) -> 0 | BA16: 1647.096 | BB16: 195.97394 | BC16: 289.4896 | BD16: 341.15 | BE16: 143.74656 | BF16: 441.22208 | BG16: =SUM(BG6:BG15) -> 20050.1 | BH16: =SUM(BH6:BH15) -> 0 | BI16: 1654.13325 | BJ16: 195.97394 | BK16: 290.72645 | BL16: 341.15 | BM16: 144.36072 | BN16: 443.10721 | BO16: =SUM(BO6:BO15) -> 20093.73 | BP16: =SUM(BP6:BP15) -> 0 | BQ16: 1657.732725 | BR16: 197.93376 | BS16: 291.359085 | BT16: 341.15 | BU16: 144.674856 | BV16: 444.071433 | BW16: =SUM(BW6:BW15) -> 14826.18 | BX16: =SUM(BX6:BX15) -> 0 | BY16: 1223.15985 | BZ16: 385.02682 | CA16: 214.97961 | CB16: 0 | CC16: 106.748496 | CD16: 327.658578 | CE16: =SUM(CE6:CE15) -> 20796.86 | CF16: =SUM(CF6:CF15) -> 0 | CG16: 1715.74095 | CH16: 755.20898 | CI16: 301.55447 | CJ16: 0 | CK16: 149.737392 | CL16: 459.610606 | CM16: =SUM(CM6:CM15) -> 37098.95 | CN16: =SUM(CN6:CN15) -> 0 | CO16: 3060.663375 | CP16: 755.20898 | CQ16: 537.934775 | CR16: 341.15 | CS16: 267.11244 | CT16: 819.886795 | CU16: =SUM(CU6:CU15) -> 242211.31 | CV16: =SUM(CV6:CV15) -> 306.9 | CW16: 23233.13 | CX16: 0 | CY16: 3646.72556 | CZ16: 38702.6 | DA16: 173.37 | DB16: 3845.45
B17: Monthly Benefit Total | I17: =SUM(E16:J16) -> 1961.66634 | Q17: =SUM(M16:R16) -> 1961.66634 | Y17: =SUM(U16:Z16) -> 1961.66634 | AG17: =SUM(AC16:AH16) -> 1970.508603 | AO17: =SUM(AK16:AP16) -> 2311.658603 | AW17: =SUM(AS16:AX16) -> 3058.67818 | BE17: =SUM(BA16:BF16) -> 3058.67818 | BM17: =SUM(BI16:BN16) -> 3069.45157 | BU17: =SUM(BQ16:BV16) -> 3076.921859 | CC17: =SUM(BY16:CD16) -> 2257.573354 | CK17: =SUM(CG16:CL16) -> 3381.852398 | CS17: =SUM(CO16:CT16) -> 5781.956365 | CW17: Full-Time Yearly Benefits | DB17: =SUM(CV16:DB16) -> 69908.17556
B18: Part-Time
A19: 1 | C19: ='Cert. Sal'!C16 -> 0 | E19: 0 | F19: =(C19-D19)*'Benefit %'!$B$7 -> 0 | G19: =(C19-D19)*'Benefit %'!$B$9 -> 0 | I19: =(C19-D19)*'Benefit %'!$B$13 -> 0 | J19: =(C19-D19)*'Benefit %'!$B$15 -> 0 | K19: ='Cert. Sal'!D16 -> 0 | M19: 0 | N19: =(K19-L19)*'Benefit %'!$B$7 -> 0 | O19: =(K19-L19)*'Benefit %'!$B$9 -> 0 | P19: 0 | Q19: =(K19-L19)*'Benefit %'!$B$13 -> 0 | R19: =(K19-L19)*'Benefit %'!$B$15 -> 0 | S19: ='Cert. Sal'!E16 -> 0 | U19: 0 | V19: =(S19-T19)*'Benefit %'!$B$7 -> 0 | W19: =(S19-T19)*'Benefit %'!$B$9 -> 0 | Y19: =(S19-T19)*'Benefit %'!$B$13 -> 0 | Z19: =(S19-T19)*'Benefit %'!$B$15 -> 0 | AA19: ='Cert. Sal'!F16 -> 0 | AC19: 0 | AD19: =(AA19-AB19)*'Benefit %'!$B$7 -> 0 | AE19: =(AA19-AB19)*'Benefit %'!$B$9 -> 0 | AG19: =(AA19-AB19)*'Benefit %'!$B$13 -> 0 | AH19: =(AA19-AB19)*'Benefit %'!$B$15 -> 0 | AI19: ='Cert. Sal'!G16 -> 0 | AK19: 0 | AL19: =(AI19-AJ19)*'Benefit %'!$B$7 -> 0 | AM19: =(AI19-AJ19)*'Benefit %'!$B$9 -> 0 | AO19: =(AI19-AJ19)*'Benefit %'!$B$13 -> 0 | AP19: =(AI19-AJ19)*'Benefit %'!$B$15 -> 0 | AQ19: ='Cert. Sal'!H16 -> 0 | AS19: 0 | AT19: =(AQ19-AR19)*'Benefit %'!$B$7 -> 0 | AU19: =(AQ19-AR19)*'Benefit %'!$B$9 -> 0 | AW19: =(AQ19-AR19)*'Benefit %'!$B$13 -> 0 | AX19: =(AQ19-AR19)*'Benefit %'!$B$15 -> 0 | AY19: ='Cert. Sal'!I16 -> 0 | BA19: 0 | BB19: =(AY19-AZ19)*'Benefit %'!$B$7 -> 0 | BC19: =(AY19-AZ19)*'Benefit %'!$B$9 -> 0 | BE19: =(AY19-AZ19)*'Benefit %'!$B$13 -> 0 | BF19: =(AY19-AZ19)*'Benefit %'!$B$15 -> 0 | BG19: ='Cert. Sal'!J16 -> 0 | BI19: 0 | BJ19: =(BG19-BH19)*'Benefit %'!$B$7 -> 0 | BK19: =(BG19-BH19)*'Benefit %'!$B$9 -> 0 | BL19: =BD19 -> 0 | BM19: =(BG19-BH19)*'Benefit %'!$B$13 -> 0 | BN19: =(BG19-BH19)*'Benefit %'!$B$15 -> 0 | BO19: ='Cert. Sal'!K16 -> 0 | BQ19: 0 | BR19: =(BO19-BP19)*'Benefit %'!$B$7 -> 0 | BS19: =(BO19-BP19)*'Benefit %'!$B$9 -> 0 | BT19: =BL19 -> 0 | BU19: =(BO19-BP19)*'Benefit %'!$B$13 -> 0 | BV19: =(BO19-BP19)*'Benefit %'!$B$15 -> 0 | BW19: ='Cert. Sal'!L16 -> 0 | BY19: =(BW19-BX19)*'Benefit %'!$B$3 -> 0 | BZ19: =(BW19-BX19)*'Benefit %'!$B$7 -> 0 | CA19: =(BW19-BX19)*'Benefit %'!$B$9 -> 0 | CB19: =BT19 -> 0 | CC19: =(BW19-BX19)*'Benefit %'!$B$13 -> 0 | CD19: =(BW19-BX19)*'Benefit %'!$B$15 -> 0 | CE19: ='Cert. Sal'!M16 -> 0 | CG19: 0 | CH19: =(CE19-CF19)*'Benefit %'!$B$7 -> 0 | CI19: =(CE19-CF19)*'Benefit %'!$B$9 -> 0 | CJ19: =CB19 -> 0 | CK19: =(CE19-CF19)*'Benefit %'!$B$13 -> 0 | CL19: =(CE19-CF19)*'Benefit %'!$B$15 -> 0 | CM19: ='Cert. Sal'!N16 -> 0 | CO19: 0 | CP19: =(CM19-CN19)*'Benefit %'!$B$7 -> 0 | CQ19: =(CM19-CN19)*'Benefit %'!$B$9 -> 0 | CR19: 0 | CS19: =(CM19-CN19)*'Benefit %'!$B$13 -> 0 | CT19: =(CM19-CN19)*'Benefit %'!$B$15 -> 0 | CU19: 0 | CV19: =SUM(D19,L19,T19,AB19,AJ19,AR19,AZ19,BH19,BP19,BX19,CF19,CN19) -> 0 | CW19: 0 | CX19: 0 | CY19: 0 | CZ19: 0 | DA19: 0 | DB19: 0
A20: 2 | B20: =+'Cert. Sal'!B17 -> 0 | C20: ='Cert. Sal'!C17 -> 0 | E20: =(C20-D20)*'Benefit %'!$B$3 -> 0 | F20: =(C20-D20)*'Benefit %'!$B$7 -> 0 | G20: =(C20-D20)*'Benefit %'!$B$9 -> 0 | H20: =(C20-D20)*'Benefit %'!D11 -> 0 | I20: =(C20-D20)*'Benefit %'!$B$13 -> 0 | J20: =(C20-D20)*'Benefit %'!$B$15 -> 0 | K20: ='Cert. Sal'!D17 -> 0 | M20: =(K20-L20)*'Benefit %'!$B$3 -> 0 | N20: =(K20-L20)*'Benefit %'!$B$7 -> 0 | O20: =(K20-L20)*'Benefit %'!$B$9 -> 0 | P20: =(K20-L20)*'Benefit %'!D11 -> 0 | Q20: =(K20-L20)*'Benefit %'!$B$13 -> 0 | R20: =(K20-L20)*'Benefit %'!$B$15 -> 0 | S20: ='Cert. Sal'!E17 -> 0 | U20: =(S20-T20)*'Benefit %'!$B$3 -> 0 | V20: =(S20-T20)*'Benefit %'!$B$7 -> 0 | W20: =(S20-T20)*'Benefit %'!$B$9 -> 0 | X20: =P20 -> 0 | Y20: =(S20-T20)*'Benefit %'!$B$13 -> 0 | Z20: =(S20-T20)*'Benefit %'!$B$15 -> 0 | AA20: ='Cert. Sal'!F17 -> 0 | AC20: =(AA20-AB20)*'Benefit %'!$B$3 -> 0 | AD20: =(AA20-AB20)*'Benefit %'!$B$7 -> 0 | AE20: =(AA20-AB20)*'Benefit %'!$B$9 -> 0 | AF20: =X20 -> 0 | AG20: =(AA20-AB20)*'Benefit %'!$B$13 -> 0 | AH20: =(AA20-AB20)*'Benefit %'!$B$15 -> 0 | AI20: ='Cert. Sal'!G17 -> 0 | AK20: =(AI20-AJ20)*'Benefit %'!$B$3 -> 0 | AL20: =(AI20-AJ20)*'Benefit %'!$B$7 -> 0 | AM20: =(AI20-AJ20)*'Benefit %'!$B$9 -> 0 | AN20: =AF20 -> 0 | AO20: =(AI20-AJ20)*'Benefit %'!$B$13 -> 0 | AP20: =(AI20-AJ20)*'Benefit %'!$B$15 -> 0 | AQ20: ='Cert. Sal'!H17 -> 0 | AS20: =(AQ20-AR20)*'Benefit %'!$B$3 -> 0 | AT20: =(AQ20-AR20)*'Benefit %'!$B$7 -> 0 | AU20: =(AQ20-AR20)*'Benefit %'!$B$9 -> 0 | AV20: =AN20 -> 0 | AW20: =(AQ20-AR20)*'Benefit %'!$B$13 -> 0 | AX20: =(AQ20-AR20)*'Benefit %'!$B$15 -> 0 | AY20: ='Cert. Sal'!I17 -> 0 | BA20: =(AY20-AZ20)*'Benefit %'!$B$3 -> 0 | BB20: =(AY20-AZ20)*'Benefit %'!$B$7 -> 0 | BC20: =(AY20-AZ20)*'Benefit %'!$B$9 -> 0 | BD20: =AV20 -> 0 | BE20: =(AY20-AZ20)*'Benefit %'!$B$13 -> 0 | BF20: =(AY20-AZ20)*'Benefit %'!$B$15 -> 0 | BG20: ='Cert. Sal'!J17 -> 0 | BI20: =(BG20-BH20)*'Benefit %'!$B$3 -> 0 | BJ20: =(BG20-BH20)*'Benefit %'!$B$7 -> 0 | BK20: =(BG20-BH20)*'Benefit %'!$B$9 -> 0 | BL20: =BD20 -> 0 | BM20: =(BG20-BH20)*'Benefit %'!$B$13 -> 0 | BN20: =(BG20-BH20)*'Benefit %'!$B$15 -> 0 | BO20: ='Cert. Sal'!K17 -> 0 | BQ20: =(BO20-BP20)*'Benefit %'!$B$3 -> 0 | BR20: =(BO20-BP20)*'Benefit %'!$B$7 -> 0 | BS20: =(BO20-BP20)*'Benefit %'!$B$9 -> 0 | BT20: =BL20 -> 0 | BU20: =(BO20-BP20)*'Benefit %'!$B$13 -> 0 | BV20: =(BO20-BP20)*'Benefit %'!$B$15 -> 0 | BW20: ='Cert. Sal'!L17 -> 0 | BY20: =(BW20-BX20)*'Benefit %'!$B$3 -> 0 | BZ20: =(BW20-BX20)*'Benefit %'!$B$7 -> 0 | CA20: =(BW20-BX20)*'Benefit %'!$B$9 -> 0 | CC20: =(BW20-BX20)*'Benefit %'!$B$13 -> 0 | CD20: =(BW20-BX20)*'Benefit %'!$B$15 -> 0 | CE20: ='Cert. Sal'!M17 -> 0 | CG20: =(CE20-CF20)*'Benefit %'!$B$3 -> 0 | CH20: =(CE20-CF20)*'Benefit %'!$B$7 -> 0 | CI20: =(CE20-CF20)*'Benefit %'!$B$9 -> 0 | CK20: =(CE20-CF20)*'Benefit %'!$B$13 -> 0 | CL20: =(CE20-CF20)*'Benefit %'!$B$15 -> 0 | CM20: ='Cert. Sal'!N17 -> 0 | CO20: =(CM20-CN20)*'Benefit %'!$B$3 -> 0 | CP20: =(CM20-CN20)*'Benefit %'!$B$7 -> 0 | CQ20: =(CM20-CN20)*'Benefit %'!$B$9 -> 0 | CR20: =BT20 -> 0 | CS20: =(CM20-CN20)*'Benefit %'!$B$13 -> 0 | CT20: =(CM20-CN20)*'Benefit %'!$B$15 -> 0 | CU20: 0 | CV20: 0 | DC20: =SUM(CW20:DB20) -> 0
A21: 3 | C21: ='Cert. Sal'!C18 -> 0 | E21: =(C21-D21)*'Benefit %'!$B$3 -> 0 | F21: =(C21-D21)*'Benefit %'!$B$7 -> 0 | G21: =(C21-D21)*'Benefit %'!$B$9 -> 0 | I21: =(C21-D21)*'Benefit %'!$B$13 -> 0 | J21: =(C21-D21)*'Benefit %'!$B$15 -> 0 | K21: ='Cert. Sal'!D18 -> 0 | M21: =(K21-L21)*'Benefit %'!$B$3 -> 0 | N21: =(K21-L21)*'Benefit %'!$B$7 -> 0 | O21: =(K21-L21)*'Benefit %'!$B$9 -> 0 | Q21: =(K21-L21)*'Benefit %'!$B$13 -> 0 | R21: =(K21-L21)*'Benefit %'!$B$15 -> 0 | S21: ='Cert. Sal'!E18 -> 0 | U21: =(S21-T21)*'Benefit %'!$B$3 -> 0 | V21: =(S21-T21)*'Benefit %'!$B$7 -> 0 | W21: =(S21-T21)*'Benefit %'!$B$9 -> 0 | Y21: =(S21-T21)*'Benefit %'!$B$13 -> 0 | Z21: =(S21-T21)*'Benefit %'!$B$15 -> 0 | AA21: ='Cert. Sal'!F18 -> 0 | AC21: =(AA21-AB21)*'Benefit %'!$B$3 -> 0 | AD21: =(AA21-AB21)*'Benefit %'!$B$7 -> 0 | AE21: =(AA21-AB21)*'Benefit %'!$B$9 -> 0 | AG21: =(AA21-AB21)*'Benefit %'!$B$13 -> 0 | AH21: =(AA21-AB21)*'Benefit %'!$B$15 -> 0 | AI21: ='Cert. Sal'!G18 -> 0 | AK21: =(AI21-AJ21)*'Benefit %'!$B$3 -> 0 | AL21: =(AI21-AJ21)*'Benefit %'!$B$7 -> 0 | AM21: =(AI21-AJ21)*'Benefit %'!$B$9 -> 0 | AN21: =AF21 -> 0 | AO21: =(AI21-AJ21)*'Benefit %'!$B$13 -> 0 | AP21: =(AI21-AJ21)*'Benefit %'!$B$15 -> 0 | AQ21: ='Cert. Sal'!H18 -> 0 | AS21: =(AQ21-AR21)*'Benefit %'!$B$3 -> 0 | AT21: =(AQ21-AR21)*'Benefit %'!$B$7 -> 0 | AU21: =(AQ21-AR21)*'Benefit %'!$B$9 -> 0 | AV21: =AN21 -> 0 | AW21: =(AQ21-AR21)*'Benefit %'!$B$13 -> 0 | AX21: =(AQ21-AR21)*'Benefit %'!$B$15 -> 0 | AY21: ='Cert. Sal'!I18 -> 0 | BA21: =(AY21-AZ21)*'Benefit %'!$B$3 -> 0 | BB21: =(AY21-AZ21)*'Benefit %'!$B$7 -> 0 | BC21: =(AY21-AZ21)*'Benefit %'!$B$9 -> 0 | BD21: =AV21 -> 0 | BE21: =(AY21-AZ21)*'Benefit %'!$B$13 -> 0 | BF21: =(AY21-AZ21)*'Benefit %'!$B$15 -> 0 | BG21: ='Cert. Sal'!J18 -> 0 | BI21: =(BG21-BH21)*'Benefit %'!$B$3 -> 0 | BJ21: =(BG21-BH21)*'Benefit %'!$B$7 -> 0 | BK21: =(BG21-BH21)*'Benefit %'!$B$9 -> 0 | BL21: =BD21 -> 0 | BM21: =(BG21-BH21)*'Benefit %'!$B$13 -> 0 | BN21: =(BG21-BH21)*'Benefit %'!$B$15 -> 0 | BO21: ='Cert. Sal'!K18 -> 0 | BQ21: =(BO21-BP21)*'Benefit %'!$B$3 -> 0 | BR21: =(BO21-BP21)*'Benefit %'!$B$7 -> 0 | BS21: =(BO21-BP21)*'Benefit %'!$B$9 -> 0 | BT21: =BL21 -> 0 | BU21: =(BO21-BP21)*'Benefit %'!$B$13 -> 0 | BV21: =(BO21-BP21)*'Benefit %'!$B$15 -> 0 | BW21: ='Cert. Sal'!L18 -> 0 | BY21: =(BW21-BX21)*'Benefit %'!$B$3 -> 0 | BZ21: =(BW21-BX21)*'Benefit %'!$B$7 -> 0 | CA21: =(BW21-BX21)*'Benefit %'!$B$9 -> 0 | CB21: =BT21 -> 0 | CC21: =(BW21-BX21)*'Benefit %'!$B$13 -> 0 | CD21: =(BW21-BX21)*'Benefit %'!$B$15 -> 0 | CE21: ='Cert. Sal'!M18 -> 0 | CG21: =(CE21-CF21)*'Benefit %'!$B$3 -> 0 | CH21: =(CE21-CF21)*'Benefit %'!$B$7 -> 0 | CI21: =(CE21-CF21)*'Benefit %'!$B$9 -> 0 | CJ21: =CB21 -> 0 | CK21: =(CE21-CF21)*'Benefit %'!$B$13 -> 0 | CL21: =(CE21-CF21)*'Benefit %'!$B$15 -> 0 | CM21: ='Cert. Sal'!N18 -> 0 | CO21: =(CM21-CN21)*'Benefit %'!$B$3 -> 0 | CP21: =(CM21-CN21)*'Benefit %'!$B$7 -> 0 | CQ21: =(CM21-CN21)*'Benefit %'!$B$9 -> 0 | CR21: =CJ21 -> 0 | CS21: =(CM21-CN21)*'Benefit %'!$B$13 -> 0 | CT21: =(CM21-CN21)*'Benefit %'!$B$15 -> 0 | CU21: 0 | CV21: 0 | CW21: 0 | CX21: 0 | CY21: 0 | CZ21: 0 | DA21: 0 | DB21: 0
A22: 4 | C22: ='Cert. Sal'!C19 -> 0 | E22: =(C22-D22)*'Benefit %'!$B$3 -> 0 | F22: =(C22-D22)*'Benefit %'!$B$7 -> 0 | G22: =(C22-D22)*'Benefit %'!$B$9 -> 0 | I22: =(C22-D22)*'Benefit %'!$B$13 -> 0 | J22: =(C22-D22)*'Benefit %'!$B$15 -> 0 | K22: ='Cert. Sal'!D19 -> 0 | M22: =(K22-L22)*'Benefit %'!$B$3 -> 0 | N22: =(K22-L22)*'Benefit %'!$B$7 -> 0 | O22: =(K22-L22)*'Benefit %'!$B$9 -> 0 | Q22: =(K22-L22)*'Benefit %'!$B$13 -> 0 | R22: =(K22-L22)*'Benefit %'!$B$15 -> 0 | S22: ='Cert. Sal'!E19 -> 0 | U22: =(S22-T22)*'Benefit %'!$B$3 -> 0 | V22: =(S22-T22)*'Benefit %'!$B$7 -> 0 | W22: =(S22-T22)*'Benefit %'!$B$9 -> 0 | Y22: =(S22-T22)*'Benefit %'!$B$13 -> 0 | Z22: =(S22-T22)*'Benefit %'!$B$15 -> 0 | AA22: ='Cert. Sal'!F19 -> 0 | AC22: =(AA22-AB22)*'Benefit %'!$B$3 -> 0 | AD22: =(AA22-AB22)*'Benefit %'!$B$7 -> 0 | AE22: =(AA22-AB22)*'Benefit %'!$B$9 -> 0 | AG22: =(AA22-AB22)*'Benefit %'!$B$13 -> 0 | AH22: =(AA22-AB22)*'Benefit %'!$B$15 -> 0 | AI22: ='Cert. Sal'!G19 -> 0 | AK22: =(AI22-AJ22)*'Benefit %'!$B$3 -> 0 | AL22: =(AI22-AJ22)*'Benefit %'!$B$7 -> 0 | AM22: =(AI22-AJ22)*'Benefit %'!$B$9 -> 0 | AN22: =AF22 -> 0 | AO22: =(AI22-AJ22)*'Benefit %'!$B$13 -> 0 | AP22: =(AI22-AJ22)*'Benefit %'!$B$15 -> 0 | AQ22: ='Cert. Sal'!H19 -> 0 | AS22: =(AQ22-AR22)*'Benefit %'!$B$3 -> 0 | AT22: =(AQ22-AR22)*'Benefit %'!$B$7 -> 0 | AU22: =(AQ22-AR22)*'Benefit %'!$B$9 -> 0 | AV22: =AN22 -> 0 | AW22: =(AQ22-AR22)*'Benefit %'!$B$13 -> 0 | AX22: =(AQ22-AR22)*'Benefit %'!$B$15 -> 0 | AY22: ='Cert. Sal'!I19 -> 0 | BA22: =(AY22-AZ22)*'Benefit %'!$B$3 -> 0 | BB22: =(AY22-AZ22)*'Benefit %'!$B$7 -> 0 | BC22: =(AY22-AZ22)*'Benefit %'!$B$9 -> 0 | BD22: =AV22 -> 0 | BE22: =(AY22-AZ22)*'Benefit %'!$B$13 -> 0 | BF22: =(AY22-AZ22)*'Benefit %'!$B$15 -> 0 | BG22: ='Cert. Sal'!J19 -> 0 | BI22: =(BG22-BH22)*'Benefit %'!$B$3 -> 0 | BJ22: =(BG22-BH22)*'Benefit %'!$B$7 -> 0 | BK22: =(BG22-BH22)*'Benefit %'!$B$9 -> 0 | BL22: =BD22 -> 0 | BM22: =(BG22-BH22)*'Benefit %'!$B$13 -> 0 | BN22: =(BG22-BH22)*'Benefit %'!$B$15 -> 0 | BO22: ='Cert. Sal'!K19 -> 0 | BQ22: =(BO22-BP22)*'Benefit %'!$B$3 -> 0 | BR22: =(BO22-BP22)*'Benefit %'!$B$7 -> 0 | BS22: =(BO22-BP22)*'Benefit %'!$B$9 -> 0 | BT22: =BL22 -> 0 | BU22: =(BO22-BP22)*'Benefit %'!$B$13 -> 0 | BV22: =(BO22-BP22)*'Benefit %'!$B$15 -> 0 | BW22: ='Cert. Sal'!L19 -> 0 | BY22: =(BW22-BX22)*'Benefit %'!$B$3 -> 0 | BZ22: =(BW22-BX22)*'Benefit %'!$B$7 -> 0 | CA22: =(BW22-BX22)*'Benefit %'!$B$9 -> 0 | CB22: =BT22 -> 0 | CC22: =(BW22-BX22)*'Benefit %'!$B$13 -> 0 | CD22: =(BW22-BX22)*'Benefit %'!$B$15 -> 0 | CE22: ='Cert. Sal'!M19 -> 0 | CG22: =(CE22-CF22)*'Benefit %'!$B$3 -> 0 | CH22: =(CE22-CF22)*'Benefit %'!$B$7 -> 0 | CI22: =(CE22-CF22)*'Benefit %'!$B$9 -> 0 | CJ22: =CB22 -> 0 | CK22: =(CE22-CF22)*'Benefit %'!$B$13 -> 0 | CL22: =(CE22-CF22)*'Benefit %'!$B$15 -> 0 | CM22: ='Cert. Sal'!N19 -> 0 | CO22: =(CM22-CN22)*'Benefit %'!$B$3 -> 0 | CP22: =(CM22-CN22)*'Benefit %'!$B$7 -> 0 | CQ22: =(CM22-CN22)*'Benefit %'!$B$9 -> 0 | CR22: =CJ22 -> 0 | CS22: =(CM22-CN22)*'Benefit %'!$B$13 -> 0 | CT22: =(CM22-CN22)*'Benefit %'!$B$15 -> 0 | CU22: 0 | CV22: 0 | CW22: 0 | CX22: 0 | CY22: 0 | CZ22: 0 | DA22: 0 | DB22: 0
A23: 5 | C23: ='Cert. Sal'!C20 -> 0 | E23: =(C23-D23)*'Benefit %'!$B$3 -> 0 | F23: =(C23-D23)*'Benefit %'!$B$7 -> 0 | G23: =(C23-D23)*'Benefit %'!$B$9 -> 0 | I23: =(C23-D23)*'Benefit %'!$B$13 -> 0 | J23: =(C23-D23)*'Benefit %'!$B$15 -> 0 | K23: ='Cert. Sal'!D20 -> 0 | M23: =(K23-L23)*'Benefit %'!$B$3 -> 0 | N23: =(K23-L23)*'Benefit %'!$B$7 -> 0 | O23: =(K23-L23)*'Benefit %'!$B$9 -> 0 | Q23: =(K23-L23)*'Benefit %'!$B$13 -> 0 | R23: =(K23-L23)*'Benefit %'!$B$15 -> 0 | S23: ='Cert. Sal'!E20 -> 0 | U23: =(S23-T23)*'Benefit %'!$B$3 -> 0 | V23: =(S23-T23)*'Benefit %'!$B$7 -> 0 | W23: =(S23-T23)*'Benefit %'!$B$9 -> 0 | Y23: =(S23-T23)*'Benefit %'!$B$13 -> 0 | Z23: =(S23-T23)*'Benefit %'!$B$15 -> 0 | AA23: ='Cert. Sal'!F20 -> 0 | AC23: =(AA23-AB23)*'Benefit %'!$B$3 -> 0 | AD23: =(AA23-AB23)*'Benefit %'!$B$7 -> 0 | AE23: =(AA23-AB23)*'Benefit %'!$B$9 -> 0 | AG23: =(AA23-AB23)*'Benefit %'!$B$13 -> 0 | AH23: =(AA23-AB23)*'Benefit %'!$B$15 -> 0 | AI23: ='Cert. Sal'!G20 -> 0 | AK23: =(AI23-AJ23)*'Benefit %'!$B$3 -> 0 | AL23: =(AI23-AJ23)*'Benefit %'!$B$7 -> 0 | AM23: =(AI23-AJ23)*'Benefit %'!$B$9 -> 0 | AN23: =AF23 -> 0 | AO23: =(AI23-AJ23)*'Benefit %'!$B$13 -> 0 | AP23: =(AI23-AJ23)*'Benefit %'!$B$15 -> 0 | AQ23: ='Cert. Sal'!H20 -> 0 | AS23: =(AQ23-AR23)*'Benefit %'!$B$3 -> 0 | AT23: =(AQ23-AR23)*'Benefit %'!$B$7 -> 0 | AU23: =(AQ23-AR23)*'Benefit %'!$B$9 -> 0 | AV23: =AN23 -> 0 | AW23: =(AQ23-AR23)*'Benefit %'!$B$13 -> 0 | AX23: =(AQ23-AR23)*'Benefit %'!$B$15 -> 0 | AY23: ='Cert. Sal'!I20 -> 0 | BA23: =(AY23-AZ23)*'Benefit %'!$B$3 -> 0 | BB23: =(AY23-AZ23)*'Benefit %'!$B$7 -> 0 | BC23: =(AY23-AZ23)*'Benefit %'!$B$9 -> 0 | BD23: =AV23 -> 0 | BE23: =(AY23-AZ23)*'Benefit %'!$B$13 -> 0 | BF23: =(AY23-AZ23)*'Benefit %'!$B$15 -> 0 | BG23: ='Cert. Sal'!J20 -> 0 | BI23: =(BG23-BH23)*'Benefit %'!$B$3 -> 0 | BJ23: =(BG23-BH23)*'Benefit %'!$B$7 -> 0 | BK23: =(BG23-BH23)*'Benefit %'!$B$9 -> 0 | BL23: =BD23 -> 0 | BM23: =(BG23-BH23)*'Benefit %'!$B$13 -> 0 | BN23: =(BG23-BH23)*'Benefit %'!$B$15 -> 0 | BO23: ='Cert. Sal'!K20 -> 0 | BQ23: =(BO23-BP23)*'Benefit %'!$B$3 -> 0 | BR23: =(BO23-BP23)*'Benefit %'!$B$7 -> 0 | BS23: =(BO23-BP23)*'Benefit %'!$B$9 -> 0 | BT23: =BL23 -> 0 | BU23: =(BO23-BP23)*'Benefit %'!$B$13 -> 0 | BV23: =(BO23-BP23)*'Benefit %'!$B$15 -> 0 | BW23: ='Cert. Sal'!L20 -> 0 | BY23: =(BW23-BX23)*'Benefit %'!$B$3 -> 0 | BZ23: =(BW23-BX23)*'Benefit %'!$B$7 -> 0 | CA23: =(BW23-BX23)*'Benefit %'!$B$9 -> 0 | CB23: =BT23 -> 0 | CC23: =(BW23-BX23)*'Benefit %'!$B$13 -> 0 | CD23: =(BW23-BX23)*'Benefit %'!$B$15 -> 0 | CE23: ='Cert. Sal'!M20 -> 0 | CG23: =(CE23-CF23)*'Benefit %'!$B$3 -> 0 | CH23: =(CE23-CF23)*'Benefit %'!$B$7 -> 0 | CI23: =(CE23-CF23)*'Benefit %'!$B$9 -> 0 | CJ23: =CB23 -> 0 | CK23: =(CE23-CF23)*'Benefit %'!$B$13 -> 0 | CL23: =(CE23-CF23)*'Benefit %'!$B$15 -> 0 | CM23: ='Cert. Sal'!N20 -> 0 | CO23: =(CM23-CN23)*'Benefit %'!$B$3 -> 0 | CP23: =(CM23-CN23)*'Benefit %'!$B$7 -> 0 | CQ23: =(CM23-CN23)*'Benefit %'!$B$9 -> 0 | CR23: =CJ23 -> 0 | CS23: =(CM23-CN23)*'Benefit %'!$B$13 -> 0 | CT23: =(CM23-CN23)*'Benefit %'!$B$15 -> 0 | CU23: 0 | CV23: 0 | CW23: 0 | CX23: 0 | CY23: 0 | CZ23: 0 | DA23: 0 | DB23: 0
B25: Part-Time Totals | C25: =SUM(C19:C24) -> 0 | D25: 0 | E25: 0 | F25: 0 | G25: 0 | H25: 0 | I25: 0 | J25: 0 | K25: 0 | L25: =SUM(L19:L24) -> 0 | M25: 0 | N25: 0 | O25: 0 | P25: 0 | Q25: 0 | R25: 0 | S25: =SUM(S19:S24) -> 0 | T25: =SUM(T19:T24) -> 0 | U25: 0 | V25: 0 | W25: 0 | X25: 0 | Y25: 0 | Z25: 0 | AA25: =SUM(AA19:AA24) -> 0 | AB25: =SUM(AB19:AB24) -> 0 | AC25: 0 | AD25: 0 | AE25: 0 | AF25: 0 | AG25: 0 | AH25: 0 | AI25: =SUM(AI19:AI24) -> 0 | AJ25: =SUM(AJ19:AJ24) -> 0 | AK25: 0 | AL25: 0 | AM25: 0 | AN25: 0 | AO25: 0 | AP25: 0 | AQ25: =SUM(AQ19:AQ24) -> 0 | AR25: =SUM(AR19:AR24) -> 0 | AS25: 0 | AT25: 0 | AU25: 0 | AV25: 0 | AW25: 0 | AX25: 0 | AY25: =SUM(AY19:AY24) -> 0 | AZ25: =SUM(AZ19:AZ24) -> 0 | BA25: 0 | BB25: 0 | BC25: 0 | BD25: 0 | BE25: 0 | BF25: 0 | BG25: =SUM(BG19:BG24) -> 0 | BH25: =SUM(BH19:BH24) -> 0 | BI25: 0 | BJ25: 0 | BK25: 0 | BL25: 0 | BM25: 0 | BN25: 0 | BO25: =SUM(BO19:BO24) -> 0 | BP25: =SUM(BP19:BP24) -> 0 | BQ25: 0 | BR25: 0 | BS25: 0 | BT25: 0 | BU25: 0 | BV25: 0 | BW25: =SUM(BW19:BW24) -> 0 | BX25: =SUM(BX19:BX24) -> 0 | BY25: 0 | BZ25: 0 | CA25: 0 | CB25: 0 | CC25: 0 | CD25: 0 | CE25: =SUM(CE19:CE24) -> 0 | CF25: =SUM(CF19:CF24) -> 0 | CG25: 0 | CH25: 0 | CI25: 0 | CJ25: 0 | CK25: 0 | CL25: 0 | CM25: =SUM(CM19:CM24) -> 0 | CN25: =SUM(CN19:CN24) -> 0 | CO25: 0 | CP25: 0 | CQ25: 0 | CR25: 0 | CS25: 0 | CT25: 0 | CU25: =SUM(CU19:CU24) -> 0 | CV25: =SUM(CV19:CV24) -> 0 | CW25: 0 | CX25: 0 | CY25: 0 | CZ25: 0 | DA25: 0 | DB25: 0
B26: Monthly Benefit Total | I26: =SUM(E25:J25) -> 0 | Q26: =SUM(M25:R25) -> 0 | Y26: =SUM(U25:Z25) -> 0 | AG26: =SUM(AC25:AH25) -> 0 | AO26: =SUM(AK25:AP25) -> 0 | AW26: =SUM(AS25:AX25) -> 0 | BE26: =SUM(BA25:BF25) -> 0 | BM26: =SUM(BI25:BN25) -> 0 | BU26: =SUM(BQ25:BV25) -> 0 | CC26: =SUM(BY25:CD25) -> 0 | CK26: =SUM(CG25:CL25) -> 0 | CS26: =SUM(CO25:CT25) -> 0 | CW26: Part-Time Yearly Benefits | DA26: =SUM(CW25:DB25) -> 0
B27: Hourly
A28: 1 | B28: ='Cert. Sal'!B25 -> 0 | C28: ='Cert. Sal'!C25 -> 0 | E28: =(C28-D28)*'Benefit %'!$B$3 -> 0 | F28: =(C28-D28)*'Benefit %'!$B$7 -> 0 | G28: =(C28-D28)*'Benefit %'!$B$9 -> 0 | I28: =(C28-D28)*'Benefit %'!$B$13 -> 0 | J28: =(C28-D28)*'Benefit %'!$B$15 -> 0 | K28: ='Cert. Sal'!D25 -> 0 | M28: =(K28-L28)*'Benefit %'!$B$3 -> 0 | N28: =(K28-L28)*'Benefit %'!$B$7 -> 0 | O28: =(K28-L28)*'Benefit %'!$B$9 -> 0 | Q28: =(K28-L28)*'Benefit %'!$B$13 -> 0 | R28: =(K28-L28)*'Benefit %'!$B$15 -> 0 | S28: ='Cert. Sal'!E25 -> 0 | U28: =(S28-T28)*'Benefit %'!$B$3 -> 0 | V28: =(S28-T28)*'Benefit %'!$B$7 -> 0 | W28: =(S28-T28)*'Benefit %'!$B$9 -> 0 | Y28: =(S28-T28)*'Benefit %'!$B$13 -> 0 | Z28: =(S28-T28)*'Benefit %'!$B$15 -> 0 | AA28: ='Cert. Sal'!F25 -> 0 | AC28: =(AA28-AB28)*'Benefit %'!$B$3 -> 0 | AD28: =(AA28-AB28)*'Benefit %'!$B$7 -> 0 | AE28: =(AA28-AB28)*'Benefit %'!$B$9 -> 0 | AG28: =(AA28-AB28)*'Benefit %'!$B$13 -> 0 | AH28: =(AA28-AB28)*'Benefit %'!$B$15 -> 0 | AI28: ='Cert. Sal'!G25 -> 0 | AK28: =(AI28-AJ28)*'Benefit %'!$B$3 -> 0 | AL28: =(AI28-AJ28)*'Benefit %'!$B$7 -> 0 | AM28: =(AI28-AJ28)*'Benefit %'!$B$9 -> 0 | AN28: =AF28 -> 0 | AO28: =(AI28-AJ28)*'Benefit %'!$B$13 -> 0 | AP28: =(AI28-AJ28)*'Benefit %'!$B$15 -> 0 | AQ28: ='Cert. Sal'!H25 -> 0 | AS28: =(AQ28-AR28)*'Benefit %'!$B$3 -> 0 | AT28: =(AQ28-AR28)*'Benefit %'!$B$7 -> 0 | AU28: =(AQ28-AR28)*'Benefit %'!$B$9 -> 0 | AV28: =AN28 -> 0 | AW28: =(AQ28-AR28)*'Benefit %'!$B$13 -> 0 | AX28: =(AQ28-AR28)*'Benefit %'!$B$15 -> 0 | AY28: ='Cert. Sal'!I25 -> 0 | BA28: =(AY28-AZ28)*'Benefit %'!$B$3 -> 0 | BB28: =(AY28-AZ28)*'Benefit %'!$B$7 -> 0 | BC28: =(AY28-AZ28)*'Benefit %'!$B$9 -> 0 | BD28: =AV28 -> 0 | BE28: =(AY28-AZ28)*'Benefit %'!$B$13 -> 0 | BF28: =(AY28-AZ28)*'Benefit %'!$B$15 -> 0 | BG28: ='Cert. Sal'!J25 -> 0 | BI28: =(BG28-BH28)*'Benefit %'!$B$3 -> 0 | BJ28: =(BG28-BH28)*'Benefit %'!$B$7 -> 0 | BK28: =(BG28-BH28)*'Benefit %'!$B$9 -> 0 | BL28: =BD28 -> 0 | BM28: =(BG28-BH28)*'Benefit %'!$B$13 -> 0 | BN28: =(BG28-BH28)*'Benefit %'!$B$15 -> 0 | BO28: ='Cert. Sal'!K25 -> 0 | BQ28: =(BO28-BP28)*'Benefit %'!$B$3 -> 0 | BR28: =(BO28-BP28)*'Benefit %'!$B$7 -> 0 | BS28: =(BO28-BP28)*'Benefit %'!$B$9 -> 0 | BT28: =BL28 -> 0 | BU28: =(BO28-BP28)*'Benefit %'!$B$13 -> 0 | BV28: =(BO28-BP28)*'Benefit %'!$B$15 -> 0 | BW28: ='Cert. Sal'!L25 -> 0 | BY28: =(BW28-BX28)*'Benefit %'!$B$3 -> 0 | BZ28: =(BW28-BX28)*'Benefit %'!$B$7 -> 0 | CA28: =(BW28-BX28)*'Benefit %'!$B$9 -> 0 | CB28: =BT28 -> 0 | CC28: =(BW28-BX28)*'Benefit %'!$B$13 -> 0 | CD28: =(BW28-BX28)*'Benefit %'!$B$15 -> 0 | CE28: ='Cert. Sal'!M25 -> 0 | CG28: =(CE28-CF28)*'Benefit %'!$B$3 -> 0 | CH28: =(CE28-CF28)*'Benefit %'!$B$7 -> 0 | CI28: =(CE28-CF28)*'Benefit %'!$B$9 -> 0 | CJ28: =CB28 -> 0 | CK28: =(CE28-CF28)*'Benefit %'!$B$13 -> 0 | CL28: =(CE28-CF28)*'Benefit %'!$B$15 -> 0 | CM28: ='Cert. Sal'!N25 -> 0 | CO28: =(CM28-CN28)*'Benefit %'!$B$3 -> 0 | CP28: =(CM28-CN28)*'Benefit %'!$B$7 -> 0 | CQ28: =(CM28-CN28)*'Benefit %'!$B$9 -> 0 | CR28: =CJ28 -> 0 | CS28: =(CM28-CN28)*'Benefit %'!$B$13 -> 0 | CT28: =(CM28-CN28)*'Benefit %'!$B$15 -> 0 | CU28: 0 | CV28: =SUM(D28,L28,T28,AB28,AJ28,AR28,AZ28,BH28,BP28,BX28,CF28,CN28) -> 0 | CW28: 0 | CX28: 0 | CY28: 0 | CZ28: 0 | DA28: 0 | DB28: 0
A29: 2 | C29: ='Cert. Sal'!C26 -> 0 | E29: =(C29-D29)*'Benefit %'!$B$3 -> 0 | F29: =(C29-D29)*'Benefit %'!$B$7 -> 0 | G29: =(C29-D29)*'Benefit %'!$B$9 -> 0 | I29: =(C29-D29)*'Benefit %'!$B$13 -> 0 | J29: =(C29-D29)*'Benefit %'!$B$15 -> 0 | K29: ='Cert. Sal'!D26 -> 0 | M29: =(K29-L29)*'Benefit %'!$B$3 -> 0 | N29: =(K29-L29)*'Benefit %'!$B$7 -> 0 | O29: =(K29-L29)*'Benefit %'!$B$9 -> 0 | Q29: =(K29-L29)*'Benefit %'!$B$13 -> 0 | R29: =(K29-L29)*'Benefit %'!$B$15 -> 0 | S29: ='Cert. Sal'!E26 -> 0 | U29: =(S29-T29)*'Benefit %'!$B$3 -> 0 | V29: =(S29-T29)*'Benefit %'!$B$7 -> 0 | W29: =(S29-T29)*'Benefit %'!$B$9 -> 0 | Y29: =(S29-T29)*'Benefit %'!$B$13 -> 0 | Z29: =(S29-T29)*'Benefit %'!$B$15 -> 0 | AA29: ='Cert. Sal'!F26 -> 0 | AC29: =(AA29-AB29)*'Benefit %'!$B$3 -> 0 | AD29: =(AA29-AB29)*'Benefit %'!$B$7 -> 0 | AE29: =(AA29-AB29)*'Benefit %'!$B$9 -> 0 | AG29: =(AA29-AB29)*'Benefit %'!$B$13 -> 0 | AH29: =(AA29-AB29)*'Benefit %'!$B$15 -> 0 | AI29: ='Cert. Sal'!G26 -> 0 | AK29: =(AI29-AJ29)*'Benefit %'!$B$3 -> 0 | AL29: =(AI29-AJ29)*'Benefit %'!$B$7 -> 0 | AM29: =(AI29-AJ29)*'Benefit %'!$B$9 -> 0 | AN29: =AF29 -> 0 | AO29: =(AI29-AJ29)*'Benefit %'!$B$13 -> 0 | AP29: =(AI29-AJ29)*'Benefit %'!$B$15 -> 0 | AQ29: ='Cert. Sal'!H26 -> 0 | AS29: =(AQ29-AR29)*'Benefit %'!$B$3 -> 0 | AT29: =(AQ29-AR29)*'Benefit %'!$B$7 -> 0 | AU29: =(AQ29-AR29)*'Benefit %'!$B$9 -> 0 | AV29: =AN29 -> 0 | AW29: =(AQ29-AR29)*'Benefit %'!$B$13 -> 0 | AX29: =(AQ29-AR29)*'Benefit %'!$B$15 -> 0 | AY29: ='Cert. Sal'!I26 -> 0 | BA29: =(AY29-AZ29)*'Benefit %'!$B$3 -> 0 | BB29: =(AY29-AZ29)*'Benefit %'!$B$7 -> 0 | BC29: =(AY29-AZ29)*'Benefit %'!$B$9 -> 0 | BD29: =AV29 -> 0 | BE29: =(AY29-AZ29)*'Benefit %'!$B$13 -> 0 | BF29: =(AY29-AZ29)*'Benefit %'!$B$15 -> 0 | BG29: ='Cert. Sal'!J26 -> 0 | BI29: =(BG29-BH29)*'Benefit %'!$B$3 -> 0 | BJ29: =(BG29-BH29)*'Benefit %'!$B$7 -> 0 | BK29: =(BG29-BH29)*'Benefit %'!$B$9 -> 0 | BL29: =BD29 -> 0 | BM29: =(BG29-BH29)*'Benefit %'!$B$13 -> 0 | BN29: =(BG29-BH29)*'Benefit %'!$B$15 -> 0 | BO29: ='Cert. Sal'!K26 -> 0 | BQ29: =(BO29-BP29)*'Benefit %'!$B$3 -> 0 | BR29: =(BO29-BP29)*'Benefit %'!$B$7 -> 0 | BS29: =(BO29-BP29)*'Benefit %'!$B$9 -> 0 | BT29: =BL29 -> 0 | BU29: =(BO29-BP29)*'Benefit %'!$B$13 -> 0 | BV29: =(BO29-BP29)*'Benefit %'!$B$15 -> 0 | BW29: ='Cert. Sal'!L26 -> 0 | BY29: =(BW29-BX29)*'Benefit %'!$B$3 -> 0 | BZ29: =(BW29-BX29)*'Benefit %'!$B$7 -> 0 | CA29: =(BW29-BX29)*'Benefit %'!$B$9 -> 0 | CB29: =BT29 -> 0 | CC29: =(BW29-BX29)*'Benefit %'!$B$13 -> 0 | CD29: =(BW29-BX29)*'Benefit %'!$B$15 -> 0 | CE29: ='Cert. Sal'!M26 -> 0 | CG29: =(CE29-CF29)*'Benefit %'!$B$3 -> 0 | CH29: =(CE29-CF29)*'Benefit %'!$B$7 -> 0 | CI29: =(CE29-CF29)*'Benefit %'!$B$9 -> 0 | CJ29: =CB29 -> 0 | CK29: =(CE29-CF29)*'Benefit %'!$B$13 -> 0 | CL29: =(CE29-CF29)*'Benefit %'!$B$15 -> 0 | CM29: ='Cert. Sal'!N26 -> 0 | CO29: =(CM29-CN29)*'Benefit %'!$B$3 -> 0 | CP29: =(CM29-CN29)*'Benefit %'!$B$7 -> 0 | CQ29: =(CM29-CN29)*'Benefit %'!$B$9 -> 0 | CR29: =CJ29 -> 0 | CS29: =(CM29-CN29)*'Benefit %'!$B$13 -> 0 | CT29: =(CM29-CN29)*'Benefit %'!$B$15 -> 0 | CU29: 0 | CV29: 0 | CW29: 0 | CX29: 0 | CY29: 0 | CZ29: 0 | DA29: 0 | DB29: 0
A30: 3 | C30: ='Cert. Sal'!C27 -> 0 | E30: =(C30-D30)*'Benefit %'!$B$3 -> 0 | F30: =(C30-D30)*'Benefit %'!$B$7 -> 0 | G30: =(C30-D30)*'Benefit %'!$B$9 -> 0 | I30: =(C30-D30)*'Benefit %'!$B$13 -> 0 | J30: =(C30-D30)*'Benefit %'!$B$15 -> 0 | K30: ='Cert. Sal'!D27 -> 0 | M30: =(K30-L30)*'Benefit %'!$B$3 -> 0 | N30: =(K30-L30)*'Benefit %'!$B$7 -> 0 | O30: =(K30-L30)*'Benefit %'!$B$9 -> 0 | Q30: =(K30-L30)*'Benefit %'!$B$13 -> 0 | R30: =(K30-L30)*'Benefit %'!$B$15 -> 0 | S30: ='Cert. Sal'!E27 -> 0 | U30: =(S30-T30)*'Benefit %'!$B$3 -> 0 | V30: =(S30-T30)*'Benefit %'!$B$7 -> 0 | W30: =(S30-T30)*'Benefit %'!$B$9 -> 0 | Y30: =(S30-T30)*'Benefit %'!$B$13 -> 0 | Z30: =(S30-T30)*'Benefit %'!$B$15 -> 0 | AA30: ='Cert. Sal'!F27 -> 0 | AC30: =(AA30-AB30)*'Benefit %'!$B$3 -> 0 | AD30: =(AA30-AB30)*'Benefit %'!$B$7 -> 0 | AE30: =(AA30-AB30)*'Benefit %'!$B$9 -> 0 | AG30: =(AA30-AB30)*'Benefit %'!$B$13 -> 0 | AH30: =(AA30-AB30)*'Benefit %'!$B$15 -> 0 | AI30: ='Cert. Sal'!G27 -> 0 | AK30: =(AI30-AJ30)*'Benefit %'!$B$3 -> 0 | AL30: =(AI30-AJ30)*'Benefit %'!$B$7 -> 0 | AM30: =(AI30-AJ30)*'Benefit %'!$B$9 -> 0 | AN30: =AF30 -> 0 | AO30: =(AI30-AJ30)*'Benefit %'!$B$13 -> 0 | AP30: =(AI30-AJ30)*'Benefit %'!$B$15 -> 0 | AQ30: ='Cert. Sal'!H27 -> 0 | AS30: =(AQ30-AR30)*'Benefit %'!$B$3 -> 0 | AT30: =(AQ30-AR30)*'Benefit %'!$B$7 -> 0 | AU30: =(AQ30-AR30)*'Benefit %'!$B$9 -> 0 | AV30: =AN30 -> 0 | AW30: =(AQ30-AR30)*'Benefit %'!$B$13 -> 0 | AX30: =(AQ30-AR30)*'Benefit %'!$B$15 -> 0 | AY30: ='Cert. Sal'!I27 -> 0 | BA30: =(AY30-AZ30)*'Benefit %'!$B$3 -> 0 | BB30: =(AY30-AZ30)*'Benefit %'!$B$7 -> 0 | BC30: =(AY30-AZ30)*'Benefit %'!$B$9 -> 0 | BD30: =AV30 -> 0 | BE30: =(AY30-AZ30)*'Benefit %'!$B$13 -> 0 | BF30: =(AY30-AZ30)*'Benefit %'!$B$15 -> 0 | BG30: ='Cert. Sal'!J27 -> 0 | BI30: =(BG30-BH30)*'Benefit %'!$B$3 -> 0 | BJ30: =(BG30-BH30)*'Benefit %'!$B$7 -> 0 | BK30: =(BG30-BH30)*'Benefit %'!$B$9 -> 0 | BL30: =BD30 -> 0 | BM30: =(BG30-BH30)*'Benefit %'!$B$13 -> 0 | BN30: =(BG30-BH30)*'Benefit %'!$B$15 -> 0 | BO30: ='Cert. Sal'!K27 -> 0 | BQ30: =(BO30-BP30)*'Benefit %'!$B$3 -> 0 | BR30: =(BO30-BP30)*'Benefit %'!$B$7 -> 0 | BS30: =(BO30-BP30)*'Benefit %'!$B$9 -> 0 | BT30: =BL30 -> 0 | BU30: =(BO30-BP30)*'Benefit %'!$B$13 -> 0 | BV30: =(BO30-BP30)*'Benefit %'!$B$15 -> 0 | BW30: ='Cert. Sal'!L27 -> 0 | BY30: =(BW30-BX30)*'Benefit %'!$B$3 -> 0 | BZ30: =(BW30-BX30)*'Benefit %'!$B$7 -> 0 | CA30: =(BW30-BX30)*'Benefit %'!$B$9 -> 0 | CB30: =BT30 -> 0 | CC30: =(BW30-BX30)*'Benefit %'!$B$13 -> 0 | CD30: =(BW30-BX30)*'Benefit %'!$B$15 -> 0 | CE30: ='Cert. Sal'!M27 -> 0 | CG30: =(CE30-CF30)*'Benefit %'!$B$3 -> 0 | CH30: =(CE30-CF30)*'Benefit %'!$B$7 -> 0 | CI30: =(CE30-CF30)*'Benefit %'!$B$9 -> 0 | CJ30: =CB30 -> 0 | CK30: =(CE30-CF30)*'Benefit %'!$B$13 -> 0 | CL30: =(CE30-CF30)*'Benefit %'!$B$15 -> 0 | CM30: ='Cert. Sal'!N27 -> 0 | CO30: =(CM30-CN30)*'Benefit %'!$B$3 -> 0 | CP30: =(CM30-CN30)*'Benefit %'!$B$7 -> 0 | CQ30: =(CM30-CN30)*'Benefit %'!$B$9 -> 0 | CR30: =CJ30 -> 0 | CS30: =(CM30-CN30)*'Benefit %'!$B$13 -> 0 | CT30: =(CM30-CN30)*'Benefit %'!$B$15 -> 0 | CU30: 0 | CV30: 0 | CW30: 0 | CX30: 0 | CY30: 0 | CZ30: 0 | DA30: 0 | DB30: 0
A31: 4 | C31: ='Cert. Sal'!C28 -> 0 | E31: =(C31-D31)*'Benefit %'!$B$3 -> 0 | F31: =(C31-D31)*'Benefit %'!$B$7 -> 0 | G31: =(C31-D31)*'Benefit %'!$B$9 -> 0 | I31: =(C31-D31)*'Benefit %'!$B$13 -> 0 | J31: =(C31-D31)*'Benefit %'!$B$15 -> 0 | K31: ='Cert. Sal'!D28 -> 0 | M31: =(K31-L31)*'Benefit %'!$B$3 -> 0 | N31: =(K31-L31)*'Benefit %'!$B$7 -> 0 | O31: =(K31-L31)*'Benefit %'!$B$9 -> 0 | Q31: =(K31-L31)*'Benefit %'!$B$13 -> 0 | R31: =(K31-L31)*'Benefit %'!$B$15 -> 0 | S31: ='Cert. Sal'!E28 -> 0 | U31: =(S31-T31)*'Benefit %'!$B$3 -> 0 | V31: =(S31-T31)*'Benefit %'!$B$7 -> 0 | W31: =(S31-T31)*'Benefit %'!$B$9 -> 0 | Y31: =(S31-T31)*'Benefit %'!$B$13 -> 0 | Z31: =(S31-T31)*'Benefit %'!$B$15 -> 0 | AA31: ='Cert. Sal'!F28 -> 0 | AC31: =(AA31-AB31)*'Benefit %'!$B$3 -> 0 | AD31: =(AA31-AB31)*'Benefit %'!$B$7 -> 0 | AE31: =(AA31-AB31)*'Benefit %'!$B$9 -> 0 | AG31: =(AA31-AB31)*'Benefit %'!$B$13 -> 0 | AH31: =(AA31-AB31)*'Benefit %'!$B$15 -> 0 | AI31: ='Cert. Sal'!G28 -> 0 | AK31: =(AI31-AJ31)*'Benefit %'!$B$3 -> 0 | AL31: =(AI31-AJ31)*'Benefit %'!$B$7 -> 0 | AM31: =(AI31-AJ31)*'Benefit %'!$B$9 -> 0 | AN31: =AF31 -> 0 | AO31: =(AI31-AJ31)*'Benefit %'!$B$13 -> 0 | AP31: =(AI31-AJ31)*'Benefit %'!$B$15 -> 0 | AQ31: ='Cert. Sal'!H28 -> 0 | AS31: =(AQ31-AR31)*'Benefit %'!$B$3 -> 0 | AT31: =(AQ31-AR31)*'Benefit %'!$B$7 -> 0 | AU31: =(AQ31-AR31)*'Benefit %'!$B$9 -> 0 | AV31: =AN31 -> 0 | AW31: =(AQ31-AR31)*'Benefit %'!$B$13 -> 0 | AX31: =(AQ31-AR31)*'Benefit %'!$B$15 -> 0 | AY31: ='Cert. Sal'!I28 -> 0 | BA31: =(AY31-AZ31)*'Benefit %'!$B$3 -> 0 | BB31: =(AY31-AZ31)*'Benefit %'!$B$7 -> 0 | BC31: =(AY31-AZ31)*'Benefit %'!$B$9 -> 0 | BD31: =AV31 -> 0 | BE31: =(AY31-AZ31)*'Benefit %'!$B$13 -> 0 | BF31: =(AY31-AZ31)*'Benefit %'!$B$15 -> 0 | BG31: ='Cert. Sal'!J28 -> 0 | BI31: =(BG31-BH31)*'Benefit %'!$B$3 -> 0 | BJ31: =(BG31-BH31)*'Benefit %'!$B$7 -> 0 | BK31: =(BG31-BH31)*'Benefit %'!$B$9 -> 0 | BL31: =BD31 -> 0 | BM31: =(BG31-BH31)*'Benefit %'!$B$13 -> 0 | BN31: =(BG31-BH31)*'Benefit %'!$B$15 -> 0 | BO31: ='Cert. Sal'!K28 -> 0 | BQ31: =(BO31-BP31)*'Benefit %'!$B$3 -> 0 | BR31: =(BO31-BP31)*'Benefit %'!$B$7 -> 0 | BS31: =(BO31-BP31)*'Benefit %'!$B$9 -> 0 | BT31: =BL31 -> 0 | BU31: =(BO31-BP31)*'Benefit %'!$B$13 -> 0 | BV31: =(BO31-BP31)*'Benefit %'!$B$15 -> 0 | BW31: ='Cert. Sal'!L28 -> 0 | BY31: =(BW31-BX31)*'Benefit %'!$B$3 -> 0 | BZ31: =(BW31-BX31)*'Benefit %'!$B$7 -> 0 | CA31: =(BW31-BX31)*'Benefit %'!$B$9 -> 0 | CB31: =BT31 -> 0 | CC31: =(BW31-BX31)*'Benefit %'!$B$13 -> 0 | CD31: =(BW31-BX31)*'Benefit %'!$B$15 -> 0 | CE31: ='Cert. Sal'!M28 -> 0 | CG31: =(CE31-CF31)*'Benefit %'!$B$3 -> 0 | CH31: =(CE31-CF31)*'Benefit %'!$B$7 -> 0 | CI31: =(CE31-CF31)*'Benefit %'!$B$9 -> 0 | CJ31: =CB31 -> 0 | CK31: =(CE31-CF31)*'Benefit %'!$B$13 -> 0 | CL31: =(CE31-CF31)*'Benefit %'!$B$15 -> 0 | CM31: ='Cert. Sal'!N28 -> 0 | CO31: =(CM31-CN31)*'Benefit %'!$B$3 -> 0 | CP31: =(CM31-CN31)*'Benefit %'!$B$7 -> 0 | CQ31: =(CM31-CN31)*'Benefit %'!$B$9 -> 0 | CR31: =CJ31 -> 0 | CS31: =(CM31-CN31)*'Benefit %'!$B$13 -> 0 | CT31: =(CM31-CN31)*'Benefit %'!$B$15 -> 0 | CU31: 0 | CV31: 0 | CW31: 0 | CX31: 0 | CY31: 0 | CZ31: 0 | DA31: 0 | DB31: 0
A32: 5 | C32: ='Cert. Sal'!C29 -> 0 | E32: =(C32-D32)*'Benefit %'!$B$3 -> 0 | F32: =(C32-D32)*'Benefit %'!$B$7 -> 0 | G32: =(C32-D32)*'Benefit %'!$B$9 -> 0 | I32: =(C32-D32)*'Benefit %'!$B$13 -> 0 | J32: =(C32-D32)*'Benefit %'!$B$15 -> 0 | K32: ='Cert. Sal'!D29 -> 0 | M32: =(K32-L32)*'Benefit %'!$B$3 -> 0 | N32: =(K32-L32)*'Benefit %'!$B$7 -> 0 | O32: =(K32-L32)*'Benefit %'!$B$9 -> 0 | Q32: =(K32-L32)*'Benefit %'!$B$13 -> 0 | R32: =(K32-L32)*'Benefit %'!$B$15 -> 0 | S32: ='Cert. Sal'!E29 -> 0 | U32: =(S32-T32)*'Benefit %'!$B$3 -> 0 | V32: =(S32-T32)*'Benefit %'!$B$7 -> 0 | W32: =(S32-T32)*'Benefit %'!$B$9 -> 0 | Y32: =(S32-T32)*'Benefit %'!$B$13 -> 0 | Z32: =(S32-T32)*'Benefit %'!$B$15 -> 0 | AA32: ='Cert. Sal'!F29 -> 0 | AC32: =(AA32-AB32)*'Benefit %'!$B$3 -> 0 | AD32: =(AA32-AB32)*'Benefit %'!$B$7 -> 0 | AE32: =(AA32-AB32)*'Benefit %'!$B$9 -> 0 | AG32: =(AA32-AB32)*'Benefit %'!$B$13 -> 0 | AH32: =(AA32-AB32)*'Benefit %'!$B$15 -> 0 | AI32: ='Cert. Sal'!G29 -> 0 | AK32: =(AI32-AJ32)*'Benefit %'!$B$3 -> 0 | AL32: =(AI32-AJ32)*'Benefit %'!$B$7 -> 0 | AM32: =(AI32-AJ32)*'Benefit %'!$B$9 -> 0 | AN32: =AF32 -> 0 | AO32: =(AI32-AJ32)*'Benefit %'!$B$13 -> 0 | AP32: =(AI32-AJ32)*'Benefit %'!$B$15 -> 0 | AQ32: ='Cert. Sal'!H29 -> 0 | AS32: =(AQ32-AR32)*'Benefit %'!$B$3 -> 0 | AT32: =(AQ32-AR32)*'Benefit %'!$B$7 -> 0 | AU32: =(AQ32-AR32)*'Benefit %'!$B$9 -> 0 | AV32: =AN32 -> 0 | AW32: =(AQ32-AR32)*'Benefit %'!$B$13 -> 0 | AX32: =(AQ32-AR32)*'Benefit %'!$B$15 -> 0 | AY32: ='Cert. Sal'!I29 -> 0 | BA32: =(AY32-AZ32)*'Benefit %'!$B$3 -> 0 | BB32: =(AY32-AZ32)*'Benefit %'!$B$7 -> 0 | BC32: =(AY32-AZ32)*'Benefit %'!$B$9 -> 0 | BD32: =AV32 -> 0 | BE32: =(AY32-AZ32)*'Benefit %'!$B$13 -> 0 | BF32: =(AY32-AZ32)*'Benefit %'!$B$15 -> 0 | BG32: ='Cert. Sal'!J29 -> 0 | BI32: =(BG32-BH32)*'Benefit %'!$B$3 -> 0 | BJ32: =(BG32-BH32)*'Benefit %'!$B$7 -> 0 | BK32: =(BG32-BH32)*'Benefit %'!$B$9 -> 0 | BL32: =BD32 -> 0 | BM32: =(BG32-BH32)*'Benefit %'!$B$13 -> 0 | BN32: =(BG32-BH32)*'Benefit %'!$B$15 -> 0 | BO32: ='Cert. Sal'!K29 -> 0 | BQ32: =(BO32-BP32)*'Benefit %'!$B$3 -> 0 | BR32: =(BO32-BP32)*'Benefit %'!$B$7 -> 0 | BS32: =(BO32-BP32)*'Benefit %'!$B$9 -> 0 | BT32: =BL32 -> 0 | BU32: =(BO32-BP32)*'Benefit %'!$B$13 -> 0 | BV32: =(BO32-BP32)*'Benefit %'!$B$15 -> 0 | BW32: ='Cert. Sal'!L29 -> 0 | BY32: =(BW32-BX32)*'Benefit %'!$B$3 -> 0 | BZ32: =(BW32-BX32)*'Benefit %'!$B$7 -> 0 | CA32: =(BW32-BX32)*'Benefit %'!$B$9 -> 0 | CB32: =BT32 -> 0 | CC32: =(BW32-BX32)*'Benefit %'!$B$13 -> 0 | CD32: =(BW32-BX32)*'Benefit %'!$B$15 -> 0 | CE32: ='Cert. Sal'!M29 -> 0 | CG32: =(CE32-CF32)*'Benefit %'!$B$3 -> 0 | CH32: =(CE32-CF32)*'Benefit %'!$B$7 -> 0 | CI32: =(CE32-CF32)*'Benefit %'!$B$9 -> 0 | CJ32: =CB32 -> 0 | CK32: =(CE32-CF32)*'Benefit %'!$B$13 -> 0 | CL32: =(CE32-CF32)*'Benefit %'!$B$15 -> 0 | CM32: ='Cert. Sal'!N29 -> 0 | CO32: =(CM32-CN32)*'Benefit %'!$B$3 -> 0 | CP32: =(CM32-CN32)*'Benefit %'!$B$7 -> 0 | CQ32: =(CM32-CN32)*'Benefit %'!$B$9 -> 0 | CR32: =CJ32 -> 0 | CS32: =(CM32-CN32)*'Benefit %'!$B$13 -> 0 | CT32: =(CM32-CN32)*'Benefit %'!$B$15 -> 0 | CU32: 0 | CV32: 0 | CW32: 0 | CX32: 0 | CY32: 0 | CZ32: 0 | DA32: 0 | DB32: 0
B34: Hourly Totals | C34: =SUM(C28:C33) -> 0 | D34: =SUM(D28:D33) -> 0 | E34: 0 | F34: 0 | G34: 0 | H34: 0 | I34: 0 | J34: 0 | K34: =SUM(K28:K33) -> 0 | L34: =SUM(L28:L33) -> 0 | M34: 0 | N34: 0 | O34: 0 | P34: 0 | Q34: 0 | R34: 0 | S34: =SUM(S28:S33) -> 0 | T34: =SUM(T28:T33) -> 0 | U34: 0 | V34: 0 | W34: 0 | X34: 0 | Y34: 0 | Z34: 0 | AA34: =SUM(AA28:AA33) -> 0 | AB34: =SUM(AB28:AB33) -> 0 | AC34: 0 | AD34: 0 | AE34: 0 | AF34: 0 | AG34: 0 | AH34: 0 | AI34: =SUM(AI28:AI33) -> 0 | AJ34: =SUM(AJ28:AJ33) -> 0 | AK34: 0 | AL34: 0 | AM34: 0 | AN34: 0 | AO34: 0 | AP34: 0 | AQ34: =SUM(AQ28:AQ33) -> 0 | AR34: =SUM(AR28:AR33) -> 0 | AS34: 0 | AT34: 0 | AU34: 0 | AV34: 0 | AW34: 0 | AX34: 0 | AY34: =SUM(AY28:AY33) -> 0 | AZ34: =SUM(AZ28:AZ33) -> 0 | BA34: 0 | BB34: 0 | BC34: 0 | BD34: 0 | BE34: 0 | BF34: 0 | BG34: =SUM(BG28:BG33) -> 0 | BH34: =SUM(BH28:BH33) -> 0 | BI34: 0 | BJ34: 0 | BK34: 0 | BL34: 0 | BM34: 0 | BN34: 0 | BO34: =SUM(BO28:BO33) -> 0 | BP34: =SUM(BP28:BP33) -> 0 | BQ34: 0 | BR34: 0 | BS34: 0 | BT34: 0 | BU34: 0 | BV34: 0 | BW34: =SUM(BW28:BW33) -> 0 | BX34: =SUM(BX28:BX33) -> 0 | BY34: 0 | BZ34: 0 | CA34: 0 | CB34: 0 | CC34: 0 | CD34: 0 | CE34: =SUM(CE28:CE33) -> 0 | CF34: =SUM(CF28:CF33) -> 0 | CG34: 0 | CH34: 0 | CI34: 0 | CJ34: 0 | CK34: 0 | CL34: 0 | CM34: =SUM(CM28:CM33) -> 0 | CN34: =SUM(CN28:CN33) -> 0 | CO34: 0 | CP34: 0 | CQ34: 0 | CR34: 0 | CS34: 0 | CT34: 0 | CU34: =SUM(CU28:CU33) -> 0 | CV34: =SUM(CV28:CV33) -> 0 | CW34: 0 | CX34: 0 | CY34: 0 | CZ34: 0 | DA34: 0 | DB34: =SUM(DB28:DB33) -> 0
B35: Monthly Benefit Total | I35: =SUM(E34:J34) -> 0 | Q35: =SUM(M34:R34) -> 0 | Y35: =SUM(U34:Z34) -> 0 | AG35: =SUM(AC34:AH34) -> 0 | AO35: =SUM(AK34:AP34) -> 0 | AW35: =SUM(AS34:AX34) -> 0 | BE35: =SUM(BA34:BF34) -> 0 | BM35: =SUM(BI34:BN34) -> 0 | BU35: =SUM(BQ34:BV34) -> 0 | CC35: =SUM(BY34:CD34) -> 0 | CK35: =SUM(CG34:CL34) -> 0 | CS35: =SUM(CO34:CT34) -> 0 | CX35: Hourly Yearly Benefits | DA35: =SUM(CW34:DB34) -> 0
A37: Certificated Total | C37: =SUM(C16,C25,C34) -> 15531.8 | D37: 0 | E37: 1281.3735 | F37: 0 | G37: 225.2111 | H37: 0 | I37: 111.82896 | J37: 343.25278 | K37: 15531.8 | L37: =SUM(L16,L25,L34) -> 0 | M37: 1281.3735 | N37: 0 | O37: 225.2111 | P37: 0 | Q37: 111.82896 | R37: 343.25278 | S37: =SUM(S16,S25,S34) -> 15531.8 | T37: =SUM(T16,T25,T34) -> 0 | U37: 1281.3735 | V37: 0 | W37: 225.2111 | X37: 0 | Y37: 111.82896 | Z37: 343.25278 | AA37: =SUM(AA16,AA25,AA34) -> 15601.81 | AB37: =SUM(AB16,AB25,AB34) -> 0 | AC37: 1287.149325 | AD37: 0 | AE37: 226.226245 | AF37: 0 | AG37: 112.333032 | AH37: 344.800001 | AI37: =SUM(AI16,AI25,AI34) -> 15601.81 | AJ37: =SUM(AJ16,AJ25,AJ34) -> 0 | AK37: 1287.149325 | AL37: 0 | AM37: 226.226245 | AN37: 341.15 | AO37: 112.333032 | AP37: 344.800001 | AQ37: =SUM(AQ16,AQ25,AQ34) -> 19964.8 | AR37: =SUM(AR16,AR25,AR34) -> 0 | AS37: 1647.096 | AT37: 195.97394 | AU37: 289.4896 | AV37: 341.15 | AW37: 143.74656 | AX37: 441.22208 | AY37: =SUM(AY16,AY25,AY34) -> 19964.8 | AZ37: =SUM(AZ16,AZ25,AZ34) -> 0 | BA37: 1647.096 | BB37: 195.97394 | BC37: 289.4896 | BD37: 341.15 | BE37: 143.74656 | BF37: 441.22208 | BG37: =SUM(BG16,BG25,BG34) -> 20050.1 | BH37: =SUM(BH16,BH25,BH34) -> 0 | BI37: 1654.13325 | BJ37: 195.97394 | BK37: 290.72645 | BL37: 341.15 | BM37: 144.36072 | BN37: 443.10721 | BO37: =SUM(BO16,BO25,BO34) -> 20093.73 | BP37: =SUM(BP16,BP25,BP34) -> 0 | BQ37: 1657.732725 | BR37: 197.93376 | BS37: 291.359085 | BT37: 341.15 | BU37: 144.674856 | BV37: 444.071433 | BW37: =SUM(BW16,BW25,BW34) -> 14826.18 | BX37: =SUM(BX16,BX25,BX34) -> 0 | BY37: 1223.15985 | BZ37: 385.02682 | CA37: 214.97961 | CB37: 0 | CC37: 106.748496 | CD37: 327.658578 | CE37: =SUM(CE16,CE25,CE34) -> 20796.86 | CF37: =SUM(CF16,CF25,CF34) -> 0 | CG37: 1715.74095 | CH37: 755.20898 | CI37: 301.55447 | CJ37: 0 | CK37: 149.737392 | CL37: 459.610606 | CM37: =SUM(CM16,CM25,CM34) -> 37098.95 | CN37: =SUM(CN16,CN25,CN34) -> 0 | CO37: 3060.663375 | CP37: 755.20898 | CQ37: 537.934775 | CR37: 341.15 | CS37: 267.11244 | CT37: 819.886795 | CU37: =SUM(CU16,CU25,CU34) -> 242211.31 | CV37: =SUM(CV16,CV25,CV34) -> 306.9 | CW37: 23233.13 | CX37: 0 | CY37: 3646.72556 | CZ37: 38702.6 | DA37: 173.37 | DB37: 3845.45
A38: Total Cert. Monthly Benefit | I38: =SUM(E37:J37) -> 1961.66634 | Q38: =SUM(M37:R37) -> 1961.66634 | Y38: =SUM(U37:Z37) -> 1961.66634 | AG38: =SUM(AC37:AH37) -> 1970.508603 | AO38: =SUM(AK37:AP37) -> 2311.658603 | AW38: =SUM(AS37:AX37) -> 3058.67818 | BE38: =SUM(BA37:BF37) -> 3058.67818 | BM38: =SUM(BI37:BN37) -> 3069.45157 | BU38: =SUM(BQ37:BV37) -> 3076.921859 | CC38: =SUM(BY37:CD37) -> 2257.573354 | CK38: =SUM(CG37:CL37) -> 3381.852398 | CS38: =SUM(CO37:CT37) -> 5781.956365 | CW38: Total Cert.Yearly Benefits | DA38: =SUM(CV37:DB37) -> 69908.17556
C42: July | K42: August | S42: September | AA42: October | AI42: November | AJ42: November | AQ42: December | AR42: December | AY42: January | BG42: February | BO42: March | BW42: April | CE42: May | CM42: June | CU42: YEAR TOTAL
A43: Classified Employees | C43: GI | D43: TSA | E43: PERS | F43: OASDI | G43: MEDI | H43: H&W | I43: SUI | J43: W/C | K43: GI | L43: TSA | M43: PERS | N43: OASDI | O43: MEDI | P43: H&W | Q43: SUI | R43: W/C | S43: GI | T43: TSA | U43: PERS | V43: OASDI | W43: MEDI | X43: H&W | Y43: SUI | Z43: W/C | AA43: GI | AB43: TSA | AC43: PERS | AD43: OASDI | AE43: MEDI | AF43: H&W | AG43: SUI | AH43: W/C | AI43: GI | AJ43: TSA | AK43: PERS | AL43: OASDI | AM43: MEDI | AN43: H&W | AO43: SUI | AP43: W/C | AQ43: GI | AR43: TSA | AS43: PERS | AT43: OASDI | AU43: MEDI | AV43: H&W | AW43: SUI | AX43: W/C | AY43: GI | AZ43: TSA | BA43: PERS | BB43: OASDI | BC43: MEDI | BD43: H&W | BE43: SUI | BF43: W/C | BG43: GI | BH43: TSA | BI43: PERS | BJ43: OASDI | BK43: MEDI | BL43: H&W | BM43: SUI | BN43: W/C | BO43: GI | BP43: TSA | BQ43: PERS | BR43: OASDI | BS43: MEDI | BT43: H&W | BU43: SUI | BV43: W/C | BW43: GI | BX43: TSA | BY43: PERS | BZ43: OASDI | CA43: MEDI | CB43: H&W | CC43: SUI | CD43: W/C | CE43: GI | CF43: TSA | CG43: PERS | CH43: OASDI | CI43: MEDI | CJ43: H&W | CK43: SUI | CL43: W/C | CM43: GI | CN43: TSA | CO43: PERS | CP43: OASDI | CQ43: MEDI | CR43: H&W | CS43: SUI | CT43: W/C | CU43: GI | CV43: TSA | CW43: PERS | CX43: OASDI | CY43: MEDI | CZ43: H&W | DA43: SUI | DB43: W/C
B45: Full-Time
A46: 1 | B46: DEPLAZES,SVETLANA P | C46: ='Class. Sal'!C12 -> 3841.25 | E46: =(C46-D46)*'Benefit %'!$B$5 -> 411.2826375 | F46: =(C46-D46)*'Benefit %'!$B$7 -> 238.1575 | G46: =(C46-D46)*'Benefit %'!$B$9 -> 55.698125 | I46: =(C46-D46)*'Benefit %'!$B$13 -> 27.657 | J46: =(C46-D46)*'Benefit %'!$B$15 -> 84.891625 | K46: ='Class. Sal'!D12 -> 3841.25 | M46: =(K46-L46)*'Benefit %'!$B$5 -> 411.2826375 | N46: =(K46-L46)*'Benefit %'!$B$7 -> 238.1575 | O46: =(K46-L46)*'Benefit %'!$B$9 -> 55.698125 | P46: =H46 -> 0 | Q46: =(K46-L46)*'Benefit %'!$B$13 -> 27.657 | R46: =(K46-L46)*'Benefit %'!$B$15 -> 84.891625 | S46: ='Class. Sal'!E12 -> 4017.71 | U46: =(S46-T46)*'Benefit %'!$B$5 -> 430.1762097 | V46: =(S46-T46)*'Benefit %'!$B$7 -> 249.09802 | W46: =(S46-T46)*'Benefit %'!$B$9 -> 58.256795 | X46: 603.73 | Y46: =(S46-T46)*'Benefit %'!$B$13 -> 28.927512 | Z46: =(S46-T46)*'Benefit %'!$B$15 -> 88.791391 | AA46: ='Class. Sal'!F12 -> 4066.05 | AC46: =(AA46-AB46)*'Benefit %'!$B$5 -> 435.3519735 | AD46: =(AA46-AB46)*'Benefit %'!$B$7 -> 252.0951 | AE46: =(AA46-AB46)*'Benefit %'!$B$9 -> 58.957725 | AF46: =X46 -> 603.73 | AG46: =(AA46-AB46)*'Benefit %'!$B$13 -> 29.27556 | AH46: =(AA46-AB46)*'Benefit %'!$B$15 -> 89.859705 | AI46: ='Class. Sal'!G12 -> 4066.05 | AK46: =(AI46-AJ46)*'Benefit %'!$B$5 -> 435.3519735 | AL46: =(AI46-AJ46)*'Benefit %'!$B$7 -> 252.0951 | AM46: =(AI46-AJ46)*'Benefit %'!$B$9 -> 58.957725 | AN46: 603.73 | AO46: =(AI46-AJ46)*'Benefit %'!$B$13 -> 29.27556 | AP46: =(AI46-AJ46)*'Benefit %'!$B$15 -> 89.859705 | AQ46: ='Class. Sal'!H12 -> 4066.05 | AS46: =(AQ46-AR46)*'Benefit %'!$B$5 -> 435.3519735 | AT46: =(AQ46-AR46)*'Benefit %'!$B$7 -> 252.0951 | AU46: =(AQ46-AR46)*'Benefit %'!$B$9 -> 58.957725 | AV46: =AN46 -> 603.73 | AW46: =(AQ46-AR46)*'Benefit %'!$B$13 -> 29.27556 | AX46: =(AQ46-AR46)*'Benefit %'!$B$15 -> 89.859705 | AY46: ='Class. Sal'!I12 -> 4066.05 | BA46: =(AY46-AZ46)*'Benefit %'!$B$5 -> 435.3519735 | BB46: =(AY46-AZ46)*'Benefit %'!$B$7 -> 252.0951 | BC46: =(AY46-AZ46)*'Benefit %'!$B$9 -> 58.957725 | BD46: 603.73 | BE46: =(AY46-AZ46)*'Benefit %'!$B$13 -> 29.27556 | BF46: =(AY46-AZ46)*'Benefit %'!$B$15 -> 89.859705 | BG46: ='Class. Sal'!J12 -> 4106.71 | BI46: =(BG46-BH46)*'Benefit %'!$B$5 -> 439.7054397 | BJ46: =(BG46-BH46)*'Benefit %'!$B$7 -> 254.61602 | BK46: =(BG46-BH46)*'Benefit %'!$B$9 -> 59.547295 | BL46: =BD46 -> 603.73 | BM46: =(BG46-BH46)*'Benefit %'!$B$13 -> 29.568312 | BN46: =(BG46-BH46)*'Benefit %'!$B$15 -> 90.758291 | BO46: ='Class. Sal'!K12 -> 4106.71 | BQ46: =(BO46-BP46)*'Benefit %'!$B$5 -> 439.7054397 | BR46: =(BO46-BP46)*'Benefit %'!$B$7 -> 254.61602 | BS46: =(BO46-BP46)*'Benefit %'!$B$9 -> 59.547295 | BT46: =BL46 -> 603.73 | BU46: =(BO46-BP46)*'Benefit %'!$B$13 -> 29.568312 | BV46: =(BO46-BP46)*'Benefit %'!$B$15 -> 90.758291 | BW46: ='Class. Sal'!L12 -> 4312.03 | BY46: =(BW46-BX46)*'Benefit %'!$B$5 -> 461.6890521 | BZ46: =(BW46-BX46)*'Benefit %'!$B$7 -> 267.34586 | CA46: =(BW46-BX46)*'Benefit %'!$B$9 -> 62.524435 | CB46: 603.73 | CC46: =(BW46-BX46)*'Benefit %'!$B$13 -> 31.046616 | CD46: =(BW46-BX46)*'Benefit %'!$B$15 -> 95.295863 | CE46: ='Class. Sal'!M12 -> 4312.03 | CG46: =(CE46-CF46)*'Benefit %'!$B$5 -> 461.6890521 | CH46: =(CE46-CF46)*'Benefit %'!$B$7 -> 267.34586 | CI46: =(CE46-CF46)*'Benefit %'!$B$9 -> 62.524435 | CJ46: 603.73 | CK46: =(CE46-CF46)*'Benefit %'!$B$13 -> 31.046616 | CL46: =(CE46-CF46)*'Benefit %'!$B$15 -> 95.295863 | CM46: ='Class. Sal'!N12 -> 4312.03 | CO46: =(CM46-CN46)*'Benefit %'!$B$5 -> 461.6890521 | CP46: =(CM46-CN46)*'Benefit %'!$B$7 -> 267.34586 | CQ46: =(CM46-CN46)*'Benefit %'!$B$9 -> 62.524435 | CR46: 603.73 | CS46: =(CM46-CN46)*'Benefit %'!$B$13 -> 31.046616 | CT46: =(CM46-CN46)*'Benefit %'!$B$15 -> 95.295863 | CU46: =SUM(C46,K46,S46,AA46,AI46,AQ46,AY46,BG46,BO46,BW46,CE46,CM46) -> 49113.92 | CV46: =SUM(D46,L46,T46,AB46,AJ46,AR46,AZ46,BH46,BP46,BX46,CF46,CN46) -> 0 | CW46: 529.66 | CX46: 476.39 | CY46: 111.42 | CZ46: 1115.42 | DA46: 3.84 | DB46: 91.47 | DC46: =SUM(CW46:DB46) -> 2328.2
A47: 2 | B47: Elder Aguilar | C47: ='Class. Sal'!C5 -> 0 | E47: =(C47-D47)*'Benefit %'!$B$5 -> 0 | F47: =(C47-D47)*'Benefit %'!$B$7 -> 0 | G47: =(C47-D47)*'Benefit %'!$B$9 -> 0 | I47: =(C47-D47)*'Benefit %'!$B$13 -> 0 | J47: =(C47-D47)*'Benefit %'!$B$15 -> 0 | K47: ='Class. Sal'!D4 -> 2241.41 | M47: =(K47-L47)*'Benefit %'!$B$5 -> 239.9877687 | N47: =(K47-L47)*'Benefit %'!$B$7 -> 138.96742 | O47: =(K47-L47)*'Benefit %'!$B$9 -> 32.500445 | P47: =H47 -> 0 | Q47: =(K47-L47)*'Benefit %'!$B$13 -> 16.138152 | R47: =(K47-L47)*'Benefit %'!$B$15 -> 49.535161 | S47: ='Class. Sal'!E4 -> 2241.41 | U47: =(S47-T47)*'Benefit %'!$B$5 -> 239.9877687 | V47: =(S47-T47)*'Benefit %'!$B$7 -> 138.96742 | W47: =(S47-T47)*'Benefit %'!$B$9 -> 32.500445 | X47: 1296.61 | Y47: =(S47-T47)*'Benefit %'!$B$13 -> 16.138152 | Z47: =(S47-T47)*'Benefit %'!$B$15 -> 49.535161 | AA47: ='Class. Sal'!F4 -> 2353.44 | AC47: =(AA47-AB47)*'Benefit %'!$B$5 -> 251.9828208 | AD47: =(AA47-AB47)*'Benefit %'!$B$7 -> 145.91328 | AE47: =(AA47-AB47)*'Benefit %'!$B$9 -> 34.12488 | AF47: 1296.61 | AG47: =(AA47-AB47)*'Benefit %'!$B$13 -> 16.944768 | AH47: =(AA47-AB47)*'Benefit %'!$B$15 -> 52.011024 | AI47: ='Class. Sal'!G4 -> 2353.44 | AK47: =(AI47-AJ47)*'Benefit %'!$B$5 -> 251.9828208 | AL47: =(AI47-AJ47)*'Benefit %'!$B$7 -> 145.91328 | AM47: =(AI47-AJ47)*'Benefit %'!$B$9 -> 34.12488 | AN47: =AF47 -> 1296.61 | AO47: =(AI47-AJ47)*'Benefit %'!$B$13 -> 16.944768 | AP47: =(AI47-AJ47)*'Benefit %'!$B$15 -> 52.011024 | AQ47: ='Class. Sal'!H4 -> 2353.44 | AS47: =(AQ47-AR47)*'Benefit %'!$B$5 -> 251.9828208 | AT47: =(AQ47-AR47)*'Benefit %'!$B$7 -> 145.91328 | AU47: =(AQ47-AR47)*'Benefit %'!$B$9 -> 34.12488 | AV47: =AN47 -> 1296.61 | AW47: =(AQ47-AR47)*'Benefit %'!$B$13 -> 16.944768 | AX47: =(AQ47-AR47)*'Benefit %'!$B$15 -> 52.011024 | AY47: ='Class. Sal'!I4 -> 2353.44 | BA47: =(AY47-AZ47)*'Benefit %'!$B$5 -> 251.9828208 | BB47: =(AY47-AZ47)*'Benefit %'!$B$7 -> 145.91328 | BC47: =(AY47-AZ47)*'Benefit %'!$B$9 -> 34.12488 | BD47: =AV47 -> 1296.61 | BE47: =(AY47-AZ47)*'Benefit %'!$B$13 -> 16.944768 | BF47: =(AY47-AZ47)*'Benefit %'!$B$15 -> 52.011024 | BG47: ='Class. Sal'!J4 -> 2353.44 | BI47: =(BG47-BH47)*'Benefit %'!$B$5 -> 251.9828208 | BJ47: =(BG47-BH47)*'Benefit %'!$B$7 -> 145.91328 | BK47: =(BG47-BH47)*'Benefit %'!$B$9 -> 34.12488 | BL47: =BD47 -> 1296.61 | BM47: =(BG47-BH47)*'Benefit %'!$B$13 -> 16.944768 | BN47: =(BG47-BH47)*'Benefit %'!$B$15 -> 52.011024 | BO47: ='Class. Sal'!K4 -> 2376.97 | BQ47: =(BO47-BP47)*'Benefit %'!$B$5 -> 254.5021779 | BR47: =(BO47-BP47)*'Benefit %'!$B$7 -> 147.37214 | BS47: =(BO47-BP47)*'Benefit %'!$B$9 -> 34.466065 | BT47: =BL47 -> 1296.61 | BU47: =(BO47-BP47)*'Benefit %'!$B$13 -> 17.114184 | BV47: =(BO47-BP47)*'Benefit %'!$B$15 -> 52.531037 | BW47: ='Class. Sal'!L4 -> 2376.97 | BY47: =(BW47-BX47)*'Benefit %'!$B$5 -> 254.5021779 | BZ47: =(BW47-BX47)*'Benefit %'!$B$7 -> 147.37214 | CA47: =(BW47-BX47)*'Benefit %'!$B$9 -> 34.466065 | CB47: =BT47 -> 1296.61 | CC47: =(BW47-BX47)*'Benefit %'!$B$13 -> 17.114184 | CD47: =(BW47-BX47)*'Benefit %'!$B$15 -> 52.531037 | CE47: ='Class. Sal'!M4 -> 2376.97 | CG47: =(CE47-CF47)*'Benefit %'!$B$5 -> 254.5021779 | CH47: =(CE47-CF47)*'Benefit %'!$B$7 -> 147.37214 | CI47: =(CE47-CF47)*'Benefit %'!$B$9 -> 34.466065 | CJ47: =CB47 -> 1296.61 | CK47: =(CE47-CF47)*'Benefit %'!$B$13 -> 17.114184 | CL47: =(CE47-CF47)*'Benefit %'!$B$15 -> 52.531037 | CM47: ='Class. Sal'!N4 -> 2376.97 | CO47: =(CM47-CN47)*'Benefit %'!$B$5 -> 254.5021779 | CP47: =(CM47-CN47)*'Benefit %'!$B$7 -> 147.37214 | CQ47: =(CM47-CN47)*'Benefit %'!$B$9 -> 34.466065 | CR47: =CJ47 -> 1296.61 | CS47: =(CM47-CN47)*'Benefit %'!$B$13 -> 17.114184 | CT47: =(CM47-CN47)*'Benefit %'!$B$15 -> 52.531037 | CU47: ='Class. Sal'!O4 -> 28134.87 | CV47: =SUM(D47,L47,T47,AB47,AJ47,AR47,AZ47,BH47,BP47,BX47,CF47,CN47) -> 0 | CW47: 2817.21 | CX47: 1574.85 | CY47: 368.25 | CZ47: 6219.68 | DA47: 12.65 | DB47: 479.32 | DC47: =SUM(CW47:DB47) -> 11471.96
A48: 3 | B48: Geary Cook | C48: ='Class. Sal'!C24 -> 0 | E48: =(C48-D48)*'Benefit %'!$B$5 -> 0 | F48: =(C48-D48)*'Benefit %'!$B$7 -> 0 | G48: =(C48-D48)*'Benefit %'!$B$9 -> 0 | I48: =(C48-D48)*'Benefit %'!$B$13 -> 0 | J48: =(C48-D48)*'Benefit %'!$B$15 -> 0 | K48: ='Class. Sal'!D24 -> 0 | M48: =(K48-L48)*'Benefit %'!$B$5 -> 0 | N48: =(K48-L48)*'Benefit %'!$B$7 -> 0 | O48: =(K48-L48)*'Benefit %'!$B$9 -> 0 | P48: =H48 -> 0 | Q48: =(K48-L48)*'Benefit %'!$B$13 -> 0 | R48: =(K48-L48)*'Benefit %'!$B$15 -> 0 | S48: ='Class. Sal'!E24 -> 0 | U48: =(S48-T48)*'Benefit %'!$B$5 -> 0 | V48: =(S48-T48)*'Benefit %'!$B$7 -> 0 | W48: =(S48-T48)*'Benefit %'!$B$9 -> 0 | X48: 1433.03 | Y48: =(S48-T48)*'Benefit %'!$B$13 -> 0 | Z48: =(S48-T48)*'Benefit %'!$B$15 -> 0 | AA48: ='Class. Sal'!F24 -> 0 | AC48: =(AA48-AB48)*'Benefit %'!$B$5 -> 0 | AD48: =(AA48-AB48)*'Benefit %'!$B$7 -> 0 | AE48: =(AA48-AB48)*'Benefit %'!$B$9 -> 0 | AF48: 1433.03 | AG48: =(AA48-AB48)*'Benefit %'!$B$13 -> 0 | AH48: =(AA48-AB48)*'Benefit %'!$B$15 -> 0 | AI48: ='Class. Sal'!G24 -> 0 | AK48: =(AI48-AJ48)*'Benefit %'!$B$5 -> 0 | AL48: =(AI48-AJ48)*'Benefit %'!$B$7 -> 0 | AM48: =(AI48-AJ48)*'Benefit %'!$B$9 -> 0 | AN48: =AF48 -> 1433.03 | AO48: =(AI48-AJ48)*'Benefit %'!$B$13 -> 0 | AP48: =(AI48-AJ48)*'Benefit %'!$B$15 -> 0 | AQ48: ='Class. Sal'!H24 -> 0 | AS48: =(AQ48-AR48)*'Benefit %'!$B$5 -> 0 | AT48: =(AQ48-AR48)*'Benefit %'!$B$7 -> 0 | AU48: =(AQ48-AR48)*'Benefit %'!$B$9 -> 0 | AV48: =AN48 -> 1433.03 | AW48: =(AQ48-AR48)*'Benefit %'!$B$13 -> 0 | AX48: =(AQ48-AR48)*'Benefit %'!$B$15 -> 0 | AY48: ='Class. Sal'!I24 -> 0 | BA48: =(AY48-AZ48)*'Benefit %'!$B$5 -> 0 | BB48: =(AY48-AZ48)*'Benefit %'!$B$7 -> 0 | BC48: =(AY48-AZ48)*'Benefit %'!$B$9 -> 0 | BD48: =AV48 -> 1433.03 | BE48: =(AY48-AZ48)*'Benefit %'!$B$13 -> 0 | BF48: =(AY48-AZ48)*'Benefit %'!$B$15 -> 0 | BG48: ='Class. Sal'!J24 -> 0 | BI48: =(BG48-BH48)*'Benefit %'!$B$5 -> 0 | BJ48: =(BG48-BH48)*'Benefit %'!$B$7 -> 0 | BK48: =(BG48-BH48)*'Benefit %'!$B$9 -> 0 | BL48: =BD48 -> 1433.03 | BM48: =(BG48-BH48)*'Benefit %'!$B$13 -> 0 | BN48: =(BG48-BH48)*'Benefit %'!$B$15 -> 0 | BO48: ='Class. Sal'!K24 -> 0 | BQ48: =(BO48-BP48)*'Benefit %'!$B$5 -> 0 | BR48: =(BO48-BP48)*'Benefit %'!$B$7 -> 0 | BS48: =(BO48-BP48)*'Benefit %'!$B$9 -> 0 | BT48: =BL48 -> 1433.03 | BU48: =(BO48-BP48)*'Benefit %'!$B$13 -> 0 | BV48: =(BO48-BP48)*'Benefit %'!$B$15 -> 0 | BW48: ='Class. Sal'!L24 -> 0 | BY48: =(BW48-BX48)*'Benefit %'!$B$5 -> 0 | BZ48: =(BW48-BX48)*'Benefit %'!$B$7 -> 0 | CA48: =(BW48-BX48)*'Benefit %'!$B$9 -> 0 | CB48: =BT48 -> 1433.03 | CC48: =(BW48-BX48)*'Benefit %'!$B$13 -> 0 | CD48: =(BW48-BX48)*'Benefit %'!$B$15 -> 0 | CE48: ='Class. Sal'!M24 -> 0 | CG48: =(CE48-CF48)*'Benefit %'!$B$5 -> 0 | CH48: =(CE48-CF48)*'Benefit %'!$B$7 -> 0 | CI48: =(CE48-CF48)*'Benefit %'!$B$9 -> 0 | CJ48: =CB48 -> 1433.03 | CK48: =(CE48-CF48)*'Benefit %'!$B$13 -> 0 | CL48: =(CE48-CF48)*'Benefit %'!$B$15 -> 0 | CM48: ='Class. Sal'!N24 -> 0 | CO48: =(CM48-CN48)*'Benefit %'!$B$5 -> 0 | CP48: =(CM48-CN48)*'Benefit %'!$B$7 -> 0 | CQ48: =(CM48-CN48)*'Benefit %'!$B$9 -> 0 | CR48: =CJ48 -> 1433.03 | CS48: =(CM48-CN48)*'Benefit %'!$B$13 -> 0 | CT48: =(CM48-CN48)*'Benefit %'!$B$15 -> 0 | CU48: ='Class. Sal'!O5 -> 0 | CV48: 0 | CW48: 4985.92 | CX48: 2870.69 | CY48: 671.39 | CZ48: 8702.24 | DA48: 23.23 | DB48: 847.51 | DC48: 18100.98
A49: 4 | B49: Aiko Martin | C49: ='Class. Sal'!C7 -> 0 | E49: =(C49-D49)*'Benefit %'!$B$5 -> 0 | F49: =(C49-D49)*'Benefit %'!$B$7 -> 0 | G49: =(C49-D49)*'Benefit %'!$B$9 -> 0 | I49: =(C49-D49)*'Benefit %'!$B$13 -> 0 | J49: =(C49-D49)*'Benefit %'!$B$15 -> 0 | K49: ='Class. Sal'!D7 -> 0 | M49: =(K49-L49)*'Benefit %'!$B$5 -> 0 | N49: =(K49-L49)*'Benefit %'!$B$7 -> 0 | O49: =(K49-L49)*'Benefit %'!$B$9 -> 0 | P49: =H49 -> 0 | Q49: =(K49-L49)*'Benefit %'!$B$13 -> 0 | R49: =(K49-L49)*'Benefit %'!$B$15 -> 0 | S49: ='Class. Sal'!E7 -> 0 | U49: =(S49-T49)*'Benefit %'!$B$5 -> 0 | V49: =(S49-T49)*'Benefit %'!$B$7 -> 0 | W49: =(S49-T49)*'Benefit %'!$B$9 -> 0 | X49: 214.89 | Y49: =(S49-T49)*'Benefit %'!$B$13 -> 0 | Z49: =(S49-T49)*'Benefit %'!$B$15 -> 0 | AA49: ='Class. Sal'!F7 -> 0 | AC49: =(AA49-AB49)*'Benefit %'!$B$5 -> 0 | AD49: =(AA49-AB49)*'Benefit %'!$B$7 -> 0 | AE49: =(AA49-AB49)*'Benefit %'!$B$9 -> 0 | AF49: 214.89 | AG49: =(AA49-AB49)*'Benefit %'!$B$13 -> 0 | AH49: =(AA49-AB49)*'Benefit %'!$B$15 -> 0 | AI49: ='Class. Sal'!G7 -> 0 | AK49: =(AI49-AJ49)*'Benefit %'!$B$5 -> 0 | AL49: =(AI49-AJ49)*'Benefit %'!$B$7 -> 0 | AM49: =(AI49-AJ49)*'Benefit %'!$B$9 -> 0 | AN49: =AF49 -> 214.89 | AO49: =(AI49-AJ49)*'Benefit %'!$B$13 -> 0 | AP49: =(AI49-AJ49)*'Benefit %'!$B$15 -> 0 | AQ49: ='Class. Sal'!H7 -> 0 | AS49: =(AQ49-AR49)*'Benefit %'!$B$5 -> 0 | AT49: =(AQ49-AR49)*'Benefit %'!$B$7 -> 0 | AU49: =(AQ49-AR49)*'Benefit %'!$B$9 -> 0 | AV49: =AN49 -> 214.89 | AW49: =(AQ49-AR49)*'Benefit %'!$B$13 -> 0 | AX49: =(AQ49-AR49)*'Benefit %'!$B$15 -> 0 | AY49: ='Class. Sal'!I7 -> 0 | BA49: =(AY49-AZ49)*'Benefit %'!$B$5 -> 0 | BB49: =(AY49-AZ49)*'Benefit %'!$B$7 -> 0 | BC49: =(AY49-AZ49)*'Benefit %'!$B$9 -> 0 | BD49: =AV49 -> 214.89 | BE49: =(AY49-AZ49)*'Benefit %'!$B$13 -> 0 | BF49: =(AY49-AZ49)*'Benefit %'!$B$15 -> 0 | BG49: ='Class. Sal'!J7 -> 0 | BI49: =(BG49-BH49)*'Benefit %'!$B$5 -> 0 | BJ49: =(BG49-BH49)*'Benefit %'!$B$7 -> 0 | BK49: =(BG49-BH49)*'Benefit %'!$B$9 -> 0 | BL49: =BD49 -> 214.89 | BM49: =(BG49-BH49)*'Benefit %'!$B$13 -> 0 | BN49: =(BG49-BH49)*'Benefit %'!$B$15 -> 0 | BO49: ='Class. Sal'!K7 -> 0 | BQ49: =(BO49-BP49)*'Benefit %'!$B$5 -> 0 | BR49: =(BO49-BP49)*'Benefit %'!$B$7 -> 0 | BS49: =(BO49-BP49)*'Benefit %'!$B$9 -> 0 | BT49: =BL49 -> 214.89 | BU49: =(BO49-BP49)*'Benefit %'!$B$13 -> 0 | BV49: =(BO49-BP49)*'Benefit %'!$B$15 -> 0 | BW49: ='Class. Sal'!L7 -> 0 | BY49: =(BW49-BX49)*'Benefit %'!$B$5 -> 0 | BZ49: =(BW49-BX49)*'Benefit %'!$B$7 -> 0 | CA49: =(BW49-BX49)*'Benefit %'!$B$9 -> 0 | CB49: =BT49 -> 214.89 | CC49: =(BW49-BX49)*'Benefit %'!$B$13 -> 0 | CD49: =(BW49-BX49)*'Benefit %'!$B$15 -> 0 | CE49: ='Class. Sal'!M7 -> 0 | CG49: =(CE49-CF49)*'Benefit %'!$B$5 -> 0 | CH49: =(CE49-CF49)*'Benefit %'!$B$7 -> 0 | CI49: =(CE49-CF49)*'Benefit %'!$B$9 -> 0 | CJ49: =CB49 -> 214.89 | CK49: =(CE49-CF49)*'Benefit %'!$B$13 -> 0 | CL49: =(CE49-CF49)*'Benefit %'!$B$15 -> 0 | CM49: ='Class. Sal'!N7 -> 0 | CO49: =(CM49-CN49)*'Benefit %'!$B$5 -> 0 | CP49: =(CM49-CN49)*'Benefit %'!$B$7 -> 0 | CQ49: =(CM49-CN49)*'Benefit %'!$B$9 -> 0 | CR49: =CJ49 -> 214.89 | CS49: =(CM49-CN49)*'Benefit %'!$B$13 -> 0 | CT49: =(CM49-CN49)*'Benefit %'!$B$15 -> 0 | CU49: ='Class. Sal'!O21 -> 22351.33 | CV49: 0 | CW49: 2323.91 | CX49: 837.75 | CY49: 195.93 | CZ49: 7907.9 | DA49: 6.71 | DB49: 399.66 | DC49: 11671.86
A50: 5 | B50: Towana Catley - Advisor (50%) | C50: ='Class. Sal'!C8 -> 0 | E50: =(C50-D50)*'Benefit %'!$B$5 -> 0 | F50: =(C50-D50)*'Benefit %'!$B$7 -> 0 | G50: =(C50-D50)*'Benefit %'!$B$9 -> 0 | I50: =(C50-D50)*'Benefit %'!$B$13 -> 0 | J50: =(C50-D50)*'Benefit %'!$B$15 -> 0 | K50: ='Class. Sal'!D8 -> 0 | M50: =(K50-L50)*'Benefit %'!$B$5 -> 0 | N50: =(K50-L50)*'Benefit %'!$B$7 -> 0 | O50: =(K50-L50)*'Benefit %'!$B$9 -> 0 | P50: =H50 -> 0 | Q50: =(K50-L50)*'Benefit %'!$B$13 -> 0 | R50: =(K50-L50)*'Benefit %'!$B$15 -> 0 | S50: ='Class. Sal'!E8 -> 0 | U50: =(S50-T50)*'Benefit %'!$B$5 -> 0 | V50: =(S50-T50)*'Benefit %'!$B$7 -> 0 | W50: =(S50-T50)*'Benefit %'!$B$9 -> 0 | X50: 665.84 | Y50: =(S50-T50)*'Benefit %'!$B$13 -> 0 | Z50: =(S50-T50)*'Benefit %'!$B$15 -> 0 | AA50: ='Class. Sal'!F8 -> 0 | AC50: =(AA50-AB50)*'Benefit %'!$B$5 -> 0 | AD50: =(AA50-AB50)*'Benefit %'!$B$7 -> 0 | AE50: =(AA50-AB50)*'Benefit %'!$B$9 -> 0 | AF50: 665.84 | AG50: =(AA50-AB50)*'Benefit %'!$B$13 -> 0 | AH50: =(AA50-AB50)*'Benefit %'!$B$15 -> 0 | AI50: ='Class. Sal'!G8 -> 0 | AK50: =(AI50-AJ50)*'Benefit %'!$B$5 -> 0 | AL50: =(AI50-AJ50)*'Benefit %'!$B$7 -> 0 | AM50: =(AI50-AJ50)*'Benefit %'!$B$9 -> 0 | AN50: =AF50 -> 665.84 | AO50: =(AI50-AJ50)*'Benefit %'!$B$13 -> 0 | AP50: =(AI50-AJ50)*'Benefit %'!$B$15 -> 0 | AQ50: ='Class. Sal'!H8 -> 0 | AS50: =(AQ50-AR50)*'Benefit %'!$B$5 -> 0 | AT50: =(AQ50-AR50)*'Benefit %'!$B$7 -> 0 | AU50: =(AQ50-AR50)*'Benefit %'!$B$9 -> 0 | AV50: =AN50 -> 665.84 | AW50: =(AQ50-AR50)*'Benefit %'!$B$13 -> 0 | AX50: =(AQ50-AR50)*'Benefit %'!$B$15 -> 0 | AY50: ='Class. Sal'!I8 -> 0 | BA50: =(AY50-AZ50)*'Benefit %'!$B$5 -> 0 | BB50: =(AY50-AZ50)*'Benefit %'!$B$7 -> 0 | BC50: =(AY50-AZ50)*'Benefit %'!$B$9 -> 0 | BD50: =AV50 -> 665.84 | BE50: =(AY50-AZ50)*'Benefit %'!$B$13 -> 0 | BF50: =(AY50-AZ50)*'Benefit %'!$B$15 -> 0 | BG50: ='Class. Sal'!J8 -> 0 | BI50: =(BG50-BH50)*'Benefit %'!$B$5 -> 0 | BJ50: =(BG50-BH50)*'Benefit %'!$B$7 -> 0 | BK50: =(BG50-BH50)*'Benefit %'!$B$9 -> 0 | BL50: =BD50 -> 665.84 | BM50: =(BG50-BH50)*'Benefit %'!$B$13 -> 0 | BN50: =(BG50-BH50)*'Benefit %'!$B$15 -> 0 | BO50: ='Class. Sal'!K8 -> 0 | BQ50: =(BO50-BP50)*'Benefit %'!$B$5 -> 0 | BR50: =(BO50-BP50)*'Benefit %'!$B$7 -> 0 | BS50: =(BO50-BP50)*'Benefit %'!$B$9 -> 0 | BT50: =BL50 -> 665.84 | BU50: =(BO50-BP50)*'Benefit %'!$B$13 -> 0 | BV50: =(BO50-BP50)*'Benefit %'!$B$15 -> 0 | BW50: ='Class. Sal'!L8 -> 0 | BY50: =(BW50-BX50)*'Benefit %'!$B$5 -> 0 | BZ50: =(BW50-BX50)*'Benefit %'!$B$7 -> 0 | CA50: =(BW50-BX50)*'Benefit %'!$B$9 -> 0 | CB50: =BT50 -> 665.84 | CC50: =(BW50-BX50)*'Benefit %'!$B$13 -> 0 | CD50: =(BW50-BX50)*'Benefit %'!$B$15 -> 0 | CE50: ='Class. Sal'!M8 -> 0 | CG50: =(CE50-CF50)*'Benefit %'!$B$5 -> 0 | CH50: =(CE50-CF50)*'Benefit %'!$B$7 -> 0 | CI50: =(CE50-CF50)*'Benefit %'!$B$9 -> 0 | CJ50: =CB50 -> 665.84 | CK50: =(CE50-CF50)*'Benefit %'!$B$13 -> 0 | CL50: =(CE50-CF50)*'Benefit %'!$B$15 -> 0 | CM50: ='Class. Sal'!N8 -> 0 | CO50: =(CM50-CN50)*'Benefit %'!$B$5 -> 0 | CP50: =(CM50-CN50)*'Benefit %'!$B$7 -> 0 | CQ50: =(CM50-CN50)*'Benefit %'!$B$9 -> 0 | CR50: =CJ50 -> 665.84 | CS50: =(CM50-CN50)*'Benefit %'!$B$13 -> 0 | CT50: =(CM50-CN50)*'Benefit %'!$B$15 -> 0 | CU50: ='Class. Sal'!O20 -> 6228.29 | CV50: 0 | CW50: 460.43 | CX50: 326.92 | CY50: 76.45 | CZ50: 1121.96 | DA50: 2.64 | DB50: 72.43 | DC50: 2060.83
DC51: 0
B52: Full-Time Totals | C52: =SUM(C46:C51) -> 3841.25 | D52: 0 | E52: 411.2826375 | F52: 238.1575 | G52: 55.698125 | H52: 0 | I52: 27.657 | J52: 84.891625 | K52: =SUM(K46:K51) -> 6082.66 | L52: =SUM(L46:L51) -> 0 | M52: 651.2704062 | N52: 377.12492 | O52: 88.19857 | P52: 0 | Q52: 43.795152 | R52: 134.426786 | S52: =SUM(S46:S51) -> 6259.12 | T52: =SUM(T46:T51) -> 0 | U52: 670.1639784 | V52: 388.06544 | W52: 90.75724 | X52: 4214.1 | Y52: 45.065664 | Z52: 138.326552 | AA52: =SUM(AA46:AA51) -> 6419.49 | AB52: =SUM(AB46:AB51) -> 0 | AC52: 687.3347943 | AD52: 398.00838 | AE52: 93.082605 | AF52: 4214.1 | AG52: 46.220328 | AH52: 141.870729 | AI52: =SUM(AI46:AI51) -> 6419.49 | AJ52: =SUM(AJ46:AJ51) -> 0 | AK52: 687.3347943 | AL52: 398.00838 | AM52: 93.082605 | AN52: 4214.1 | AO52: 46.220328 | AP52: 141.870729 | AQ52: =SUM(AQ46:AQ51) -> 6419.49 | AR52: =SUM(AR46:AR51) -> 0 | AS52: 687.3347943 | AT52: 398.00838 | AU52: 93.082605 | AV52: 4214.1 | AW52: 46.220328 | AX52: 141.870729 | AY52: =SUM(AY46:AY51) -> 6419.49 | AZ52: =SUM(AZ46:AZ51) -> 0 | BA52: 687.3347943 | BB52: 398.00838 | BC52: 93.082605 | BD52: 4214.1 | BE52: 46.220328 | BF52: 141.870729 | BG52: =SUM(BG46:BG51) -> 6460.15 | BH52: =SUM(BH46:BH51) -> 0 | BI52: 691.6882605 | BJ52: 400.5293 | BK52: 93.672175 | BL52: 4214.1 | BM52: 46.51308 | BN52: 142.769315 | BO52: =SUM(BO46:BO51) -> 6483.68 | BP52: =SUM(BP46:BP51) -> 0 | BQ52: 694.2076176 | BR52: 401.98816 | BS52: 94.01336 | BT52: 4214.1 | BU52: 46.682496 | BV52: 143.289328 | BW52: =SUM(BW46:BW51) -> 6689 | BX52: =SUM(BX46:BX51) -> 0 | BY52: 716.19123 | BZ52: 414.718 | CA52: 96.9905 | CB52: 4214.1 | CC52: 48.1608 | CD52: 147.8269 | CE52: =SUM(CE46:CE51) -> 6689 | CF52: =SUM(CF46:CF51) -> 0 | CG52: 716.19123 | CH52: 414.718 | CI52: 96.9905 | CJ52: 4214.1 | CK52: 48.1608 | CL52: 147.8269 | CM52: =SUM(CM46:CM51) -> 6689 | CN52: =SUM(CN46:CN51) -> 0 | CO52: 716.19123 | CP52: 414.718 | CQ52: 96.9905 | CR52: 4214.1 | CS52: 48.1608 | CT52: 147.8269 | CU52: =SUM(CU46:CU51) -> 105828.41 | CV52: =SUM(CV46:CV51) -> 0 | CW52: 11117.13 | CX52: 6086.6 | CY52: 1423.44 | CZ52: 25067.2 | DA52: 49.07 | DB52: 1890.39 | DC52: 45633.83
B53: Monthly Benefit Total | I53: =SUM(E52:J52) -> 817.6868875 | Q53: =SUM(M52:R52) -> 1294.815834 | Y53: =SUM(U52:Z52) -> 5546.478874 | AG53: =SUM(AC52:AH52) -> 5580.616836 | AO53: =SUM(AK52:AP52) -> 5580.616836 | AW53: =SUM(AS52:AX52) -> 5580.616836 | BE53: =SUM(BA52:BF52) -> 5580.616836 | BM53: =SUM(BI52:BN52) -> 5589.27213 | BU53: =SUM(BQ52:BV52) -> 5594.280962 | CC53: =SUM(BY52:CD52) -> 5637.98743 | CK53: =SUM(CG52:CL52) -> 5637.98743 | CS53: =SUM(CO52:CT52) -> 5637.98743 | CW53: Full-Time Yearly Benefits | DA53: =SUM(CW52:DB52) -> 45633.83 | DB53: =SUM(DD46:DD50) -> 0
B54: =+Summary!B13 -> Project Assistants
A55: 1 | B55: =+'Class. Sal'!B28 -> Renee Nicovich | C55: ='Class. Sal'!C28 -> 0 | E55: 0 | F55: =(C55-D55)*'Benefit %'!$B$7 -> 0 | G55: =(C55-D55)*'Benefit %'!$B$9 -> 0 | I55: =(C55-D55)*'Benefit %'!$B$13 -> 0 | J55: =(C55-D55)*'Benefit %'!$B$15 -> 0 | K55: ='Class. Sal'!D28 -> 0 | M55: 0 | N55: =(K55-L55)*'Benefit %'!$B$7 -> 0 | O55: =(K55-L55)*'Benefit %'!$B$9 -> 0 | Q55: =(K55-L55)*'Benefit %'!$B$13 -> 0 | R55: =(K55-L55)*'Benefit %'!$B$15 -> 0 | S55: ='Class. Sal'!E28 -> 0 | U55: 0 | V55: =(S55-T55)*'Benefit %'!$B$7 -> 0 | W55: =(S55-T55)*'Benefit %'!$B$9 -> 0 | X55: 1431.83 | Y55: =(S55-T55)*'Benefit %'!$B$13 -> 0 | Z55: =(S55-T55)*'Benefit %'!$B$15 -> 0 | AA55: ='Class. Sal'!F28 -> 0 | AC55: =(AA55-AB55)*'Benefit %'!$B$5 -> 0 | AD55: =(AA55-AB55)*'Benefit %'!$B$7 -> 0 | AE55: =(AA55-AB55)*'Benefit %'!$B$9 -> 0 | AF55: =+X55 -> 1431.83 | AG55: =(AA55-AB55)*'Benefit %'!$B$13 -> 0 | AH55: =(AA55-AB55)*'Benefit %'!$B$15 -> 0 | AI55: ='Class. Sal'!G28 -> 0 | AK55: =(AI55-AJ55)*'Benefit %'!$B$5 -> 0 | AL55: =(AI55-AJ55)*'Benefit %'!$B$7 -> 0 | AM55: =(AI55-AJ55)*'Benefit %'!$B$9 -> 0 | AN55: =AF55 -> 1431.83 | AO55: =(AI55-AJ55)*'Benefit %'!$B$13 -> 0 | AP55: =(AI55-AJ55)*'Benefit %'!$B$15 -> 0 | AQ55: ='Class. Sal'!H28 -> 2333.6 | AS55: =(AQ55-AR55)*'Benefit %'!$B$5 -> 249.858552 | AT55: =(AQ55-AR55)*'Benefit %'!$B$7 -> 144.6832 | AU55: =(AQ55-AR55)*'Benefit %'!$B$9 -> 33.8372 | AV55: =AN55 -> 1431.83 | AW55: =(AQ55-AR55)*'Benefit %'!$B$13 -> 16.80192 | AX55: =(AQ55-AR55)*'Benefit %'!$B$15 -> 51.57256 | AY55: ='Class. Sal'!I28 -> 3160.24 | BA55: =(AY55-AZ55)*'Benefit %'!$B$5 -> 338.3668968 | BB55: =(AY55-AZ55)*'Benefit %'!$B$7 -> 195.93488 | BC55: =(AY55-AZ55)*'Benefit %'!$B$9 -> 45.82348 | BD55: =AV55 -> 1431.83 | BE55: =(AY55-AZ55)*'Benefit %'!$B$13 -> 22.753728 | BF55: =(AY55-AZ55)*'Benefit %'!$B$15 -> 69.841304 | BG55: ='Class. Sal'!J28 -> 3191.85 | BI55: =(BG55-BH55)*'Benefit %'!$B$5 -> 341.7513795 | BJ55: =(BG55-BH55)*'Benefit %'!$B$7 -> 197.8947 | BK55: =(BG55-BH55)*'Benefit %'!$B$9 -> 46.281825 | BL55: =BD55 -> 1431.83 | BM55: =(BG55-BH55)*'Benefit %'!$B$13 -> 22.98132 | BN55: =(BG55-BH55)*'Benefit %'!$B$15 -> 70.539885 | BO55: ='Class. Sal'!K28 -> 3191.85 | BQ55: =(BO55-BP55)*'Benefit %'!$B$5 -> 341.7513795 | BR55: =(BO55-BP55)*'Benefit %'!$B$7 -> 197.8947 | BS55: =(BO55-BP55)*'Benefit %'!$B$9 -> 46.281825 | BT55: =BL55 -> 1431.83 | BU55: =(BO55-BP55)*'Benefit %'!$B$13 -> 22.98132 | BV55: =(BO55-BP55)*'Benefit %'!$B$15 -> 70.539885 | BW55: ='Class. Sal'!L28 -> 3191.85 | BY55: =(BW55-BX55)*'Benefit %'!$B$5 -> 341.7513795 | BZ55: =(BW55-BX55)*'Benefit %'!$B$7 -> 197.8947 | CA55: =(BW55-BX55)*'Benefit %'!$B$9 -> 46.281825 | CB55: =BT55 -> 1431.83 | CC55: =(BW55-BX55)*'Benefit %'!$B$13 -> 22.98132 | CD55: =(BW55-BX55)*'Benefit %'!$B$15 -> 70.539885 | CE55: ='Class. Sal'!M28 -> 3191.85 | CG55: =(CE55-CF55)*'Benefit %'!$B$5 -> 341.7513795 | CH55: =(CE55-CF55)*'Benefit %'!$B$7 -> 197.8947 | CI55: =(CE55-CF55)*'Benefit %'!$B$9 -> 46.281825 | CJ55: =CB55 -> 1431.83 | CK55: =(CE55-CF55)*'Benefit %'!$B$13 -> 22.98132 | CL55: =(CE55-CF55)*'Benefit %'!$B$15 -> 70.539885 | CM55: ='Class. Sal'!N28 -> 3191.85 | CO55: =(CM55-CN55)*'Benefit %'!$B$5 -> 341.7513795 | CP55: =(CM55-CN55)*'Benefit %'!$B$7 -> 197.8947 | CQ55: =(CM55-CN55)*'Benefit %'!$B$9 -> 46.281825 | CR55: =CJ55 -> 1431.83 | CS55: =(CM55-CN55)*'Benefit %'!$B$13 -> 22.98132 | CT55: =(CM55-CN55)*'Benefit %'!$B$15 -> 70.539885 | CU55: =SUM(C55,K55,S55,AA55,AI55,AQ55,AY55,BG55,BO55,BW55,CE55,CM55) -> 21453.09 | CV55: =SUM(D55,L55,T55,AB55,AJ55,AR55,AZ55,BH55,BP55,BX55,CF55,CN55) -> 0 | CW55: 4882.14 | CX55: 2764.4 | CY55: 646.52 | CZ55: 12439.6 | DA55: 22.33 | DB55: 851.44 | DC55: =SUM(CW55:DB55) -> 21606.43
A56: 2 | C56: ='Class. Sal'!C29 -> 1580.12 | E56: 0 | F56: =(C56-D56)*'Benefit %'!$B$7 -> 97.96744 | G56: =(C56-D56)*'Benefit %'!$B$9 -> 22.91174 | I56: =(C56-D56)*'Benefit %'!$B$13 -> 11.376864 | J56: =(C56-D56)*'Benefit %'!$B$15 -> 34.920652 | K56: ='Class. Sal'!C29 -> 1580.12 | M56: 0 | N56: =(K56-L56)*'Benefit %'!$B$7 -> 97.96744 | O56: =(K56-L56)*'Benefit %'!$B$9 -> 22.91174 | Q56: =(K56-L56)*'Benefit %'!$B$13 -> 11.376864 | R56: =(K56-L56)*'Benefit %'!$B$15 -> 34.920652 | S56: ='Class. Sal'!D29 -> 1580.12 | U56: 0 | V56: =(S56-T56)*'Benefit %'!$B$7 -> 97.96744 | W56: =(S56-T56)*'Benefit %'!$B$9 -> 22.91174 | Y56: =(S56-T56)*'Benefit %'!$B$13 -> 11.376864 | Z56: =(S56-T56)*'Benefit %'!$B$15 -> 34.920652 | AA56: ='Class. Sal'!E29 -> 1580.12 | AC56: =(AA56-AB56)*'Benefit %'!$B$5 -> 169.1834484 | AD56: =(AA56-AB56)*'Benefit %'!$B$7 -> 97.96744 | AE56: =(AA56-AB56)*'Benefit %'!$B$9 -> 22.91174 | AF56: =+X56 -> 0 | AG56: =(AA56-AB56)*'Benefit %'!$B$13 -> 11.376864 | AH56: =(AA56-AB56)*'Benefit %'!$B$15 -> 34.920652 | AI56: ='Class. Sal'!G29 -> 2606.75 | AK56: =(AI56-AJ56)*'Benefit %'!$B$5 -> 279.1047225 | AL56: =(AI56-AJ56)*'Benefit %'!$B$7 -> 161.6185 | AM56: =(AI56-AJ56)*'Benefit %'!$B$9 -> 37.797875 | AN56: =AF56 -> 0 | AO56: =(AI56-AJ56)*'Benefit %'!$B$13 -> 18.7686 | AP56: =(AI56-AJ56)*'Benefit %'!$B$15 -> 57.609175 | AQ56: ='Class. Sal'!H29 -> 1659.12 | AS56: =(AQ56-AR56)*'Benefit %'!$B$5 -> 177.6419784 | AT56: =(AQ56-AR56)*'Benefit %'!$B$7 -> 102.86544 | AU56: =(AQ56-AR56)*'Benefit %'!$B$9 -> 24.05724 | AV56: =AN56 -> 0 | AW56: =(AQ56-AR56)*'Benefit %'!$B$13 -> 11.945664 | AX56: =(AQ56-AR56)*'Benefit %'!$B$15 -> 36.666552 | AY56: ='Class. Sal'!I29 -> 1659.12 | BA56: =(AY56-AZ56)*'Benefit %'!$B$5 -> 177.6419784 | BB56: =(AY56-AZ56)*'Benefit %'!$B$7 -> 102.86544 | BC56: =(AY56-AZ56)*'Benefit %'!$B$9 -> 24.05724 | BD56: =AV56 -> 0 | BE56: =(AY56-AZ56)*'Benefit %'!$B$13 -> 11.945664 | BF56: =(AY56-AZ56)*'Benefit %'!$B$15 -> 36.666552 | BG56: ='Class. Sal'!J29 -> 926.84 | BI56: =(BG56-BH56)*'Benefit %'!$B$5 -> 99.2367588 | BJ56: =(BG56-BH56)*'Benefit %'!$B$7 -> 57.46408 | BK56: =(BG56-BH56)*'Benefit %'!$B$9 -> 13.43918 | BL56: =BD56 -> 0 | BM56: =(BG56-BH56)*'Benefit %'!$B$13 -> 6.673248 | BN56: =(BG56-BH56)*'Benefit %'!$B$15 -> 20.483164 | BO56: ='Class. Sal'!K29 -> 1151.95 | BQ56: =(BO56-BP56)*'Benefit %'!$B$5 -> 123.3392865 | BR56: =(BO56-BP56)*'Benefit %'!$B$7 -> 71.4209 | BS56: =(BO56-BP56)*'Benefit %'!$B$9 -> 16.703275 | BT56: =BL56 -> 0 | BU56: =(BO56-BP56)*'Benefit %'!$B$13 -> 8.29404 | BV56: =(BO56-BP56)*'Benefit %'!$B$15 -> 25.458095 | BW56: ='Class. Sal'!L29 -> 1151.95 | BY56: =(BW56-BX56)*'Benefit %'!$B$5 -> 123.3392865 | BZ56: =(BW56-BX56)*'Benefit %'!$B$7 -> 71.4209 | CA56: =(BW56-BX56)*'Benefit %'!$B$9 -> 16.703275 | CC56: =(BW56-BX56)*'Benefit %'!$B$13 -> 8.29404 | CD56: =(BW56-BX56)*'Benefit %'!$B$15 -> 25.458095 | CE56: ='Class. Sal'!M29 -> 1151.95 | CG56: =(CE56-CF56)*'Benefit %'!$B$5 -> 123.3392865 | CH56: =(CE56-CF56)*'Benefit %'!$B$7 -> 71.4209 | CI56: =(CE56-CF56)*'Benefit %'!$B$9 -> 16.703275 | CK56: =(CE56-CF56)*'Benefit %'!$B$13 -> 8.29404 | CL56: =(CE56-CF56)*'Benefit %'!$B$15 -> 25.458095 | CM56: ='Class. Sal'!N29 -> 886.12 | CO56: =(CM56-CN56)*'Benefit %'!$B$5 -> 94.8768684 | CP56: =(CM56-CN56)*'Benefit %'!$B$7 -> 54.93944 | CQ56: =(CM56-CN56)*'Benefit %'!$B$9 -> 12.84874 | CS56: =(CM56-CN56)*'Benefit %'!$B$13 -> 6.380064 | CT56: =(CM56-CN56)*'Benefit %'!$B$15 -> 19.583252 | CU56: 17514.28 | CV56: 0 | CW56: 1367.703614 | CX56: 1085.88536 | CY56: 253.95706 | CZ56: 0 | DA56: 126.102816 | DB56: 387.065588 | DC56: =SUM(CW56:DB56) -> 3220.714438 | DD56: =CU56+DC56 -> 20734.99444
A57: 3 | C57: ='Class. Sal'!C30 -> 0 | E57: =(C57-D57)*'Benefit %'!$B$5 -> 0 | F57: =(C57-D57)*'Benefit %'!$B$7 -> 0 | G57: =(C57-D57)*'Benefit %'!$B$9 -> 0 | I57: =(C57-D57)*'Benefit %'!$B$13 -> 0 | J57: =(C57-D57)*'Benefit %'!$B$15 -> 0 | K57: ='Class. Sal'!D30 -> 0 | M57: =(K57-L57)*'Benefit %'!$B$5 -> 0 | N57: =(K57-L57)*'Benefit %'!$B$7 -> 0 | O57: =(K57-L57)*'Benefit %'!$B$9 -> 0 | Q57: =(K57-L57)*'Benefit %'!$B$13 -> 0 | R57: =(K57-L57)*'Benefit %'!$B$15 -> 0 | S57: ='Class. Sal'!E30 -> 0 | U57: =(S57-T57)*'Benefit %'!$B$5 -> 0 | V57: =(S57-T57)*'Benefit %'!$B$7 -> 0 | W57: =(S57-T57)*'Benefit %'!$B$9 -> 0 | Y57: =(S57-T57)*'Benefit %'!$B$13 -> 0 | Z57: =(S57-T57)*'Benefit %'!$B$15 -> 0 | AA57: ='Class. Sal'!F30 -> 0 | AC57: =(AA57-AB57)*'Benefit %'!$B$5 -> 0 | AD57: =(AA57-AB57)*'Benefit %'!$B$7 -> 0 | AE57: =(AA57-AB57)*'Benefit %'!$B$9 -> 0 | AG57: =(AA57-AB57)*'Benefit %'!$B$13 -> 0 | AH57: =(AA57-AB57)*'Benefit %'!$B$15 -> 0 | AI57: ='Class. Sal'!G30 -> 0 | AK57: =(AI57-AJ57)*'Benefit %'!$B$5 -> 0 | AL57: =(AI57-AJ57)*'Benefit %'!$B$7 -> 0 | AM57: =(AI57-AJ57)*'Benefit %'!$B$9 -> 0 | AN57: =AF57 -> 0 | AO57: =(AI57-AJ57)*'Benefit %'!$B$13 -> 0 | AP57: =(AI57-AJ57)*'Benefit %'!$B$15 -> 0 | AQ57: ='Class. Sal'!H30 -> 0 | AS57: =(AQ57-AR57)*'Benefit %'!$B$5 -> 0 | AT57: =(AQ57-AR57)*'Benefit %'!$B$7 -> 0 | AU57: =(AQ57-AR57)*'Benefit %'!$B$9 -> 0 | AV57: =AN57 -> 0 | AW57: =(AQ57-AR57)*'Benefit %'!$B$13 -> 0 | AX57: =(AQ57-AR57)*'Benefit %'!$B$15 -> 0 | AY57: ='Class. Sal'!I30 -> 0 | BA57: =(AY57-AZ57)*'Benefit %'!$B$5 -> 0 | BB57: =(AY57-AZ57)*'Benefit %'!$B$7 -> 0 | BC57: =(AY57-AZ57)*'Benefit %'!$B$9 -> 0 | BD57: =AV57 -> 0 | BE57: =(AY57-AZ57)*'Benefit %'!$B$13 -> 0 | BF57: =(AY57-AZ57)*'Benefit %'!$B$15 -> 0 | BG57: ='Class. Sal'!J30 -> 0 | BI57: =(BG57-BH57)*'Benefit %'!$B$5 -> 0 | BJ57: =(BG57-BH57)*'Benefit %'!$B$7 -> 0 | BK57: =(BG57-BH57)*'Benefit %'!$B$9 -> 0 | BL57: =BD57 -> 0 | BM57: =(BG57-BH57)*'Benefit %'!$B$13 -> 0 | BN57: =(BG57-BH57)*'Benefit %'!$B$15 -> 0 | BO57: ='Class. Sal'!K30 -> 0 | BQ57: =(BO57-BP57)*'Benefit %'!$B$5 -> 0 | BR57: =(BO57-BP57)*'Benefit %'!$B$7 -> 0 | BS57: =(BO57-BP57)*'Benefit %'!$B$9 -> 0 | BT57: =BL57 -> 0 | BU57: =(BO57-BP57)*'Benefit %'!$B$13 -> 0 | BV57: =(BO57-BP57)*'Benefit %'!$B$15 -> 0 | BW57: ='Class. Sal'!L30 -> 0 | BY57: =(BW57-BX57)*'Benefit %'!$B$5 -> 0 | BZ57: =(BW57-BX57)*'Benefit %'!$B$7 -> 0 | CA57: =(BW57-BX57)*'Benefit %'!$B$9 -> 0 | CB57: =BT57 -> 0 | CC57: =(BW57-BX57)*'Benefit %'!$B$13 -> 0 | CD57: =(BW57-BX57)*'Benefit %'!$B$15 -> 0 | CE57: ='Class. Sal'!M30 -> 0 | CG57: =(CE57-CF57)*'Benefit %'!$B$5 -> 0 | CH57: =(CE57-CF57)*'Benefit %'!$B$7 -> 0 | CI57: =(CE57-CF57)*'Benefit %'!$B$9 -> 0 | CK57: =(CE57-CF57)*'Benefit %'!$B$13 -> 0 | CL57: =(CE57-CF57)*'Benefit %'!$B$15 -> 0 | CM57: ='Class. Sal'!N30 -> 0 | CO57: =(CM57-CN57)*'Benefit %'!$B$5 -> 0 | CP57: =(CM57-CN57)*'Benefit %'!$B$7 -> 0 | CQ57: =(CM57-CN57)*'Benefit %'!$B$9 -> 0 | CR57: =CJ57 -> 0 | CS57: =(CM57-CN57)*'Benefit %'!$B$13 -> 0 | CT57: =(CM57-CN57)*'Benefit %'!$B$15 -> 0 | CU57: 0 | CV57: 0 | CW57: 0 | CX57: 0 | CY57: 0 | CZ57: 0 | DA57: 0 | DB57: 0 | DC57: 0
A58: 4 | C58: ='Class. Sal'!C31 -> 0 | E58: =(C58-D58)*'Benefit %'!$B$5 -> 0 | F58: =(C58-D58)*'Benefit %'!$B$7 -> 0 | G58: =(C58-D58)*'Benefit %'!$B$9 -> 0 | I58: =(C58-D58)*'Benefit %'!$B$13 -> 0 | J58: =(C58-D58)*'Benefit %'!$B$15 -> 0 | K58: ='Class. Sal'!D31 -> 0 | M58: =(K58-L58)*'Benefit %'!$B$5 -> 0 | N58: =(K58-L58)*'Benefit %'!$B$7 -> 0 | O58: =(K58-L58)*'Benefit %'!$B$9 -> 0 | Q58: =(K58-L58)*'Benefit %'!$B$13 -> 0 | R58: =(K58-L58)*'Benefit %'!$B$15 -> 0 | S58: ='Class. Sal'!E31 -> 0 | U58: =(S58-T58)*'Benefit %'!$B$5 -> 0 | V58: =(S58-T58)*'Benefit %'!$B$7 -> 0 | W58: =(S58-T58)*'Benefit %'!$B$9 -> 0 | Y58: =(S58-T58)*'Benefit %'!$B$13 -> 0 | Z58: =(S58-T58)*'Benefit %'!$B$15 -> 0 | AA58: ='Class. Sal'!F31 -> 0 | AC58: =(AA58-AB58)*'Benefit %'!$B$5 -> 0 | AD58: =(AA58-AB58)*'Benefit %'!$B$7 -> 0 | AE58: =(AA58-AB58)*'Benefit %'!$B$9 -> 0 | AG58: =(AA58-AB58)*'Benefit %'!$B$13 -> 0 | AH58: =(AA58-AB58)*'Benefit %'!$B$15 -> 0 | AI58: ='Class. Sal'!G31 -> 0 | AK58: =(AI58-AJ58)*'Benefit %'!$B$5 -> 0 | AL58: =(AI58-AJ58)*'Benefit %'!$B$7 -> 0 | AM58: =(AI58-AJ58)*'Benefit %'!$B$9 -> 0 | AN58: =AF58 -> 0 | AO58: =(AI58-AJ58)*'Benefit %'!$B$13 -> 0 | AP58: =(AI58-AJ58)*'Benefit %'!$B$15 -> 0 | AQ58: ='Class. Sal'!H31 -> 0 | AS58: =(AQ58-AR58)*'Benefit %'!$B$5 -> 0 | AT58: =(AQ58-AR58)*'Benefit %'!$B$7 -> 0 | AU58: =(AQ58-AR58)*'Benefit %'!$B$9 -> 0 | AV58: =AN58 -> 0 | AW58: =(AQ58-AR58)*'Benefit %'!$B$13 -> 0 | AX58: =(AQ58-AR58)*'Benefit %'!$B$15 -> 0 | AY58: ='Class. Sal'!I31 -> 0 | BA58: =(AY58-AZ58)*'Benefit %'!$B$5 -> 0 | BB58: =(AY58-AZ58)*'Benefit %'!$B$7 -> 0 | BC58: =(AY58-AZ58)*'Benefit %'!$B$9 -> 0 | BD58: =AV58 -> 0 | BE58: =(AY58-AZ58)*'Benefit %'!$B$13 -> 0 | BF58: =(AY58-AZ58)*'Benefit %'!$B$15 -> 0 | BG58: ='Class. Sal'!J31 -> 0 | BI58: =(BG58-BH58)*'Benefit %'!$B$5 -> 0 | BJ58: =(BG58-BH58)*'Benefit %'!$B$7 -> 0 | BK58: =(BG58-BH58)*'Benefit %'!$B$9 -> 0 | BL58: =BD58 -> 0 | BM58: =(BG58-BH58)*'Benefit %'!$B$13 -> 0 | BN58: =(BG58-BH58)*'Benefit %'!$B$15 -> 0 | BO58: ='Class. Sal'!K31 -> 0 | BQ58: =(BO58-BP58)*'Benefit %'!$B$5 -> 0 | BR58: =(BO58-BP58)*'Benefit %'!$B$7 -> 0 | BS58: =(BO58-BP58)*'Benefit %'!$B$9 -> 0 | BT58: =BL58 -> 0 | BU58: =(BO58-BP58)*'Benefit %'!$B$13 -> 0 | BV58: =(BO58-BP58)*'Benefit %'!$B$15 -> 0 | BW58: ='Class. Sal'!L31 -> 0 | BY58: =(BW58-BX58)*'Benefit %'!$B$5 -> 0 | BZ58: =(BW58-BX58)*'Benefit %'!$B$7 -> 0 | CA58: =(BW58-BX58)*'Benefit %'!$B$9 -> 0 | CB58: =BT58 -> 0 | CC58: =(BW58-BX58)*'Benefit %'!$B$13 -> 0 | CD58: =(BW58-BX58)*'Benefit %'!$B$15 -> 0 | CE58: ='Class. Sal'!M31 -> 0 | CG58: =(CE58-CF58)*'Benefit %'!$B$5 -> 0 | CH58: =(CE58-CF58)*'Benefit %'!$B$7 -> 0 | CI58: =(CE58-CF58)*'Benefit %'!$B$9 -> 0 | CJ58: =CB58 -> 0 | CK58: =(CE58-CF58)*'Benefit %'!$B$13 -> 0 | CL58: =(CE58-CF58)*'Benefit %'!$B$15 -> 0 | CM58: ='Class. Sal'!N31 -> 0 | CO58: =(CM58-CN58)*'Benefit %'!$B$5 -> 0 | CP58: =(CM58-CN58)*'Benefit %'!$B$7 -> 0 | CQ58: =(CM58-CN58)*'Benefit %'!$B$9 -> 0 | CR58: =CJ58 -> 0 | CS58: =(CM58-CN58)*'Benefit %'!$B$13 -> 0 | CT58: =(CM58-CN58)*'Benefit %'!$B$15 -> 0 | CU58: 0 | CV58: 0 | CW58: 0 | CX58: 0 | CY58: 0 | CZ58: 0 | DA58: 0 | DB58: 0 | DC58: 0
A59: 5 | C59: ='Class. Sal'!C32 -> 0 | E59: =(C59-D59)*'Benefit %'!$B$5 -> 0 | F59: =(C59-D59)*'Benefit %'!$B$7 -> 0 | G59: =(C59-D59)*'Benefit %'!$B$9 -> 0 | I59: =(C59-D59)*'Benefit %'!$B$13 -> 0 | J59: =(C59-D59)*'Benefit %'!$B$15 -> 0 | K59: ='Class. Sal'!D32 -> 0 | M59: =(K59-L59)*'Benefit %'!$B$5 -> 0 | N59: =(K59-L59)*'Benefit %'!$B$7 -> 0 | O59: =(K59-L59)*'Benefit %'!$B$9 -> 0 | Q59: =(K59-L59)*'Benefit %'!$B$13 -> 0 | R59: =(K59-L59)*'Benefit %'!$B$15 -> 0 | S59: ='Class. Sal'!E32 -> 0 | U59: =(S59-T59)*'Benefit %'!$B$5 -> 0 | V59: =(S59-T59)*'Benefit %'!$B$7 -> 0 | W59: =(S59-T59)*'Benefit %'!$B$9 -> 0 | Y59: =(S59-T59)*'Benefit %'!$B$13 -> 0 | Z59: =(S59-T59)*'Benefit %'!$B$15 -> 0 | AA59: ='Class. Sal'!F32 -> 0 | AC59: =(AA59-AB59)*'Benefit %'!$B$5 -> 0 | AD59: =(AA59-AB59)*'Benefit %'!$B$7 -> 0 | AE59: =(AA59-AB59)*'Benefit %'!$B$9 -> 0 | AG59: =(AA59-AB59)*'Benefit %'!$B$13 -> 0 | AH59: =(AA59-AB59)*'Benefit %'!$B$15 -> 0 | AI59: ='Class. Sal'!G32 -> 0 | AK59: =(AI59-AJ59)*'Benefit %'!$B$5 -> 0 | AL59: =(AI59-AJ59)*'Benefit %'!$B$7 -> 0 | AM59: =(AI59-AJ59)*'Benefit %'!$B$9 -> 0 | AN59: =AF59 -> 0 | AO59: =(AI59-AJ59)*'Benefit %'!$B$13 -> 0 | AP59: =(AI59-AJ59)*'Benefit %'!$B$15 -> 0 | AQ59: ='Class. Sal'!H32 -> 0 | AS59: =(AQ59-AR59)*'Benefit %'!$B$5 -> 0 | AT59: =(AQ59-AR59)*'Benefit %'!$B$7 -> 0 | AU59: =(AQ59-AR59)*'Benefit %'!$B$9 -> 0 | AV59: =AN59 -> 0 | AW59: =(AQ59-AR59)*'Benefit %'!$B$13 -> 0 | AX59: =(AQ59-AR59)*'Benefit %'!$B$15 -> 0 | AY59: ='Class. Sal'!I32 -> 0 | BA59: =(AY59-AZ59)*'Benefit %'!$B$5 -> 0 | BB59: =(AY59-AZ59)*'Benefit %'!$B$7 -> 0 | BC59: =(AY59-AZ59)*'Benefit %'!$B$9 -> 0 | BD59: =AV59 -> 0 | BE59: =(AY59-AZ59)*'Benefit %'!$B$13 -> 0 | BF59: =(AY59-AZ59)*'Benefit %'!$B$15 -> 0 | BG59: ='Class. Sal'!J32 -> 0 | BI59: =(BG59-BH59)*'Benefit %'!$B$5 -> 0 | BJ59: =(BG59-BH59)*'Benefit %'!$B$7 -> 0 | BK59: =(BG59-BH59)*'Benefit %'!$B$9 -> 0 | BL59: =BD59 -> 0 | BM59: =(BG59-BH59)*'Benefit %'!$B$13 -> 0 | BN59: =(BG59-BH59)*'Benefit %'!$B$15 -> 0 | BO59: ='Class. Sal'!K32 -> 0 | BQ59: =(BO59-BP59)*'Benefit %'!$B$5 -> 0 | BR59: =(BO59-BP59)*'Benefit %'!$B$7 -> 0 | BS59: =(BO59-BP59)*'Benefit %'!$B$9 -> 0 | BT59: =BL59 -> 0 | BU59: =(BO59-BP59)*'Benefit %'!$B$13 -> 0 | BV59: =(BO59-BP59)*'Benefit %'!$B$15 -> 0 | BW59: ='Class. Sal'!L32 -> 0 | BY59: =(BW59-BX59)*'Benefit %'!$B$5 -> 0 | BZ59: =(BW59-BX59)*'Benefit %'!$B$7 -> 0 | CA59: =(BW59-BX59)*'Benefit %'!$B$9 -> 0 | CB59: =BT59 -> 0 | CC59: =(BW59-BX59)*'Benefit %'!$B$13 -> 0 | CD59: =(BW59-BX59)*'Benefit %'!$B$15 -> 0 | CE59: ='Class. Sal'!M32 -> 0 | CG59: =(CE59-CF59)*'Benefit %'!$B$5 -> 0 | CH59: =(CE59-CF59)*'Benefit %'!$B$7 -> 0 | CI59: =(CE59-CF59)*'Benefit %'!$B$9 -> 0 | CJ59: =CB59 -> 0 | CK59: =(CE59-CF59)*'Benefit %'!$B$13 -> 0 | CL59: =(CE59-CF59)*'Benefit %'!$B$15 -> 0 | CM59: ='Class. Sal'!N32 -> 0 | CO59: =(CM59-CN59)*'Benefit %'!$B$5 -> 0 | CP59: =(CM59-CN59)*'Benefit %'!$B$7 -> 0 | CQ59: =(CM59-CN59)*'Benefit %'!$B$9 -> 0 | CR59: =CJ59 -> 0 | CS59: =(CM59-CN59)*'Benefit %'!$B$13 -> 0 | CT59: =(CM59-CN59)*'Benefit %'!$B$15 -> 0 | CU59: 0 | CV59: 0 | CW59: 0 | CX59: 0 | CY59: 0 | CZ59: 0 | DA59: 0 | DB59: 0 | DC59: 0
DC60: 0
B61: Part-Time Totals | C61: =SUM(C55:C60) -> 1580.12 | D61: =SUM(D55:D60) -> 0 | E61: 0 | F61: 97.96744 | G61: 22.91174 | H61: 0 | I61: 11.376864 | J61: =SUM(J55:J60) -> 34.920652 | K61: =SUM(K55:K60) -> 1580.12 | L61: =SUM(L55:L60) -> 0 | M61: 0 | N61: 97.96744 | O61: 22.91174 | P61: 0 | Q61: 11.376864 | R61: 34.920652 | S61: =SUM(S55:S60) -> 1580.12 | T61: =SUM(T55:T60) -> 0 | U61: 0 | V61: 97.96744 | W61: 22.91174 | X61: 1431.83 | Y61: 11.376864 | Z61: 34.920652 | AA61: =SUM(AA55:AA60) -> 1580.12 | AB61: =SUM(AB55:AB60) -> 0 | AC61: 169.1834484 | AD61: 97.96744 | AE61: 22.91174 | AF61: 1431.83 | AG61: 11.376864 | AH61: 34.920652 | AI61: =SUM(AI55:AI60) -> 2606.75 | AJ61: =SUM(AJ55:AJ60) -> 0 | AK61: 279.1047225 | AL61: 161.6185 | AM61: 37.797875 | AN61: 1431.83 | AO61: 18.7686 | AP61: 57.609175 | AQ61: =SUM(AQ55:AQ60) -> 3992.72 | AR61: =SUM(AR55:AR60) -> 0 | AS61: 427.5005304 | AT61: 247.54864 | AU61: 57.89444 | AV61: 1431.83 | AW61: 28.747584 | AX61: 88.239112 | AY61: =SUM(AY55:AY60) -> 4819.36 | AZ61: =SUM(AZ55:AZ60) -> 0 | BA61: 516.0088752 | BB61: 298.80032 | BC61: 69.88072 | BD61: 1431.83 | BE61: 34.699392 | BF61: =SUM(BF55:BF60) -> 106.507856 | BG61: =SUM(BG55:BG60) -> 4118.69 | BH61: =SUM(BH55:BH60) -> 0 | BI61: 440.9881383 | BJ61: 255.35878 | BK61: 59.721005 | BL61: 1431.83 | BM61: 29.654568 | BN61: 91.023049 | BO61: =SUM(BO55:BO60) -> 4343.8 | BP61: =SUM(BP55:BP60) -> 0 | BQ61: 465.090666 | BR61: 269.3156 | BS61: 62.9851 | BT61: 1431.83 | BU61: 31.27536 | BV61: 95.99798 | BW61: =SUM(BW55:BW60) -> 4343.8 | BX61: =SUM(BX55:BX60) -> 0 | BY61: 465.090666 | BZ61: 269.3156 | CA61: 62.9851 | CB61: 1431.83 | CC61: 31.27536 | CD61: 95.99798 | CE61: =SUM(CE55:CE60) -> 4343.8 | CF61: =SUM(CF55:CF60) -> 0 | CG61: 465.090666 | CH61: 269.3156 | CI61: 62.9851 | CJ61: 1431.83 | CK61: 31.27536 | CL61: 95.99798 | CM61: =SUM(CM55:CM60) -> 4077.97 | CN61: =SUM(CN55:CN60) -> 0 | CO61: 436.6282479 | CP61: 252.83414 | CQ61: 59.130565 | CR61: 1431.83 | CS61: 29.361384 | CT61: 90.123137 | CU61: =SUM(CU55:CU60) -> 38967.37 | CV61: =SUM(CV55:CV60) -> 0 | CW61: 6249.843614 | CX61: 3850.28536 | CY61: 900.47706 | CZ61: 12439.6 | DA61: 148.432816 | DB61: 1238.505588 | DC61: 24827.14444
B62: Monthly Benefit Total | I62: =SUM(E61:J61) -> 167.176696 | Q62: =SUM(M61:R61) -> 167.176696 | Y62: =SUM(U61:Z61) -> 1599.006696 | AG62: =SUM(AC61:AH61) -> 1768.190144 | AO62: =SUM(AK61:AP61) -> 1986.728873 | AW62: =SUM(AS61:AX61) -> 2281.760306 | BE62: =SUM(BA61:BF61) -> 2457.727163 | BM62: =SUM(BI61:BN61) -> 2308.57554 | BU62: =SUM(BQ61:BV61) -> 2356.494706 | CC62: =SUM(BY61:CD61) -> 2356.494706 | CK62: =SUM(CG61:CL61) -> 2356.494706 | CS62: =SUM(CO61:CT61) -> 2299.907474 | CW62: Part-Time Yearly Benefits | DA62: =SUM(CW61:DB61) -> 24827.14444 | DC62: 24827.14444
B63: Hourly | DC63: 0
A64: 1 | CU64: 0 | CV64: =SUM(D64,L64,T64,AB64,AJ64,AR64,AZ64,BH64,BP64,BX64,CF64,CN64) -> 0 | CW64: 0 | CX64: 0 | CY64: 0 | CZ64: 0 | DA64: 0 | DB64: 0 | DC64: 0
A65: 2 | B65: ='Class. Sal'!B37 -> Science Olympiad Facilties workers | C65: ='Class. Sal'!C37 -> 0 | E65: =(C65-D65)*'Benefit %'!$B$5 -> 0 | F65: =(C65-D65)*'Benefit %'!$B$7 -> 0 | G65: =(C65-D65)*'Benefit %'!$B$9 -> 0 | I65: =(C65-D65)*'Benefit %'!$B$13 -> 0 | J65: =(C65-D65)*'Benefit %'!$B$15 -> 0 | K65: ='Class. Sal'!D37 -> 0 | M65: =(K65-L65)*'Benefit %'!$B$5 -> 0 | N65: =(K65-L65)*'Benefit %'!$B$7 -> 0 | O65: =(K65-L65)*'Benefit %'!$B$9 -> 0 | Q65: =(K65-L65)*'Benefit %'!$B$13 -> 0 | R65: =(K65-L65)*'Benefit %'!$B$15 -> 0 | S65: ='Class. Sal'!E37 -> 0 | U65: =(S65-T65)*'Benefit %'!$B$5 -> 0 | V65: =(S65-T65)*'Benefit %'!$B$7 -> 0 | W65: =(S65-T65)*'Benefit %'!$B$9 -> 0 | Y65: =(S65-T65)*'Benefit %'!$B$13 -> 0 | Z65: =(S65-T65)*'Benefit %'!$B$15 -> 0 | AA65: ='Class. Sal'!F37 -> 0 | AC65: =(AA65-AB65)*'Benefit %'!$B$5 -> 0 | AD65: =(AA65-AB65)*'Benefit %'!$B$7 -> 0 | AE65: =(AA65-AB65)*'Benefit %'!$B$9 -> 0 | AG65: =(AA65-AB65)*'Benefit %'!$B$13 -> 0 | AH65: =(AA65-AB65)*'Benefit %'!$B$15 -> 0 | AI65: ='Class. Sal'!G37 -> 0 | AK65: =(AI65-AJ65)*'Benefit %'!$B$5 -> 0 | AL65: =(AI65-AJ65)*'Benefit %'!$B$7 -> 0 | AM65: =(AI65-AJ65)*'Benefit %'!$B$9 -> 0 | AN65: =AF65 -> 0 | AO65: =(AI65-AJ65)*'Benefit %'!$B$13 -> 0 | AP65: =(AI65-AJ65)*'Benefit %'!$B$15 -> 0 | AQ65: ='Class. Sal'!H37 -> 0 | AS65: =(AQ65-AR65)*'Benefit %'!$B$5 -> 0 | AT65: =(AQ65-AR65)*'Benefit %'!$B$7 -> 0 | AU65: =(AQ65-AR65)*'Benefit %'!$B$9 -> 0 | AV65: =AN65 -> 0 | AW65: =(AQ65-AR65)*'Benefit %'!$B$13 -> 0 | AX65: =(AQ65-AR65)*'Benefit %'!$B$15 -> 0 | AY65: ='Class. Sal'!I37 -> 0 | BA65: =(AY65-AZ65)*'Benefit %'!$B$5 -> 0 | BB65: =(AY65-AZ65)*'Benefit %'!$B$7 -> 0 | BC65: =(AY65-AZ65)*'Benefit %'!$B$9 -> 0 | BD65: =AV65 -> 0 | BE65: =(AY65-AZ65)*'Benefit %'!$B$13 -> 0 | BF65: =(AY65-AZ65)*'Benefit %'!$B$15 -> 0 | BG65: ='Class. Sal'!J37 -> 0 | BI65: =(BG65-BH65)*'Benefit %'!$B$5 -> 0 | BJ65: =(BG65-BH65)*'Benefit %'!$B$7 -> 0 | BK65: =(BG65-BH65)*'Benefit %'!$B$9 -> 0 | BL65: =BD65 -> 0 | BM65: =(BG65-BH65)*'Benefit %'!$B$13 -> 0 | BN65: =(BG65-BH65)*'Benefit %'!$B$15 -> 0 | BO65: ='Class. Sal'!K37 -> 0 | BQ65: =(BO65-BP65)*'Benefit %'!$B$5 -> 0 | BR65: =(BO65-BP65)*'Benefit %'!$B$7 -> 0 | BS65: =(BO65-BP65)*'Benefit %'!$B$9 -> 0 | BT65: =BL65 -> 0 | BU65: =(BO65-BP65)*'Benefit %'!$B$13 -> 0 | BV65: =(BO65-BP65)*'Benefit %'!$B$15 -> 0 | BW65: ='Class. Sal'!L37 -> 0 | BY65: =(BW65-BX65)*'Benefit %'!$B$5 -> 0 | BZ65: =(BW65-BX65)*'Benefit %'!$B$7 -> 0 | CA65: =(BW65-BX65)*'Benefit %'!$B$9 -> 0 | CB65: =BT65 -> 0 | CC65: =(BW65-BX65)*'Benefit %'!$B$13 -> 0 | CD65: =(BW65-BX65)*'Benefit %'!$B$15 -> 0 | CE65: ='Class. Sal'!M37 -> 0 | CG65: =(CE65-CF65)*'Benefit %'!$B$5 -> 0 | CH65: =(CE65-CF65)*'Benefit %'!$B$7 -> 0 | CI65: =(CE65-CF65)*'Benefit %'!$B$9 -> 0 | CJ65: =CB65 -> 0 | CK65: =(CE65-CF65)*'Benefit %'!$B$13 -> 0 | CL65: =(CE65-CF65)*'Benefit %'!$B$15 -> 0 | CM65: ='Class. Sal'!N37 -> 0 | CO65: =(CM65-CN65)*'Benefit %'!$B$5 -> 0 | CP65: =(CM65-CN65)*'Benefit %'!$B$7 -> 0 | CQ65: =(CM65-CN65)*'Benefit %'!$B$9 -> 0 | CR65: =CJ65 -> 0 | CS65: =(CM65-CN65)*'Benefit %'!$B$13 -> 0 | CT65: =(CM65-CN65)*'Benefit %'!$B$15 -> 0 | CU65: =235.68+320.76+203.59 -> 760.03 | CV65: 0 | CX65: =8.42+11.46+7 -> 26.88 | CY65: =1.97+2.68+1.64 -> 6.29 | CZ65: 0 | DA65: =0.07+0.09+0.06 -> 0.22 | DB65: =4.66+6.34+4.02 -> 15.02 | DC65: 48.41
A66: 3 | B66: ='Class. Sal'!B40 -> ORR,ASHLEY A | C66: ='Class. Sal'!C38 -> 0 | E66: =(C66-D66)*'Benefit %'!$B$5 -> 0 | F66: =(C66-D66)*'Benefit %'!$B$7 -> 0 | G66: =(C66-D66)*'Benefit %'!$B$9 -> 0 | I66: =(C66-D66)*'Benefit %'!$B$13 -> 0 | J66: =(C66-D66)*'Benefit %'!$B$15 -> 0 | K66: ='Class. Sal'!D38 -> 0 | M66: =(K66-L66)*'Benefit %'!$B$5 -> 0 | N66: =(K66-L66)*'Benefit %'!$B$7 -> 0 | O66: =(K66-L66)*'Benefit %'!$B$9 -> 0 | Q66: =(K66-L66)*'Benefit %'!$B$13 -> 0 | R66: =(K66-L66)*'Benefit %'!$B$15 -> 0 | S66: ='Class. Sal'!E38 -> 0 | U66: =(S66-T66)*'Benefit %'!$B$5 -> 0 | V66: =(S66-T66)*'Benefit %'!$B$7 -> 0 | W66: =(S66-T66)*'Benefit %'!$B$9 -> 0 | Y66: =(S66-T66)*'Benefit %'!$B$13 -> 0 | Z66: =(S66-T66)*'Benefit %'!$B$15 -> 0 | AA66: ='Class. Sal'!F38 -> 0 | AC66: =(AA66-AB66)*'Benefit %'!$B$5 -> 0 | AD66: =(AA66-AB66)*'Benefit %'!$B$7 -> 0 | AE66: =(AA66-AB66)*'Benefit %'!$B$9 -> 0 | AG66: =(AA66-AB66)*'Benefit %'!$B$13 -> 0 | AH66: =(AA66-AB66)*'Benefit %'!$B$15 -> 0 | AI66: ='Class. Sal'!G38 -> 557.16 | AK66: =(AI66-AJ66)*'Benefit %'!$B$5 -> 59.6551212 | AL66: =(AI66-AJ66)*'Benefit %'!$B$7 -> 34.54392 | AM66: =(AI66-AJ66)*'Benefit %'!$B$9 -> 8.07882 | AN66: =AF66 -> 0 | AO66: =(AI66-AJ66)*'Benefit %'!$B$13 -> 4.011552 | AP66: =(AI66-AJ66)*'Benefit %'!$B$15 -> 12.313236 | AQ66: ='Class. Sal'!H38 -> 0 | AS66: =(AQ66-AR66)*'Benefit %'!$B$5 -> 0 | AT66: =(AQ66-AR66)*'Benefit %'!$B$7 -> 0 | AU66: =(AQ66-AR66)*'Benefit %'!$B$9 -> 0 | AV66: =AN66 -> 0 | AW66: =(AQ66-AR66)*'Benefit %'!$B$13 -> 0 | AX66: =(AQ66-AR66)*'Benefit %'!$B$15 -> 0 | AY66: ='Class. Sal'!I38 -> 0 | BA66: =(AY66-AZ66)*'Benefit %'!$B$5 -> 0 | BB66: =(AY66-AZ66)*'Benefit %'!$B$7 -> 0 | BC66: =(AY66-AZ66)*'Benefit %'!$B$9 -> 0 | BD66: =AV66 -> 0 | BE66: =(AY66-AZ66)*'Benefit %'!$B$13 -> 0 | BF66: =(AY66-AZ66)*'Benefit %'!$B$15 -> 0 | BG66: ='Class. Sal'!J38 -> 0 | BI66: =(BG66-BH66)*'Benefit %'!$B$5 -> 0 | BJ66: =(BG66-BH66)*'Benefit %'!$B$7 -> 0 | BK66: =(BG66-BH66)*'Benefit %'!$B$9 -> 0 | BL66: =BD66 -> 0 | BM66: =(BG66-BH66)*'Benefit %'!$B$13 -> 0 | BN66: =(BG66-BH66)*'Benefit %'!$B$15 -> 0 | BO66: ='Class. Sal'!K38 -> 0 | BQ66: =(BO66-BP66)*'Benefit %'!$B$5 -> 0 | BR66: =(BO66-BP66)*'Benefit %'!$B$7 -> 0 | BS66: =(BO66-BP66)*'Benefit %'!$B$9 -> 0 | BT66: =BL66 -> 0 | BU66: =(BO66-BP66)*'Benefit %'!$B$13 -> 0 | BV66: =(BO66-BP66)*'Benefit %'!$B$15 -> 0 | BW66: ='Class. Sal'!L38 -> 0 | BY66: =(BW66-BX66)*'Benefit %'!$B$5 -> 0 | BZ66: =(BW66-BX66)*'Benefit %'!$B$7 -> 0 | CA66: =(BW66-BX66)*'Benefit %'!$B$9 -> 0 | CB66: =BT66 -> 0 | CC66: =(BW66-BX66)*'Benefit %'!$B$13 -> 0 | CD66: =(BW66-BX66)*'Benefit %'!$B$15 -> 0 | CE66: ='Class. Sal'!M38 -> 0 | CG66: =(CE66-CF66)*'Benefit %'!$B$5 -> 0 | CH66: =(CE66-CF66)*'Benefit %'!$B$7 -> 0 | CI66: =(CE66-CF66)*'Benefit %'!$B$9 -> 0 | CJ66: =CB66 -> 0 | CK66: =(CE66-CF66)*'Benefit %'!$B$13 -> 0 | CL66: =(CE66-CF66)*'Benefit %'!$B$15 -> 0 | CM66: ='Class. Sal'!N38 -> 0 | CO66: =(CM66-CN66)*'Benefit %'!$B$5 -> 0 | CP66: =(CM66-CN66)*'Benefit %'!$B$7 -> 0 | CQ66: =(CM66-CN66)*'Benefit %'!$B$9 -> 0 | CR66: =CJ66 -> 0 | CS66: =(CM66-CN66)*'Benefit %'!$B$13 -> 0 | CT66: =(CM66-CN66)*'Benefit %'!$B$15 -> 0 | CU66: 544 | CV66: 0 | CW66: 0 | CX66: 33.73 | CY66: 7.89 | CZ66: 0 | DA66: 0.27 | DB66: 10.75 | DC66: 52.64
A67: 4 | E67: =(C67-D67)*'Benefit %'!$B$5 -> 0 | F67: =(C67-D67)*'Benefit %'!$B$7 -> 0 | G67: =(C67-D67)*'Benefit %'!$B$9 -> 0 | I67: =(C67-D67)*'Benefit %'!$B$13 -> 0 | J67: =(C67-D67)*'Benefit %'!$B$15 -> 0 | M67: =(K67-L67)*'Benefit %'!$B$5 -> 0 | N67: =(K67-L67)*'Benefit %'!$B$7 -> 0 | O67: =(K67-L67)*'Benefit %'!$B$9 -> 0 | Q67: =(K67-L67)*'Benefit %'!$B$13 -> 0 | R67: =(K67-L67)*'Benefit %'!$B$15 -> 0 | S67: ='Class. Sal'!E39 -> 0 | U67: =(S67-T67)*'Benefit %'!$B$5 -> 0 | V67: =(S67-T67)*'Benefit %'!$B$7 -> 0 | W67: =(S67-T67)*'Benefit %'!$B$9 -> 0 | Y67: =(S67-T67)*'Benefit %'!$B$13 -> 0 | Z67: =(S67-T67)*'Benefit %'!$B$15 -> 0 | AA67: ='Class. Sal'!F39 -> 0 | AC67: =(AA67-AB67)*'Benefit %'!$B$5 -> 0 | AD67: =(AA67-AB67)*'Benefit %'!$B$7 -> 0 | AE67: =(AA67-AB67)*'Benefit %'!$B$9 -> 0 | AG67: =(AA67-AB67)*'Benefit %'!$B$13 -> 0 | AH67: =(AA67-AB67)*'Benefit %'!$B$15 -> 0 | AI67: ='Class. Sal'!G39 -> 0 | AK67: =(AI67-AJ67)*'Benefit %'!$B$5 -> 0 | AL67: =(AI67-AJ67)*'Benefit %'!$B$7 -> 0 | AM67: =(AI67-AJ67)*'Benefit %'!$B$9 -> 0 | AN67: =AF67 -> 0 | AO67: =(AI67-AJ67)*'Benefit %'!$B$13 -> 0 | AP67: =(AI67-AJ67)*'Benefit %'!$B$15 -> 0 | AQ67: ='Class. Sal'!H39 -> 0 | AS67: =(AQ67-AR67)*'Benefit %'!$B$5 -> 0 | AT67: =(AQ67-AR67)*'Benefit %'!$B$7 -> 0 | AU67: =(AQ67-AR67)*'Benefit %'!$B$9 -> 0 | AV67: =AN67 -> 0 | AW67: =(AQ67-AR67)*'Benefit %'!$B$13 -> 0 | AX67: =(AQ67-AR67)*'Benefit %'!$B$15 -> 0 | BA67: =(AY67-AZ67)*'Benefit %'!$B$5 -> 0 | BB67: =(AY67-AZ67)*'Benefit %'!$B$7 -> 0 | BC67: =(AY67-AZ67)*'Benefit %'!$B$9 -> 0 | BD67: =AV67 -> 0 | BE67: =(AY67-AZ67)*'Benefit %'!$B$13 -> 0 | BF67: =(AY67-AZ67)*'Benefit %'!$B$15 -> 0 | BI67: =(BG67-BH67)*'Benefit %'!$B$5 -> 0 | BJ67: =(BG67-BH67)*'Benefit %'!$B$7 -> 0 | BK67: =(BG67-BH67)*'Benefit %'!$B$9 -> 0 | BL67: =BD67 -> 0 | BM67: =(BG67-BH67)*'Benefit %'!$B$13 -> 0 | BN67: =(BG67-BH67)*'Benefit %'!$B$15 -> 0 | BO67: ='Class. Sal'!K39 -> 0 | BQ67: =(BO67-BP67)*'Benefit %'!$B$5 -> 0 | BR67: =(BO67-BP67)*'Benefit %'!$B$7 -> 0 | BS67: =(BO67-BP67)*'Benefit %'!$B$9 -> 0 | BT67: =BL67 -> 0 | BU67: =(BO67-BP67)*'Benefit %'!$B$13 -> 0 | BV67: =(BO67-BP67)*'Benefit %'!$B$15 -> 0 | BY67: =(BW67-BX67)*'Benefit %'!$B$5 -> 0 | BZ67: =(BW67-BX67)*'Benefit %'!$B$7 -> 0 | CA67: =(BW67-BX67)*'Benefit %'!$B$9 -> 0 | CB67: =BT67 -> 0 | CC67: =(BW67-BX67)*'Benefit %'!$B$13 -> 0 | CD67: =(BW67-BX67)*'Benefit %'!$B$15 -> 0 | CG67: =(CE67-CF67)*'Benefit %'!$B$5 -> 0 | CH67: =(CE67-CF67)*'Benefit %'!$B$7 -> 0 | CI67: =(CE67-CF67)*'Benefit %'!$B$9 -> 0 | CJ67: =CB67 -> 0 | CK67: =(CE67-CF67)*'Benefit %'!$B$13 -> 0 | CL67: =(CE67-CF67)*'Benefit %'!$B$15 -> 0 | CO67: =(CM67-CN67)*'Benefit %'!$B$5 -> 0 | CP67: =(CM67-CN67)*'Benefit %'!$B$7 -> 0 | CQ67: =(CM67-CN67)*'Benefit %'!$B$9 -> 0 | CR67: =CJ67 -> 0 | CS67: =(CM67-CN67)*'Benefit %'!$B$13 -> 0 | CT67: =(CM67-CN67)*'Benefit %'!$B$15 -> 0 | CU67: 0 | CV67: 0 | CW67: 0 | CX67: 0 | CY67: 0 | CZ67: 0 | DA67: 0 | DB67: 0 | DC67: 0
A68: 5 | C68: ='Class. Sal'!C40 -> 0 | E68: =(C68-D68)*'Benefit %'!$B$5 -> 0 | F68: =(C68-D68)*'Benefit %'!$B$7 -> 0 | G68: =(C68-D68)*'Benefit %'!$B$9 -> 0 | I68: =(C68-D68)*'Benefit %'!$B$13 -> 0 | J68: =(C68-D68)*'Benefit %'!$B$15 -> 0 | K68: ='Class. Sal'!D40 -> 0 | M68: =(K68-L68)*'Benefit %'!$B$5 -> 0 | N68: =(K68-L68)*'Benefit %'!$B$7 -> 0 | O68: =(K68-L68)*'Benefit %'!$B$9 -> 0 | Q68: =(K68-L68)*'Benefit %'!$B$13 -> 0 | R68: =(K68-L68)*'Benefit %'!$B$15 -> 0 | S68: ='Class. Sal'!E40 -> 0 | U68: =(S68-T68)*'Benefit %'!$B$5 -> 0 | V68: =(S68-T68)*'Benefit %'!$B$7 -> 0 | W68: =(S68-T68)*'Benefit %'!$B$9 -> 0 | Y68: =(S68-T68)*'Benefit %'!$B$13 -> 0 | Z68: =(S68-T68)*'Benefit %'!$B$15 -> 0 | AA68: ='Class. Sal'!F40 -> 0 | AC68: =(AA68-AB68)*'Benefit %'!$B$5 -> 0 | AD68: =(AA68-AB68)*'Benefit %'!$B$7 -> 0 | AE68: =(AA68-AB68)*'Benefit %'!$B$9 -> 0 | AG68: =(AA68-AB68)*'Benefit %'!$B$13 -> 0 | AH68: =(AA68-AB68)*'Benefit %'!$B$15 -> 0 | AI68: ='Class. Sal'!G40 -> 0 | AK68: =(AI68-AJ68)*'Benefit %'!$B$5 -> 0 | AL68: =(AI68-AJ68)*'Benefit %'!$B$7 -> 0 | AM68: =(AI68-AJ68)*'Benefit %'!$B$9 -> 0 | AN68: =AF68 -> 0 | AO68: =(AI68-AJ68)*'Benefit %'!$B$13 -> 0 | AP68: =(AI68-AJ68)*'Benefit %'!$B$15 -> 0 | AQ68: ='Class. Sal'!H40 -> 0 | AS68: =(AQ68-AR68)*'Benefit %'!$B$5 -> 0 | AT68: =(AQ68-AR68)*'Benefit %'!$B$7 -> 0 | AU68: =(AQ68-AR68)*'Benefit %'!$B$9 -> 0 | AV68: =AN68 -> 0 | AW68: =(AQ68-AR68)*'Benefit %'!$B$13 -> 0 | AX68: =(AQ68-AR68)*'Benefit %'!$B$15 -> 0 | BA68: =(AY68-AZ68)*'Benefit %'!$B$5 -> 0 | BB68: =(AY68-AZ68)*'Benefit %'!$B$7 -> 0 | BC68: =(AY68-AZ68)*'Benefit %'!$B$9 -> 0 | BD68: =AV68 -> 0 | BE68: =(AY68-AZ68)*'Benefit %'!$B$13 -> 0 | BF68: =(AY68-AZ68)*'Benefit %'!$B$15 -> 0 | BI68: =(BG68-BH68)*'Benefit %'!$B$5 -> 0 | BJ68: =(BG68-BH68)*'Benefit %'!$B$7 -> 0 | BK68: =(BG68-BH68)*'Benefit %'!$B$9 -> 0 | BL68: =BD68 -> 0 | BM68: =(BG68-BH68)*'Benefit %'!$B$13 -> 0 | BN68: =(BG68-BH68)*'Benefit %'!$B$15 -> 0 | BO68: ='Class. Sal'!K40 -> 0 | BQ68: =(BO68-BP68)*'Benefit %'!$B$5 -> 0 | BR68: =(BO68-BP68)*'Benefit %'!$B$7 -> 0 | BS68: =(BO68-BP68)*'Benefit %'!$B$9 -> 0 | BT68: =BL68 -> 0 | BU68: =(BO68-BP68)*'Benefit %'!$B$13 -> 0 | BV68: =(BO68-BP68)*'Benefit %'!$B$15 -> 0 | BY68: =(BW68-BX68)*'Benefit %'!$B$5 -> 0 | BZ68: =(BW68-BX68)*'Benefit %'!$B$7 -> 0 | CA68: =(BW68-BX68)*'Benefit %'!$B$9 -> 0 | CB68: =BT68 -> 0 | CC68: =(BW68-BX68)*'Benefit %'!$B$13 -> 0 | CD68: =(BW68-BX68)*'Benefit %'!$B$15 -> 0 | CG68: =(CE68-CF68)*'Benefit %'!$B$5 -> 0 | CH68: =(CE68-CF68)*'Benefit %'!$B$7 -> 0 | CI68: =(CE68-CF68)*'Benefit %'!$B$9 -> 0 | CJ68: =CB68 -> 0 | CK68: =(CE68-CF68)*'Benefit %'!$B$13 -> 0 | CL68: =(CE68-CF68)*'Benefit %'!$B$15 -> 0 | CM68: ='Class. Sal'!N40 -> 0 | CO68: =(CM68-CN68)*'Benefit %'!$B$5 -> 0 | CP68: =(CM68-CN68)*'Benefit %'!$B$7 -> 0 | CQ68: =(CM68-CN68)*'Benefit %'!$B$9 -> 0 | CR68: =CJ68 -> 0 | CS68: =(CM68-CN68)*'Benefit %'!$B$13 -> 0 | CT68: =(CM68-CN68)*'Benefit %'!$B$15 -> 0 | CU68: 0 | CV68: 0 | CW68: 0 | CX68: 0 | CY68: 0 | CZ68: 0 | DA68: 0 | DB68: 0 | DC68: 0
DC69: 0
B70: Hourly Totals | C70: =SUM(C64:C69) -> 0 | D70: =SUM(D64:D69) -> 0 | E70: 0 | F70: 0 | G70: 0 | H70: 0 | I70: 0 | J70: 0 | K70: =SUM(K64:K69) -> 0 | L70: =SUM(L64:L69) -> 0 | M70: 0 | N70: 0 | O70: 0 | P70: 0 | Q70: 0 | R70: 0 | S70: =SUM(S64:S69) -> 0 | T70: =SUM(T64:T69) -> 0 | U70: 0 | V70: 0 | W70: 0 | X70: 0 | Y70: 0 | Z70: 0 | AA70: =SUM(AA64:AA69) -> 0 | AB70: =SUM(AB64:AB69) -> 0 | AC70: 0 | AD70: 0 | AE70: 0 | AF70: 0 | AG70: 0 | AH70: 0 | AI70: =SUM(AI64:AI69) -> 557.16 | AJ70: =SUM(AJ64:AJ69) -> 0 | AK70: 59.6551212 | AL70: 34.54392 | AM70: 8.07882 | AN70: 0 | AO70: 4.011552 | AP70: 12.313236 | AQ70: =SUM(AQ64:AQ69) -> 0 | AR70: =SUM(AR64:AR69) -> 0 | AS70: 0 | AT70: 0 | AU70: 0 | AV70: 0 | AW70: 0 | AX70: 0 | AY70: =SUM(AY64:AY69) -> 0 | AZ70: =SUM(AZ64:AZ69) -> 0 | BA70: 0 | BB70: 0 | BC70: 0 | BD70: 0 | BE70: 0 | BF70: 0 | BG70: =SUM(BG64:BG69) -> 0 | BH70: =SUM(BH64:BH69) -> 0 | BI70: 0 | BJ70: 0 | BK70: 0 | BL70: 0 | BM70: 0 | BN70: 0 | BO70: =SUM(BO64:BO69) -> 0 | BP70: =SUM(BP64:BP69) -> 0 | BQ70: 0 | BR70: 0 | BS70: 0 | BT70: 0 | BU70: 0 | BV70: 0 | BW70: =SUM(BW64:BW69) -> 0 | BX70: =SUM(BX64:BX69) -> 0 | BY70: =SUM(BY64:BY69) -> 0 | BZ70: 0 | CA70: 0 | CB70: 0 | CC70: 0 | CD70: 0 | CE70: =SUM(CE64:CE69) -> 0 | CF70: =SUM(CF64:CF69) -> 0 | CG70: 0 | CH70: 0 | CI70: 0 | CJ70: 0 | CK70: 0 | CL70: 0 | CM70: =SUM(CM64:CM69) -> 0 | CN70: =SUM(CN64:CN69) -> 0 | CO70: 0 | CP70: 0 | CQ70: 0 | CR70: 0 | CS70: 0 | CT70: 0 | CU70: =SUM(CU64:CU69) -> 1304.03 | CV70: =SUM(CV64:CV69) -> 0 | CW70: 0 | CX70: 60.61 | CY70: 14.18 | CZ70: 0 | DA70: 0.49 | DB70: 25.77 | DC70: 101.05
B71: Monthly Benefit Total | I71: =SUM(E70:J70) -> 0 | Q71: =SUM(M70:R70) -> 0 | Y71: =SUM(U70:Z70) -> 0 | AG71: =SUM(AC70:AH70) -> 0 | AO71: =SUM(AK70:AP70) -> 118.6026492 | AW71: =SUM(AS70:AX70) -> 0 | BE71: =SUM(BA70:BF70) -> 0 | BM71: =SUM(BI70:BN70) -> 0 | BU71: =SUM(BQ70:BV70) -> 0 | CC71: =SUM(BY70:CD70) -> 0 | CK71: =SUM(CG70:CL70) -> 0 | CS71: =SUM(CO70:CT70) -> 0 | CW71: Hourly Yearly Benefits | DA71: =SUM(CW70:DB70) -> 101.05 | DC71: 101.05
DC72: 0
A73: Classified Total | C73: =SUM(C52,C61,C70) -> 5421.37 | D73: =SUM(D52,D61,D70) -> 0 | E73: 411.2826375 | F73: 336.12494 | G73: 78.609865 | H73: 0 | I73: 39.033864 | J73: 119.812277 | K73: =SUM(K52,K61,K70) -> 7662.78 | L73: =SUM(L52,L61,L70) -> 0 | M73: 651.2704062 | N73: 475.09236 | O73: 111.11031 | P73: 0 | Q73: 55.172016 | R73: 169.347438 | S73: =SUM(S52,S61,S70) -> 7839.24 | T73: =SUM(T52,T61,T70) -> 0 | U73: 670.1639784 | V73: 486.03288 | W73: 113.66898 | X73: 5645.93 | Y73: 56.442528 | Z73: 173.247204 | AA73: =SUM(AA52,AA61,AA70) -> 7999.61 | AB73: =SUM(AB52,AB61,AB70) -> 0 | AC73: 856.5182427 | AD73: 495.97582 | AE73: 115.994345 | AF73: 5645.93 | AG73: 57.597192 | AH73: 176.791381 | AI73: =SUM(AI52,AI61,AI70) -> 9583.4 | AJ73: =SUM(AJ52,AJ61,AJ70) -> 0 | AK73: 1026.094638 | AL73: 594.1708 | AM73: 138.9593 | AN73: 5645.93 | AO73: 69.00048 | AP73: 211.79314 | AQ73: =SUM(AQ52,AQ61,AQ70) -> 10412.21 | AR73: =SUM(AR52,AR61,AR70) -> 0 | AS73: 1114.835325 | AT73: 645.55702 | AU73: 150.977045 | AV73: 5645.93 | AW73: 74.967912 | AX73: 230.109841 | AY73: =SUM(AY52,AY61,AY70) -> 11238.85 | AZ73: =SUM(AZ52,AZ61,AZ70) -> 0 | BA73: 1203.34367 | BB73: 696.8087 | BC73: 162.963325 | BD73: 5645.93 | BE73: 80.91972 | BF73: 248.378585 | BG73: =SUM(BG52,BG61,BG70) -> 10578.84 | BH73: =SUM(BH52,BH61,BH70) -> 0 | BI73: 1132.676399 | BJ73: 655.88808 | BK73: 153.39318 | BL73: 5645.93 | BM73: 76.167648 | BN73: 233.792364 | BO73: =SUM(BO52,BO61,BO70) -> 10827.48 | BP73: =SUM(BP52,BP61,BP70) -> 0 | BQ73: 1159.298284 | BR73: 671.30376 | BS73: 156.99846 | BT73: 5645.93 | BU73: 77.957856 | BV73: 239.287308 | BW73: =SUM(BW52,BW61,BW70) -> 11032.8 | BX73: =SUM(BX52,BX61,BX70) -> 0 | BY73: 1181.281896 | BZ73: 684.0336 | CA73: 159.9756 | CB73: 5645.93 | CC73: 79.43616 | CD73: 243.82488 | CE73: =SUM(CE52,CE61,CE70) -> 11032.8 | CF73: =SUM(CF52,CF61,CF70) -> 0 | CG73: 1181.281896 | CH73: 684.0336 | CI73: 159.9756 | CJ73: 5645.93 | CK73: 79.43616 | CL73: 243.82488 | CM73: =SUM(CM52,CM61,CM70) -> 10766.97 | CN73: =SUM(CN52,CN61,CN70) -> 0 | CO73: 1152.819478 | CP73: 667.55214 | CQ73: 156.121065 | CR73: 5645.93 | CS73: 77.522184 | CT73: 237.950037 | CU73: =SUM(CU52,CU61,CU70) -> 146099.81 | CV73: =SUM(CV52,CV61,CV70) -> 0 | CW73: 17366.97361 | CX73: 9997.49536 | CY73: 2338.09706 | CZ73: 37506.8 | DA73: 197.992816 | DB73: 3154.665588 | DC73: 70562.02444
A74: Total Class. Monthly Benefit | I74: =SUM(E73:J73) -> 984.8635835 | Q74: =SUM(M73:R73) -> 1461.99253 | Y74: =SUM(U73:Z73) -> 7145.48557 | AG74: =SUM(AC73:AH73) -> 7348.806981 | AO74: =SUM(AK73:AP73) -> 7685.948358 | AW74: =SUM(AS73:AX73) -> 7862.377143 | BE74: =SUM(BA73:BF73) -> 8038.343999 | BM74: =SUM(BI73:BN73) -> 7897.847671 | BU74: =SUM(BQ73:BV73) -> 7950.775668 | CC74: =SUM(BY73:CD73) -> 7994.482136 | CK74: =SUM(CG73:CL73) -> 7994.482136 | CS74: =SUM(CO73:CT73) -> 7937.894904 | CW74: Total Class. Yearly Benefits | DA74: =SUM(CW73:DB73) -> 70562.02444 | DB74: =DB53+DB62 -> 0 | DC74: 70562.02444
C81: October | E81: November | G81: December | I81: January | K81: February | M81: March | O81: April | Q81: May | S81: June | U81: July | W81: August | Y81: September | AA81: Year Total
A82: Student Employees | C82: GI | D82: W/C | E82: GI | F82: W/C | G82: GI | H82: W/C | I82: GI | J82: W/C | K82: GI | L82: W/C | M82: GI | N82: W/C | O82: GI | P82: W/C | Q82: GI | R82: W/C | S82: GI | T82: W/C | U82: GI | V82: W/C | W82: GI | X82: W/C | Y82: GI | Z82: W/C | AA82: GI | AB82: W/C
A84: Student Total | C84: ='Student Emp.'!C93 -> 0 | D84: =C84*'Benefit %'!B15 -> 0 | E84: ='Student Emp.'!D93 -> 0 | F84: =E84*'Benefit %'!B15 -> 0 | G84: ='Student Emp.'!E93 -> 0 | H84: =G84*'Benefit %'!B15 -> 0 | I84: ='Student Emp.'!F93 -> 0 | J84: =I84*'Benefit %'!B15 -> 0 | K84: ='Student Emp.'!G93 -> 0 | L84: =K84*'Benefit %'!B15 -> 0 | M84: ='Student Emp.'!H93 -> 0 | N84: =M84*'Benefit %'!B15 -> 0 | O84: ='Student Emp.'!I93 -> 0 | P84: =O84*'Benefit %'!B15 -> 0 | Q84: ='Student Emp.'!J93 -> 0 | R84: =Q84*'Benefit %'!B15 -> 0 | S84: ='Student Emp.'!K93 -> 0 | T84: =S84*'Benefit %'!B15 -> 0 | U84: ='Student Emp.'!L93 -> 0 | V84: =U84*'Benefit %'!B15 -> 0 | W84: ='Student Emp.'!M93 -> 0 | X84: =W84*'Benefit %'!B15 -> 0 | Y84: ='Student Emp.'!N93 -> 138492.29 | Z84: =Y84*'Benefit %'!B15 -> 3060.679609 | AA84: =S84+Q84+O84+M84+K84+I84+G84+E84+C84+Y84+W84+U84 -> 138492.29 | AB84: =T84+R84+P84+N84+L84+J84+H84+F84+D84+Z84+X84+V84 -> 3060.679609
DB86: Total | DC86: =129884.38 -> 129884.38 | DD86: From Kim

Sheet Supplies
A1: 4000 Supplies | D1: =Summary!F1 -> 2014-2015
C2: October | D2: November | E2: December | F2: January | G2: February | H2: March | I2: April | J2: May | K2: June | L2: July | M2: August | N2: September | O2: Year Total
A3: Instructional Supplies
A4: 1 | B4: LANCASTER ARCHERY SUPPLY | C4: 62.14 | D4: 1337.27 | E4: 5944.3 | I4: 2194.26 | L4: 1086.41 | M4: 1333.38 | O4: =SUM(C4:N4) -> 11957.76
A5: 2 | B5: GRAINGER INDUSTRIAL | C5: 2742.12 | N5: 4991.16 | O5: =SUM(C5:N5) -> 7733.28
A6: 3 | B6: APOGEE COMPONENTS | C6: 723.04 | D6: 212.02 | J6: 468.7 | O6: =SUM(C6:N6) -> 1403.76
A7: 4 | B7: MCMASTER-CARR SUPPLY | C7: 1545.51 | D7: 516.11 | G7: 1159.66 | H7: 243.72 | J7: 320.88 | O7: =SUM(D7:N7) -> 2240.37
A8: 5 | B8: H&W ARCHERY | O8: =SUM(C8:N8) -> 0
A9: 6 | B9: FLINN SCIENTIFIC | C9: 528.53 | E9: 331.35 | I9: 137.34 | L9: 24.42 | N9: 762.19 | O9: 1783.83
A10: 7 | B10: PUBLIC MISSILES, LTD | C10: 144.42 | O10: 144.42
A11: 8 | B11: LOC PRECISION | C11: 236.67 | O11: 236.67
A12: 9 | B12: LABORATORY DEVICES | D12: 244.5 | O12: 244.5
A13: 10 | B13: WARDS NATURAL SCIENCE ESTABLISHMENT | D13: 330.3 | I13: 2590.85 | O13: 2921.15
A14: 11 | B14: 3D MOLECULAR DESIGNS | D14: 83 | O14: 83
A15: 12 | B15: RANESCO | I15: 89873.29 | O15: 89873.29
A16: 13 | B16: PASCO SCIENTIFIC | D16: 1149 | E16: 894 | H16: 1914.04 | I16: =614.32+6022.2+1884.22+759.4+24114 -> 33394.14 | J16: 28314 | L16: 327.44 | N16: 1792.4 | O16: 67785.02
A17: 14 | B17: AMERICAN BUSINESS MACHINES | D17: 700 | J17: =792.54+140 -> 932.54 | L17: 211.68 | O17: =SUM(C17:N17) -> 1844.22
A18: 15 | B18: LLLREPTILE AND SUPPLY CO. | D18: 344.97 | O18: =SUM(C18:N18) -> 344.97
A19: 16 | B19: LAB CORPORATION | E19: 5160 | O19: 5160
A20: 17 | B20: LABORATORY TESTING INC. | E20: 480 | O20: 480
A21: 18 | B21: VISHAY PRECISION GROUP, INC. | E21: 4739.28 | O21: 4739.28
A22: 19 | B22: TECQUIPMENT LTD | E22: 480 | O22: 480
A23: 20 | B23: ONLINE METALS | E23: 90 | O23: 90
A24: 21 | B24: ARCHERY SHOP | F24: 2152.4 | G24: 2066.01 | H24: 514.88 | O24: 4733.29
A25: 22 | B25: AMERICAN WEIGH SCALES, INC. | H25: 739.95 | O25: 739.95
A26: 23 | B26: ULINE | E26: 21.25 | O26: 21.25
A27: 24 | B27: NASCO | E27: 79.9 | O27: 79.9
A28: 25 | B28: VERNIER SOFTWARE | E28: 168 | J28: 762.37 | N28: 279.04 | O28: 1209.41
A29: 26 | B29: INTERNATIONAL BUSINESS MACHINES CORP | I29: 9975 | J29: 8177.01 | O29: =SUM(C29:N29) -> 18152.01
A30: 27 | B30: AMAZON.COM | I30: 155.26 | J30: 74.46 | L30: 189.19 | M30: 141.06 | N30: =32.87+92.32+91.58 -> 216.77 | O30: 776.74
A31: 28 | B31: SARGENT WELCH SCIENTIFIC | H31: 42.51 | N31: 488.54 | O31: 531.05
A32: 29 | B32: OLYMPUS AMERICA INC. | D32: 60208.23 | O32: 60208.23
A33: 30 | B33: ANATOMY WAREHOUSE | L33: 335.35 | O33: 335.35
A34: 31 | B34: AMERICAN 3B SCIENTIFIC | I34: 834.95 | O34: 834.95
A35: 32 | B35: BATTERY JUNCTION | I35: 72.19 | O35: 72.19
A36: 33 | B36: WALMART | J36: 63.72 | O36: 63.72
A37: 34 | B37: H & W ARCHERY | J37: 2380.77 | K37: 176.93 | N37: 112.27 | O37: 2669.97
A38: 35 | B38: COOLERGUYS.COM | J38: 128.73 | O38: 128.73
A39: 36 | B39: ELECTRONIX EXPRESS | L39: 5710.94 | O39: 5710.94
A40: 37 | B40: B & H PHOTO VIDEO PRO AUDIO | L40: =307.36+4031.52 -> 4338.88 | O40: 4338.88
A41: 38 | B41: MAKER'S TOOL WORKS | L41: 1757.8 | O41: 1757.8
A42: 39 | B42: HARRY H. RICHARDSON | K42: 878 | O42: =SUM(C42:N42) -> 878
A43: 40 | B43: CHRISTOS VALIOTIS-REIMBURSEMENT | K43: 143.74 | O43: =SUM(C43:N43) -> 143.74
A44: 41 | B44: POLULU ROBOTICS & ELECTRONICS | M44: 1035.5 | O44: 1035.5
A45: 42 | B45: ROBOTSHOP INC | M45: 496.5 | O45: 496.5
A46: 43 | B46: ADAFRUIT | M46: 587.6 | O46: 587.6
A47: 44 | B47: MONOPRICE INC | N47: 68.67 | O47: =SUM(C47:N47) -> 68.67
A48: 45 | B48: ORIENTAL TRADING | M48: 59.31 | O48: 59.31
A49: 46 | B49: CDW-G | M49: =16310.31+2450.45 -> 18760.76 | O49: 18760.76
A50: 47 | B50: SCANTRON CORPORATION | M50: 157.56 | O50: 157.56
A51: 48 | B51: OEHLER RESEARCH | N51: 42 | O51: =SUM(C51:N51) -> 42
A52: 49 | B52: ARBOR SCIENTIFIC | N52: 191.8 | O52: 191.8
A53: 50 | B53: PATON GROUP | N53: 2230 | O53: 2230
A54: 51 | B54: SCIENCE FIRST | N54: 130.53 | O54: 130.53
A55: 52 | O55: 0
A56: 53 | O56: 0
A57: 54 | O57: 0
A59: Total | C59: =SUM(C4:C27) -> 5982.43 | D59: =SUM(D4:D27) -> 4917.17 | E59: =SUM(E4:E42) -> 18388.08 | F59: =SUM(F4:F42) -> 2152.4 | G59: =SUM(G4:G42) -> 3225.67 | H59: =SUM(H4:H42) -> 3455.1 | I59: =SUM(I4:I42) -> 139227.28 | J59: =SUM(J4:J37) -> 41494.45 | K59: =SUM(K4:K37) -> 176.93 | L59: =SUM(L4:L37) -> 2174.49 | M59: =SUM(M4:M37) -> 1474.44 | N59: =SUM(N4:N37) -> 8642.37 | O59: =SUM(C59:N59) -> 231310.81
A61: Non-Instructional Supplies
A62: 1 | B62: HOME DEPOT | F62: =202.34+206.83+196.41+237.9+29.39 -> 872.87 | H62: 411.9 | I62: =49.42+250.98+80.22+99.87 -> 480.49 | L62: 236.76 | N62: 702.55 | O62: =SUM(C62:N62) -> 2704.57
A63: 2 | B63: HIGH DESERT HOBBIES | J63: 494.78 | K63: 501.39 | N63: 119.89 | O63: 1116.06
A64: 3 | B64: OFFICE DEPOT | I64: 71.42 | N64: =57.36+11.98 -> 69.34 | O64: 140.76
A65: 4 | B65: COSTCO | G65: 208.44 | N65: 95 | O65: 303.44
A66: 5 | B66: CDW-G | H66: 196.49 | J66: 1914 | O66: 2110.49
A67: 6 | B67: GoEngineer | E67: 1961.25 | O67: 1961.25
A68: 7 | B68: LOWE'S (REIMBURSEMENT) | G68: 75.69 | O68: 75.69
A69: 8 | B69: SCIENCE OLYMPIAD REIMBURSEMENT | G69: 603.24 | K69: 143 | L69: 426.61 | O69: 1172.85
A70: 9 | B70: MARAUDER BOOKSTORE | G70: 124.21 | I70: 38.77 | O70: 162.98
A71: 10 | B71: PANERA | G71: 740.25 | O71: =SUM(C71:N71) -> 740.25
A72: 11 | B72: AVC CAFETERIA | G72: 1587.53 | H72: =273.59+704.33 -> 977.92 | I72: 1648.8 | L72: 704.33 | N72: =527.5+574.98 -> 1102.48 | O72: 6021.06
A73: 12 | B73: HAGGEN | J73: 49.62 | O73: 49.62
A74: 13 | B74: ALBERTSONS | J74: 6.69 | O74: 6.69
A75: 14 | B75: RIGATONYS PIZZA PASTA | J75: 34.84 | O75: 34.84
A76: 15 | B76: AVC WAREHOUSE | K76: 24 | O76: 24
A77: 16 | B77: ZONES, INC | G77: 302.16 | J77: =18136.92+33267.28+18710.74 -> 70114.94 | O77: =SUM(D77:N77) -> 70417.1
A78: 17 | O78: =SUM(C78:N78) -> 0
A79: 18 | O79: 0
A80: 19 | O80: 0
A81: 20 | O81: 0
A82: 21 | O82: 0
A83: 22 | O83: 0
A84: 23 | O84: 0
A85: 24 | O85: 0
A86: 25 | O86: 0
A88: 26 | O88: 0
A89: 27
A90: Total | C90: =SUM(C62:C84) -> 0 | D90: =SUM(D62:D84) -> 0 | E90: =SUM(E62:E89) -> 1961.25 | F90: =SUM(F62:F84) -> 872.87 | G90: 3641.52 | H90: 1586.31 | I90: 2239.48 | J90: 72614.87 | K90: 668.39 | L90: 1367.7 | M90: 0 | N90: 2089.26 | O90: =SUM(C90:N90) -> 87041.65
A92: WAREHOUSE SUPPLIES
A93: 1 | B93: Office Supplies from Warehouse | C93: 268.46 | K93: 24 | N93: 51.96 | O93: =SUM(C93:N93) -> 344.42
A94: 2 | B94: UPS | O94: =SUM(C94:N94) -> 0
A95: 3 | O95: =SUM(C95:N95) -> 0
A96: 4 | O96: =SUM(C96:N96) -> 0
A98: Total | C98: =SUM(C93:C97) -> 268.46 | D98: 0 | E98: 0 | F98: 0 | G98: 0 | H98: 0 | I98: 0 | J98: 0 | K98: 24 | L98: 0 | M98: 0 | N98: 51.96 | O98: =SUM(C98:N98) -> 344.42
O100: =O59+O90+O98 -> 318696.88

Sheet Other Exp.
A1: 5000 Other Expenses | D1: =Summary!F1 -> 2014-2015
C2: October | D2: November | E2: December | F2: January | G2: February | H2: March | I2: April | J2: May | K2: June | L2: July | M2: August | N2: September | O2: Year Total
A3: Consultants/Contract Services
A4: 1 | B4: WRD Evaluation Consulting | D4: 91309.44 | O4: =SUM(D4:N4) -> 91309.44
A5: 2 | B5: KCCD | E5: 3930.74 | I5: 2048.32 | J5: =4177.96+3286.79+1675.16+518.71+5048.48 -> 14707.1 | L5: =1229.03+1119.19+1043.64 -> 3391.86 | N5: 353.94 | O5: =SUM(C5:N5) -> 24431.96
A6: 3 | B6: CSULB | H6: =107045.72+57604.95 -> 164650.67 | M6: 64321.78 | O6: =SUM(C6:N6) -> 228972.45
A7: 4 | B7: NATHALIE GOSSET | I7: 2500 | O7: =SUM(E7:N7) -> 2500
A8: 5 | O8: 0
A9: 6 | O9: 0
A10: 7 | O10: 0
A11: 8 | O11: 0
A12: 9 | O12: 0
A13: Total | C13: =SUM(C4:C12) -> 0 | D13: =SUM(D4:D12) -> 91309.44 | E13: =SUM(E4:E12) -> 3930.74 | F13: 0 | G13: 0 | H13: 164650.67 | I13: 4548.32 | J13: 14707.1 | K13: 0 | L13: 3391.86 | M13: 64321.78 | N13: 353.94 | O13: 347213.85
A15: Travel & Conferences
A16: 1 | B16: AMATYC HOTEL | O16: =SUM(C16:N16) -> 0
A17: 2 | B17: JEFFREY COOPER | H17: 996.87 | O17: =SUM(C17:N17) -> 996.87
A18: 3 | B18: TOORAJ GORDI | H18: 1300.12 | O18: 1300.12
A19: 4 | B19: CHRISTOS VALIOTIS - NEW YORK | I19: =10202.67+430.36 -> 10633.03 | O19: =SUM(C19:N19) -> 10633.03
A20: 5 | B20: SVETLANA DEPLAZES - NEW YORK | J20: 192 | O20: =SUM(C20:N20) -> 192
A21: 6 | B21: CHRISTOS VALIOTIS - DENVER | I21: 1430.95 | K21: 531 | O21: 1961.95
A22: 7 | B22: JAMIE JONES - DENVER | I22: 4943.2 | K22: 195 | O22: 5138.2
A23: 8 | B23: SVETLANA DEPLAZES - DENVER | K23: 258 | O23: =SUM(C23:N23) -> 258
A24: 9 | B24: ZIA NISANI - LOYOLA MARYMOUNT SCAS 15 | J24: 324.04 | O24: =SUM(C24:N24) -> 324.04
A25: 10 | B25: JESSICA HARPER - SAN JOSE | K25: 329.26 | O25: =SUM(C25:N25) -> 329.26
A26: 11 | B26: JOHN P ELIOPULOS HELLENIC CENTER | M26: 9337.81 | O26: 9337.81
A27: 12 | B27: CHRISTOS VALIOTIS-ARCHERY TRAINING | M27: 812.38 | O27: 812.38
A28: 13 | B28: TOORAJ GORDI-AMATYC-NEW ORLEANS | N28: 2283.15 | O28: =SUM(C28:N28) -> 2283.15
A29: 14 | B29: DEZDEMONA GINOSIAN-AMATYC-NEW ORLEANS | N29: 2185.65 | O29: =SUM(C29:N29) -> 2185.65
A30: 15 | B30: SNIZHANA BOWERS-AMATYC-NEW ORLEANS | N30: 2149.2 | O30: 2149.2
A31: 16 | B31: JAMES DORN-AMATYC-NEW ORLEANS | N31: 2149.2 | O31: 2149.2
A32: 14 | O32: 0
A33: 15 | O33: 0
A34: 16 | O34: 0
A35: 17
A36: 18
A37: 19
A38: 20 | O38: 0
A39: 21
A40: 22
A41: 23
A42: Total | C42: =SUM(C16:C38) -> 0 | D42: =SUM(D16:D38) -> 0 | E42: 0 | F42: 0 | G42: 0 | H42: 2296.99 | I42: 17007.18 | J42: 516.04 | K42: 1313.26 | L42: 0 | M42: 10150.19 | N42: 8767.2 | O42: 40050.86
A44: Dues & Memberships
A45: 1 | B45: Association for Institutional Research | I45: 140 | O45: =SUM(C45:N45) -> 140
A46: 2 | O46: =SUM(C46:N46) -> 0
A47: 3 | O47: 0
A48: 4 | O48: 0
A49: 5 | O49: 0
A51: Total | C51: =SUM(C45:C50) -> 0 | D51: =SUM(D45:D50) -> 0 | E51: =SUM(E45:E50) -> 0 | F51: =SUM(F45:F50) -> 0 | G51: 0 | H51: 0 | I51: 140 | J51: 0 | K51: 0 | L51: 0 | M51: 0 | N51: 0 | O51: 140
A53: Licenses & Fees
A54: 1 | B54: National Instruments | J54: 12452.48 | O54: =SUM(C54:N54) -> 12452.48
A55: 2 | B55: GoEngineering | O55: =SUM(C55:N55) -> 0
A56: 3 | B56: EDUCO | O56: =SUM(C56:N56) -> 0
A57: 4 | B57: The MATHWORKS, INC. | O57: 0
A58: 5
A59: 6
A60: Total | C60: =SUM(C54:C58) -> 0 | D60: 0 | E60: 0 | F60: 0 | G60: 0 | H60: 0 | I60: 0 | J60: 12452.48 | K60: =SUM(K54:K59) -> 0 | L60: =SUM(L54:L58) -> 0 | M60: =SUM(M54:M58) -> 0 | N60: =SUM(N54:N58) -> 0 | O60: =SUM(C60:N60) -> 12452.48
A62: Rents & Leases
A63: 1 | B63: Antelope Valley College - Facility Use | I63: 1851.75 | O63: =SUM(C63:N63) -> 1851.75
A64: 2 | B64: Hellenic Center | L64: 9337.81 | O64: =SUM(C64:N64) -> 9337.81
A65: 3 | O65: 0
A66: 4 | O66: 0
A67: 5 | O67: 0
A69: Total | C69: =SUM(C63:C68) -> 0 | D69: =SUM(D63:D68) -> 0 | E69: =SUM(E63:E68) -> 0 | F69: 0 | G69: 0 | H69: 0 | I69: 1851.75 | J69: 0 | K69: 0 | L69: 9337.81 | M69: 0 | N69: 0 | O69: 11189.56
A71: Equipment Repair
A72: 1 | B72: APPLE STORE | C72: 310 | O72: =SUM(D72:N72) -> 0
A73: 2 | B73: AMERICAN BUSINESS MACHINES | N73: 1309.09 | O73: =SUM(C73:N73) -> 1309.09
A74: 3 | O74: 0
A75: 4 | O75: 0
A76: 5 | O76: 0
A78: Total | C78: =SUM(C72:C77) -> 310 | D78: =SUM(D72:D77) -> 0 | E78: 0 | F78: 0 | G78: 0 | H78: 0 | I78: 0 | J78: 0 | K78: 0 | L78: =SUM(L72:L77) -> 0 | M78: 0 | N78: 1309.09 | O78: 1619.09
A80: Outreach
A81: 1 | B81: AVC Cafeteria | C81: =355.61+385.59+4146.05 -> 4887.25 | O81: =SUM(C81:N81) -> 4887.25
A82: 2 | B82: PALMDALE SCHOOL DISTRICT | D82: 461 | O82: 461
A83: 3 | B83: SCRAMBLEZ CAFÉ PALMDALE | C83: 1650 | O83: 1650
A84: 4 | B84: LANCASTER SCHOOL DISTRICT | L84: 426.61 | O84: 426.61
A85: 5 | B85: KEPPEL UNION SCHOOL DISTRICT | L85: 901.43 | O85: 901.43
A86: 6 | B86: BOHN'S PRINTING | L86: 92.65 | O86: 92.65
A87: Total | C87: =SUM(C81:C85) -> 6537.25 | D87: =SUM(D81:D85) -> 461 | E87: =SUM(E81:E85) -> 0 | F87: 0 | G87: 0 | H87: 0 | I87: =SUM(I81:I86) -> 0 | J87: 0 | K87: 0 | L87: 1328.04 | M87: =SUM(M81:M85) -> 0 | N87: 0 | O87: 8326.29
O90: =O87+O60+O51+O42+O13 -> 408183.48

Sheet Cap. Outlay
A1: 6000 Capital Outlay | D1: =Summary!F1 -> 2014-2015
C2: October | D2: November | E2: December | F2: January | G2: February | H2: March | I2: April | J2: May | K2: June | L2: July | M2: August | N2: September | O2: Year Total
A3: Equipment
A4: 1 | B4: SIERRA SCHOOL EQUIPMENT | D4: 18858 | O4: =SUM(C4:N4) -> 18858
A5: 2 | B5: ANASAZI INSTRUMENTS | H5: 135000 | O5: =SUM(C5:N5) -> 135000
A6: 3 | B6: VWR INTERNATIONAL INC | L6: 10128.72 | O6: =SUM(C6:N6) -> 10128.72
A7: 4 | O7: =SUM(C7:N7) -> 0
A8: 5 | O8: =SUM(C8:N8) -> 0
A9: 6 | O9: 0
A10: 7 | O10: 0
A11: 8 | O11: 0
A12: 9 | O12: 0
A13: 10 | O13: 0
A14: 11 | O14: 0
A16: Total | C16: =SUM(C4:C15) -> 0 | D16: 18858 | E16: 0 | F16: 0 | G16: 0 | H16: 135000 | I16: 0 | J16: 0 | K16: 0 | L16: 10128.72 | M16: 0 | N16: 0 | O16: =SUM(C16:N16) -> 163986.72
A18: Math/ESL/IMC
A19: 1 | O19: =SUM(C19:N19) -> 0
A20: 2 | O20: =SUM(C20:N20) -> 0
A21: 3 | O21: 0
A22: 4 | O22: 0
A23: 5 | O23: 0
A25: Total | C25: =SUM(C19:C24) -> 0 | D25: =SUM(D19:D24) -> 0 | E25: 0 | F25: 0 | G25: 0 | H25: 0 | I25: 0 | J25: 0 | K25: 0 | L25: 0 | M25: 0 | N25: 0 | O25: 0
A27: Other
A28: 1 | B28: EBSCO INFORMATION SERVICES | H28: 5359.23 | J28: 724.5 | O28: =SUM(C28:N28) -> 6083.73
A29: 2 | O29: =SUM(C29:N29) -> 0
A30: 3 | O30: 0
A31: 4 | O31: 0
A32: 5 | O32: 0
A34: Total | C34: =SUM(C28:C33) -> 0 | D34: =SUM(D28:D33) -> 0 | E34: 0 | F34: 0 | G34: 0 | H34: 5359.23 | I34: 0 | J34: 724.5 | K34: 0 | L34: 0 | M34: 0 | N34: 0 | O34: 6083.73
O37: =O34+O25+O16 -> 170070.45

Sheet Other Outgo
A1: 7000 Other Outgo | D1: =Summary!F1 -> 2014-2015
C2: July | D2: August | E2: September | F2: October | G2: November | H2: December | I2: January | J2: February | K2: March | L2: April | M2: May | N2: June | O2: Year Total
A3: Other Outgo
A4: 1 | O4: =SUM(C4:N4) -> 0
A5: 2 | O5: =SUM(C5:N5) -> 0
A6: 3 | O6: 0
A7: 4 | O7: 0
A8: 5 | O8: 0
A10: Total | C10: =SUM(C4:C9) -> 0 | D10: =SUM(D4:D9) -> 0 | E10: 0 | F10: 0 | G10: 0 | H10: 0 | I10: 0 | J10: 0 | K10: 0 | L10: 0 | M10: 0 | N10: 0 | O10: 0

Sheet Benefit %
A1: Benefit Percentages
D2: Use the Adjust Benefit Percentages Workbook to update percentages!
A3: STRS | B3: 0.0825 | E3: DO NOT CHANGE THEM ON THIS PAGE!
A5: PERS | B5: 0.10707 | C5: For 2001 Employer contribution is zero. Always check as this may change each year.
A7: OASDI | B7: 0.062
A9: MEDI | B9: 0.0145
B10: CV | C10: DW | D10: JE
A11: H&W | B11: 0.1677 | C11: 0.131 | D11: 0.2182 | M11: This amount must be entered for each person since the amount depends on the plan chosen by employee.
A13: SUI | B13: 0.0072
A15: W/C | B15: 0.0221

Sheet APR Budget
A1: Budget | B1: Carryover | C1: Actual | D1: Expenditures | E1: Non- | F1: Carryover | G1: Next | H1: Changes?
A2: Categories | B2: Balance | C2: Budget | E2: Federal | F2: Balance | G2: Year’s | H2: Y/N
B3: from | E3: Expenditures | G3: Actual
B4: Previous FY | G4: Budget
A5: Personnel | E5: 0 | F5: =B5+C5-D5 -> 0
A6: Fringe
A7: Benefits | E7: 0 | F7: =B7+C7-D7 -> 0
A8: Travel | E8: 0 | F8: 0
A9: Equipment | E9: 0 | F9: 0
A10: Supplies | E10: 0 | F10: 0
A11: Contractual | E11: 0 | F11: 0
A12: Construction | E12: 0 | F12: 0
A13: Other | E13: 0 | F13: 0
A14: Endowment | E14: 0 | F14: 0
A15: Total Costs | B15: =SUM(B5:B14) -> 0 | C15: =SUM(C5:C14) -> 0 | D15: =SUM(D5:D14) -> 0 | E15: 0 | F15: 0 | G15: =SUM(G5:G14) -> 0
